{"text_format":"3","workbook":"xlsx","n_sheets":14,"sheets":["Beállítások","Január","Február","Március","Április","Május","Június","Július","Augusztus","Szeptember","Október","November","December","Ünnepnapok"],"not_rendered":{"defined_names":20},"read":"whole","date_system":"1900"}

{"sheet":"Beállítások","index":0,"n_rows":34,"n_cols":32,"rows_kept":34,"merged":[[1,17,2,23],[3,1,3,7],[3,8,3,10],[3,17,7,31],[4,1,4,7],[5,1,5,7],[8,1,8,7],[8,9,8,15],[8,17,8,23],[8,25,8,31],[9,1,9,7],[9,9,9,15],[9,17,9,23],[9,25,9,31],[17,1,17,7],[17,9,17,15],[17,17,17,23],[17,25,17,31],[18,1,18,7],[18,9,18,15],[18,17,18,23],[18,25,18,31],[26,1,26,7],[26,9,26,15],[26,17,26,23],[26,25,26,31],[27,1,27,7],[27,9,27,15],[27,17,27,23],[27,25,27,31]]}
[]
[null,"NAPTÁRBEÁLLÍTÁSOK",{"$nulls":15},"ÉV"]
[]
[null,"HÉT KEZDETE",{"$nulls":6},"VASÁRNAP",{"$nulls":8},{"$f":"YEAR(TODAY())","v":2018}]
[null,"ÜNNEPNAPOK",{"$nulls":6},true]
[null,"TARTOTT ÜNNEPEK",{"$nulls":6},true]
[{"$nulls":8},{"$f":"IF(Ünnepnapok,Ünnepelt,Ünnepnapok)","v":true}]
[null,"ÉVES NÉZET"]
[null,{"$f":"DATE(NaptÉv,1,1)","v":43101},{"$nulls":7},{"$f":"DATE(NaptÉv,2,1)","v":43132},{"$nulls":7},{"$f":"DATE(NaptÉv,3,1)","v":43160},{"$nulls":7},{"$f":"DATE(NaptÉv,4,1)","v":43191}]
[null,{"$f":"UPPER(TEXT(B9,\"hhhh\"))","v":"JANUÁR"},{"$nulls":7},{"$f":"UPPER(TEXT(J9,\"hhhh\"))","v":"FEBRUÁR"},{"$nulls":7},{"$f":"UPPER(TEXT(R9,\"hhhh\"))","v":"MÁRCIUS"},{"$nulls":7},{"$f":"UPPER(TEXT(Z9,\"hhhh\"))","v":"ÁPRILIS"}]
[1,{"$f":"Napok+DATE(NaptÉv,MONTH($B$9),1)-WEEKDAY(DATE(NaptÉv,MONTH($B$9),1),(HétKezdete=\"HÉTFŐ\")+1)+$A11*7-6","v":"2017-12-31"},"2018-01-01","2018-01-02","2018-01-03","2018-01-04","2018-01-05","2018-01-06",null,{"$f":"Napok+DATE(NaptÉv,MONTH($J$9),1)-WEEKDAY(DATE(NaptÉv,MONTH($J$9),1),(HétKezdete=\"HÉTFŐ\")+1)+$A11*7-6","v":"2018-01-28"},"2018-01-29","2018-01-30","2018-01-31","2018-02-01","2018-02-02","2018-02-03",null,{"$f":"Napok+DATE(NaptÉv,MONTH($R$9),1)-WEEKDAY(DATE(NaptÉv,MONTH($R$9),1),(HétKezdete=\"HÉTFŐ\")+1)+$A11*7-6","v":"2018-02-25"},"2018-02-26","2018-02-27","2018-02-28","2018-03-01","2018-03-02","2018-03-03",null,{"$f":"Napok+DATE(NaptÉv,MONTH($Z$9),1)-WEEKDAY(DATE(NaptÉv,MONTH($Z$9),1),(HétKezdete=\"HÉTFŐ\")+1)+$A11*7-6","v":"2018-04-01"},"2018-04-02","2018-04-03","2018-04-04","2018-04-05","2018-04-06","2018-04-07"]
[2,{"$f":"Napok+DATE(NaptÉv,MONTH($B$9),1)-WEEKDAY(DATE(NaptÉv,MONTH($B$9),1),(HétKezdete=\"HÉTFŐ\")+1)+$A12*7-6","v":"2018-01-07"},"2018-01-08","2018-01-09","2018-01-10","2018-01-11","2018-01-12","2018-01-13",null,{"$f":"Napok+DATE(NaptÉv,MONTH($J$9),1)-WEEKDAY(DATE(NaptÉv,MONTH($J$9),1),(HétKezdete=\"HÉTFŐ\")+1)+$A12*7-6","v":"2018-02-04"},"2018-02-05","2018-02-06","2018-02-07","2018-02-08","2018-02-09","2018-02-10",null,{"$f":"Napok+DATE(NaptÉv,MONTH($R$9),1)-WEEKDAY(DATE(NaptÉv,MONTH($R$9),1),(HétKezdete=\"HÉTFŐ\")+1)+$A12*7-6","v":"2018-03-04"},"2018-03-05","2018-03-06","2018-03-07","2018-03-08","2018-03-09","2018-03-10",null,{"$f":"Napok+DATE(NaptÉv,MONTH($Z$9),1)-WEEKDAY(DATE(NaptÉv,MONTH($Z$9),1),(HétKezdete=\"HÉTFŐ\")+1)+$A12*7-6","v":"2018-04-08"},"2018-04-09","2018-04-10","2018-04-11","2018-04-12","2018-04-13","2018-04-14"]
[3,{"$f":"Napok+DATE(NaptÉv,MONTH($B$9),1)-WEEKDAY(DATE(NaptÉv,MONTH($B$9),1),(HétKezdete=\"HÉTFŐ\")+1)+$A13*7-6","v":"2018-01-14"},"2018-01-15","2018-01-16","2018-01-17","2018-01-18","2018-01-19","2018-01-20",null,{"$f":"Napok+DATE(NaptÉv,MONTH($J$9),1)-WEEKDAY(DATE(NaptÉv,MONTH($J$9),1),(HétKezdete=\"HÉTFŐ\")+1)+$A13*7-6","v":"2018-02-11"},"2018-02-12","2018-02-13","2018-02-14","2018-02-15","2018-02-16","2018-02-17",null,{"$f":"Napok+DATE(NaptÉv,MONTH($R$9),1)-WEEKDAY(DATE(NaptÉv,MONTH($R$9),1),(HétKezdete=\"HÉTFŐ\")+1)+$A13*7-6","v":"2018-03-11"},"2018-03-12","2018-03-13","2018-03-14","2018-03-15","2018-03-16","2018-03-17",null,{"$f":"Napok+DATE(NaptÉv,MONTH($Z$9),1)-WEEKDAY(DATE(NaptÉv,MONTH($Z$9),1),(HétKezdete=\"HÉTFŐ\")+1)+$A13*7-6","v":"2018-04-15"},"2018-04-16","2018-04-17","2018-04-18","2018-04-19","2018-04-20","2018-04-21"]
[4,{"$f":"Napok+DATE(NaptÉv,MONTH($B$9),1)-WEEKDAY(DATE(NaptÉv,MONTH($B$9),1),(HétKezdete=\"HÉTFŐ\")+1)+$A14*7-6","v":"2018-01-21"},"2018-01-22","2018-01-23","2018-01-24","2018-01-25","2018-01-26","2018-01-27",null,{"$f":"Napok+DATE(NaptÉv,MONTH($J$9),1)-WEEKDAY(DATE(NaptÉv,MONTH($J$9),1),(HétKezdete=\"HÉTFŐ\")+1)+$A14*7-6","v":"2018-02-18"},"2018-02-19","2018-02-20","2018-02-21","2018-02-22","2018-02-23","2018-02-24",null,{"$f":"Napok+DATE(NaptÉv,MONTH($R$9),1)-WEEKDAY(DATE(NaptÉv,MONTH($R$9),1),(HétKezdete=\"HÉTFŐ\")+1)+$A14*7-6","v":"2018-03-18"},"2018-03-19","2018-03-20","2018-03-21","2018-03-22","2018-03-23","2018-03-24",null,{"$f":"Napok+DATE(NaptÉv,MONTH($Z$9),1)-WEEKDAY(DATE(NaptÉv,MONTH($Z$9),1),(HétKezdete=\"HÉTFŐ\")+1)+$A14*7-6","v":"2018-04-22"},"2018-04-23","2018-04-24","2018-04-25","2018-04-26","2018-04-27","2018-04-28"]
[5,{"$f":"Napok+DATE(NaptÉv,MONTH($B$9),1)-WEEKDAY(DATE(NaptÉv,MONTH($B$9),1),(HétKezdete=\"HÉTFŐ\")+1)+$A15*7-6","v":"2018-01-28"},"2018-01-29","2018-01-30","2018-01-31","2018-02-01","2018-02-02","2018-02-03",null,{"$f":"Napok+DATE(NaptÉv,MONTH($J$9),1)-WEEKDAY(DATE(NaptÉv,MONTH($J$9),1),(HétKezdete=\"HÉTFŐ\")+1)+$A15*7-6","v":"2018-02-25"},"2018-02-26","2018-02-27","2018-02-28","2018-03-01","2018-03-02","2018-03-03",null,{"$f":"Napok+DATE(NaptÉv,MONTH($R$9),1)-WEEKDAY(DATE(NaptÉv,MONTH($R$9),1),(HétKezdete=\"HÉTFŐ\")+1)+$A15*7-6","v":"2018-03-25"},"2018-03-26","2018-03-27","2018-03-28","2018-03-29","2018-03-30","2018-03-31",null,{"$f":"Napok+DATE(NaptÉv,MONTH($Z$9),1)-WEEKDAY(DATE(NaptÉv,MONTH($Z$9),1),(HétKezdete=\"HÉTFŐ\")+1)+$A15*7-6","v":"2018-04-29"},"2018-04-30","2018-05-01","2018-05-02","2018-05-03","2018-05-04","2018-05-05"]
[6,{"$f":"Napok+DATE(NaptÉv,MONTH($B$9),1)-WEEKDAY(DATE(NaptÉv,MONTH($B$9),1),(HétKezdete=\"HÉTFŐ\")+1)+$A16*7-6","v":"2018-02-04"},"2018-02-05","2018-02-06","2018-02-07","2018-02-08","2018-02-09","2018-02-10",null,{"$f":"Napok+DATE(NaptÉv,MONTH($J$9),1)-WEEKDAY(DATE(NaptÉv,MONTH($J$9),1),(HétKezdete=\"HÉTFŐ\")+1)+$A16*7-6","v":"2018-03-04"},"2018-03-05","2018-03-06","2018-03-07","2018-03-08","2018-03-09","2018-03-10",null,{"$f":"Napok+DATE(NaptÉv,MONTH($R$9),1)-WEEKDAY(DATE(NaptÉv,MONTH($R$9),1),(HétKezdete=\"HÉTFŐ\")+1)+$A16*7-6","v":"2018-04-01"},"2018-04-02","2018-04-03","2018-04-04","2018-04-05","2018-04-06","2018-04-07",null,{"$f":"Napok+DATE(NaptÉv,MONTH($Z$9),1)-WEEKDAY(DATE(NaptÉv,MONTH($Z$9),1),(HétKezdete=\"HÉTFŐ\")+1)+$A16*7-6","v":"2018-05-06"},"2018-05-07","2018-05-08","2018-05-09","2018-05-10","2018-05-11","2018-05-12"]
[]
[null,{"$f":"DATE(NaptÉv,5,1)","v":43221},{"$nulls":7},{"$f":"DATE(NaptÉv,6,1)","v":43252},{"$nulls":7},{"$f":"DATE(NaptÉv,7,1)","v":43282},{"$nulls":7},{"$f":"DATE(NaptÉv,8,1)","v":43313}]
[null,{"$f":"UPPER(TEXT(B18,\"hhhh\"))","v":"MÁJUS"},{"$nulls":7},{"$f":"UPPER(TEXT(J18,\"hhhh\"))","v":"JÚNIUS"},{"$nulls":7},{"$f":"UPPER(TEXT(R18,\"hhhh\"))","v":"JÚLIUS"},{"$nulls":7},{"$f":"UPPER(TEXT(Z18,\"hhhh\"))","v":"AUGUSZTUS"}]
[1,{"$f":"Napok+DATE(NaptÉv,MONTH($B$18),1)-WEEKDAY(DATE(NaptÉv,MONTH($B$18),1),(HétKezdete=\"HÉTFŐ\")+1)+$A20*7-6","v":"2018-04-29"},"2018-04-30","2018-05-01","2018-05-02","2018-05-03","2018-05-04","2018-05-05",null,{"$f":"Napok+DATE(NaptÉv,MONTH($J$18),1)-WEEKDAY(DATE(NaptÉv,MONTH($J$18),1),(HétKezdete=\"HÉTFŐ\")+1)+$A20*7-6","v":"2018-05-27"},"2018-05-28","2018-05-29","2018-05-30","2018-05-31","2018-06-01","2018-06-02",null,{"$f":"Napok+DATE(NaptÉv,MONTH($R$18),1)-WEEKDAY(DATE(NaptÉv,MONTH($R$18),1),(HétKezdete=\"HÉTFŐ\")+1)+$A20*7-6","v":"2018-07-01"},"2018-07-02","2018-07-03","2018-07-04","2018-07-05","2018-07-06","2018-07-07",null,{"$f":"Napok+DATE(NaptÉv,MONTH($Z$18),1)-WEEKDAY(DATE(NaptÉv,MONTH($Z$18),1),(HétKezdete=\"HÉTFŐ\")+1)+$A20*7-6","v":"2018-07-29"},"2018-07-30","2018-07-31","2018-08-01","2018-08-02","2018-08-03","2018-08-04"]
[2,{"$f":"Napok+DATE(NaptÉv,MONTH($B$18),1)-WEEKDAY(DATE(NaptÉv,MONTH($B$18),1),(HétKezdete=\"HÉTFŐ\")+1)+$A21*7-6","v":"2018-05-06"},"2018-05-07","2018-05-08","2018-05-09","2018-05-10","2018-05-11","2018-05-12",null,{"$f":"Napok+DATE(NaptÉv,MONTH($J$18),1)-WEEKDAY(DATE(NaptÉv,MONTH($J$18),1),(HétKezdete=\"HÉTFŐ\")+1)+$A21*7-6","v":"2018-06-03"},"2018-06-04","2018-06-05","2018-06-06","2018-06-07","2018-06-08","2018-06-09",null,{"$f":"Napok+DATE(NaptÉv,MONTH($R$18),1)-WEEKDAY(DATE(NaptÉv,MONTH($R$18),1),(HétKezdete=\"HÉTFŐ\")+1)+$A21*7-6","v":"2018-07-08"},"2018-07-09","2018-07-10","2018-07-11","2018-07-12","2018-07-13","2018-07-14",null,{"$f":"Napok+DATE(NaptÉv,MONTH($Z$18),1)-WEEKDAY(DATE(NaptÉv,MONTH($Z$18),1),(HétKezdete=\"HÉTFŐ\")+1)+$A21*7-6","v":"2018-08-05"},"2018-08-06","2018-08-07","2018-08-08","2018-08-09","2018-08-10","2018-08-11"]
[3,{"$f":"Napok+DATE(NaptÉv,MONTH($B$18),1)-WEEKDAY(DATE(NaptÉv,MONTH($B$18),1),(HétKezdete=\"HÉTFŐ\")+1)+$A22*7-6","v":"2018-05-13"},"2018-05-14","2018-05-15","2018-05-16","2018-05-17","2018-05-18","2018-05-19",null,{"$f":"Napok+DATE(NaptÉv,MONTH($J$18),1)-WEEKDAY(DATE(NaptÉv,MONTH($J$18),1),(HétKezdete=\"HÉTFŐ\")+1)+$A22*7-6","v":"2018-06-10"},"2018-06-11","2018-06-12","2018-06-13","2018-06-14","2018-06-15","2018-06-16",null,{"$f":"Napok+DATE(NaptÉv,MONTH($R$18),1)-WEEKDAY(DATE(NaptÉv,MONTH($R$18),1),(HétKezdete=\"HÉTFŐ\")+1)+$A22*7-6","v":"2018-07-15"},"2018-07-16","2018-07-17","2018-07-18","2018-07-19","2018-07-20","2018-07-21",null,{"$f":"Napok+DATE(NaptÉv,MONTH($Z$18),1)-WEEKDAY(DATE(NaptÉv,MONTH($Z$18),1),(HétKezdete=\"HÉTFŐ\")+1)+$A22*7-6","v":"2018-08-12"},"2018-08-13","2018-08-14","2018-08-15","2018-08-16","2018-08-17","2018-08-18"]
[4,{"$f":"Napok+DATE(NaptÉv,MONTH($B$18),1)-WEEKDAY(DATE(NaptÉv,MONTH($B$18),1),(HétKezdete=\"HÉTFŐ\")+1)+$A23*7-6","v":"2018-05-20"},"2018-05-21","2018-05-22","2018-05-23","2018-05-24","2018-05-25","2018-05-26",null,{"$f":"Napok+DATE(NaptÉv,MONTH($J$18),1)-WEEKDAY(DATE(NaptÉv,MONTH($J$18),1),(HétKezdete=\"HÉTFŐ\")+1)+$A23*7-6","v":"2018-06-17"},"2018-06-18","2018-06-19","2018-06-20","2018-06-21","2018-06-22","2018-06-23",null,{"$f":"Napok+DATE(NaptÉv,MONTH($R$18),1)-WEEKDAY(DATE(NaptÉv,MONTH($R$18),1),(HétKezdete=\"HÉTFŐ\")+1)+$A23*7-6","v":"2018-07-22"},"2018-07-23","2018-07-24","2018-07-25","2018-07-26","2018-07-27","2018-07-28",null,{"$f":"Napok+DATE(NaptÉv,MONTH($Z$18),1)-WEEKDAY(DATE(NaptÉv,MONTH($Z$18),1),(HétKezdete=\"HÉTFŐ\")+1)+$A23*7-6","v":"2018-08-19"},"2018-08-20","2018-08-21","2018-08-22","2018-08-23","2018-08-24","2018-08-25"]
[5,{"$f":"Napok+DATE(NaptÉv,MONTH($B$18),1)-WEEKDAY(DATE(NaptÉv,MONTH($B$18),1),(HétKezdete=\"HÉTFŐ\")+1)+$A24*7-6","v":"2018-05-27"},"2018-05-28","2018-05-29","2018-05-30","2018-05-31","2018-06-01","2018-06-02",null,{"$f":"Napok+DATE(NaptÉv,MONTH($J$18),1)-WEEKDAY(DATE(NaptÉv,MONTH($J$18),1),(HétKezdete=\"HÉTFŐ\")+1)+$A24*7-6","v":"2018-06-24"},"2018-06-25","2018-06-26","2018-06-27","2018-06-28","2018-06-29","2018-06-30",null,{"$f":"Napok+DATE(NaptÉv,MONTH($R$18),1)-WEEKDAY(DATE(NaptÉv,MONTH($R$18),1),(HétKezdete=\"HÉTFŐ\")+1)+$A24*7-6","v":"2018-07-29"},"2018-07-30","2018-07-31","2018-08-01","2018-08-02","2018-08-03","2018-08-04",null,{"$f":"Napok+DATE(NaptÉv,MONTH($Z$18),1)-WEEKDAY(DATE(NaptÉv,MONTH($Z$18),1),(HétKezdete=\"HÉTFŐ\")+1)+$A24*7-6","v":"2018-08-26"},"2018-08-27","2018-08-28","2018-08-29","2018-08-30","2018-08-31","2018-09-01"]
[6,{"$f":"Napok+DATE(NaptÉv,MONTH($B$18),1)-WEEKDAY(DATE(NaptÉv,MONTH($B$18),1),(HétKezdete=\"HÉTFŐ\")+1)+$A25*7-6","v":"2018-06-03"},"2018-06-04","2018-06-05","2018-06-06","2018-06-07","2018-06-08","2018-06-09",null,{"$f":"Napok+DATE(NaptÉv,MONTH($J$18),1)-WEEKDAY(DATE(NaptÉv,MONTH($J$18),1),(HétKezdete=\"HÉTFŐ\")+1)+$A25*7-6","v":"2018-07-01"},"2018-07-02","2018-07-03","2018-07-04","2018-07-05","2018-07-06","2018-07-07",null,{"$f":"Napok+DATE(NaptÉv,MONTH($R$18),1)-WEEKDAY(DATE(NaptÉv,MONTH($R$18),1),(HétKezdete=\"HÉTFŐ\")+1)+$A25*7-6","v":"2018-08-05"},"2018-08-06","2018-08-07","2018-08-08","2018-08-09","2018-08-10","2018-08-11",null,{"$f":"Napok+DATE(NaptÉv,MONTH($Z$18),1)-WEEKDAY(DATE(NaptÉv,MONTH($Z$18),1),(HétKezdete=\"HÉTFŐ\")+1)+$A25*7-6","v":"2018-09-02"},"2018-09-03","2018-09-04","2018-09-05","2018-09-06","2018-09-07","2018-09-08"]
[]
[null,{"$f":"DATE(NaptÉv,9,1)","v":43344},{"$nulls":7},{"$f":"DATE(NaptÉv,10,1)","v":43374},{"$nulls":7},{"$f":"DATE(NaptÉv,11,1)","v":43405},{"$nulls":7},{"$f":"DATE(NaptÉv,12,1)","v":43435}]
[null,{"$f":"UPPER(TEXT(B27,\"hhhh\"))","v":"SZEPTEMBER"},{"$nulls":7},{"$f":"UPPER(TEXT(J27,\"hhhh\"))","v":"OKTÓBER"},{"$nulls":7},{"$f":"UPPER(TEXT(R27,\"hhhh\"))","v":"NOVEMBER"},{"$nulls":7},{"$f":"UPPER(TEXT(Z27,\"hhhh\"))","v":"DECEMBER"}]
[1,{"$f":"Napok+DATE(NaptÉv,MONTH($B$27),1)-WEEKDAY(DATE(NaptÉv,MONTH($B$27),1),(HétKezdete=\"HÉTFŐ\")+1)+$A29*7-6","v":"2018-08-26"},"2018-08-27","2018-08-28","2018-08-29","2018-08-30","2018-08-31","2018-09-01",null,{"$f":"Napok+DATE(NaptÉv,MONTH($J$27),1)-WEEKDAY(DATE(NaptÉv,MONTH($J$27),1),(HétKezdete=\"HÉTFŐ\")+1)+$A29*7-6","v":"2018-09-30"},"2018-10-01","2018-10-02","2018-10-03","2018-10-04","2018-10-05","2018-10-06",null,{"$f":"Napok+DATE(NaptÉv,MONTH($R$27),1)-WEEKDAY(DATE(NaptÉv,MONTH($R$27),1),(HétKezdete=\"HÉTFŐ\")+1)+$A29*7-6","v":"2018-10-28"},"2018-10-29","2018-10-30","2018-10-31","2018-11-01","2018-11-02","2018-11-03",null,{"$f":"Napok+DATE(NaptÉv,MONTH($Z$27),1)-WEEKDAY(DATE(NaptÉv,MONTH($Z$27),1),(HétKezdete=\"HÉTFŐ\")+1)+$A29*7-6","v":"2018-11-25"},"2018-11-26","2018-11-27","2018-11-28","2018-11-29","2018-11-30","2018-12-01"]
[2,{"$f":"Napok+DATE(NaptÉv,MONTH($B$27),1)-WEEKDAY(DATE(NaptÉv,MONTH($B$27),1),(HétKezdete=\"HÉTFŐ\")+1)+$A30*7-6","v":"2018-09-02"},"2018-09-03","2018-09-04","2018-09-05","2018-09-06","2018-09-07","2018-09-08",null,{"$f":"Napok+DATE(NaptÉv,MONTH($J$27),1)-WEEKDAY(DATE(NaptÉv,MONTH($J$27),1),(HétKezdete=\"HÉTFŐ\")+1)+$A30*7-6","v":"2018-10-07"},"2018-10-08","2018-10-09","2018-10-10","2018-10-11","2018-10-12","2018-10-13",null,{"$f":"Napok+DATE(NaptÉv,MONTH($R$27),1)-WEEKDAY(DATE(NaptÉv,MONTH($R$27),1),(HétKezdete=\"HÉTFŐ\")+1)+$A30*7-6","v":"2018-11-04"},"2018-11-05","2018-11-06","2018-11-07","2018-11-08","2018-11-09","2018-11-10",null,{"$f":"Napok+DATE(NaptÉv,MONTH($Z$27),1)-WEEKDAY(DATE(NaptÉv,MONTH($Z$27),1),(HétKezdete=\"HÉTFŐ\")+1)+$A30*7-6","v":"2018-12-02"},"2018-12-03","2018-12-04","2018-12-05","2018-12-06","2018-12-07","2018-12-08"]
[3,{"$f":"Napok+DATE(NaptÉv,MONTH($B$27),1)-WEEKDAY(DATE(NaptÉv,MONTH($B$27),1),(HétKezdete=\"HÉTFŐ\")+1)+$A31*7-6","v":"2018-09-09"},"2018-09-10","2018-09-11","2018-09-12","2018-09-13","2018-09-14","2018-09-15",null,{"$f":"Napok+DATE(NaptÉv,MONTH($J$27),1)-WEEKDAY(DATE(NaptÉv,MONTH($J$27),1),(HétKezdete=\"HÉTFŐ\")+1)+$A31*7-6","v":"2018-10-14"},"2018-10-15","2018-10-16","2018-10-17","2018-10-18","2018-10-19","2018-10-20",null,{"$f":"Napok+DATE(NaptÉv,MONTH($R$27),1)-WEEKDAY(DATE(NaptÉv,MONTH($R$27),1),(HétKezdete=\"HÉTFŐ\")+1)+$A31*7-6","v":"2018-11-11"},"2018-11-12","2018-11-13","2018-11-14","2018-11-15","2018-11-16","2018-11-17",null,{"$f":"Napok+DATE(NaptÉv,MONTH($Z$27),1)-WEEKDAY(DATE(NaptÉv,MONTH($Z$27),1),(HétKezdete=\"HÉTFŐ\")+1)+$A31*7-6","v":"2018-12-09"},"2018-12-10","2018-12-11","2018-12-12","2018-12-13","2018-12-14","2018-12-15"]
[4,{"$f":"Napok+DATE(NaptÉv,MONTH($B$27),1)-WEEKDAY(DATE(NaptÉv,MONTH($B$27),1),(HétKezdete=\"HÉTFŐ\")+1)+$A32*7-6","v":"2018-09-16"},"2018-09-17","2018-09-18","2018-09-19","2018-09-20","2018-09-21","2018-09-22",null,{"$f":"Napok+DATE(NaptÉv,MONTH($J$27),1)-WEEKDAY(DATE(NaptÉv,MONTH($J$27),1),(HétKezdete=\"HÉTFŐ\")+1)+$A32*7-6","v":"2018-10-21"},"2018-10-22","2018-10-23","2018-10-24","2018-10-25","2018-10-26","2018-10-27",null,{"$f":"Napok+DATE(NaptÉv,MONTH($R$27),1)-WEEKDAY(DATE(NaptÉv,MONTH($R$27),1),(HétKezdete=\"HÉTFŐ\")+1)+$A32*7-6","v":"2018-11-18"},"2018-11-19","2018-11-20","2018-11-21","2018-11-22","2018-11-23","2018-11-24",null,{"$f":"Napok+DATE(NaptÉv,MONTH($Z$27),1)-WEEKDAY(DATE(NaptÉv,MONTH($Z$27),1),(HétKezdete=\"HÉTFŐ\")+1)+$A32*7-6","v":"2018-12-16"},"2018-12-17","2018-12-18","2018-12-19","2018-12-20","2018-12-21","2018-12-22"]
[5,{"$f":"Napok+DATE(NaptÉv,MONTH($B$27),1)-WEEKDAY(DATE(NaptÉv,MONTH($B$27),1),(HétKezdete=\"HÉTFŐ\")+1)+$A33*7-6","v":"2018-09-23"},"2018-09-24","2018-09-25","2018-09-26","2018-09-27","2018-09-28","2018-09-29",null,{"$f":"Napok+DATE(NaptÉv,MONTH($J$27),1)-WEEKDAY(DATE(NaptÉv,MONTH($J$27),1),(HétKezdete=\"HÉTFŐ\")+1)+$A33*7-6","v":"2018-10-28"},"2018-10-29","2018-10-30","2018-10-31","2018-11-01","2018-11-02","2018-11-03",null,{"$f":"Napok+DATE(NaptÉv,MONTH($R$27),1)-WEEKDAY(DATE(NaptÉv,MONTH($R$27),1),(HétKezdete=\"HÉTFŐ\")+1)+$A33*7-6","v":"2018-11-25"},"2018-11-26","2018-11-27","2018-11-28","2018-11-29","2018-11-30","2018-12-01",null,{"$f":"Napok+DATE(NaptÉv,MONTH($Z$27),1)-WEEKDAY(DATE(NaptÉv,MONTH($Z$27),1),(HétKezdete=\"HÉTFŐ\")+1)+$A33*7-6","v":"2018-12-23"},"2018-12-24","2018-12-25","2018-12-26","2018-12-27","2018-12-28","2018-12-29"]
[6,{"$f":"Napok+DATE(NaptÉv,MONTH($B$27),1)-WEEKDAY(DATE(NaptÉv,MONTH($B$27),1),(HétKezdete=\"HÉTFŐ\")+1)+$A34*7-6","v":"2018-09-30"},"2018-10-01","2018-10-02","2018-10-03","2018-10-04","2018-10-05","2018-10-06",null,{"$f":"Napok+DATE(NaptÉv,MONTH($J$27),1)-WEEKDAY(DATE(NaptÉv,MONTH($J$27),1),(HétKezdete=\"HÉTFŐ\")+1)+$A34*7-6","v":"2018-11-04"},"2018-11-05","2018-11-06","2018-11-07","2018-11-08","2018-11-09","2018-11-10",null,{"$f":"Napok+DATE(NaptÉv,MONTH($R$27),1)-WEEKDAY(DATE(NaptÉv,MONTH($R$27),1),(HétKezdete=\"HÉTFŐ\")+1)+$A34*7-6","v":"2018-12-02"},"2018-12-03","2018-12-04","2018-12-05","2018-12-06","2018-12-07","2018-12-08",null,{"$f":"Napok+DATE(NaptÉv,MONTH($Z$27),1)-WEEKDAY(DATE(NaptÉv,MONTH($Z$27),1),(HétKezdete=\"HÉTFŐ\")+1)+$A34*7-6","v":"2018-12-30"},"2018-12-31","2019-01-01","2019-01-02","2019-01-03","2019-01-04","2019-01-05"]

{"sheet":"Január","index":1,"n_rows":17,"n_cols":8,"rows_kept":17,"merged":[[1,1,1,3],[14,3,14,7],[15,3,15,7],[16,1,16,7]]}
[]
[null,{"$f":"B9","v":"2018-01-14"}]
[]
[null,{"$f":"HétKezdete","v":"VASÁRNAP"},{"$f":"UPPER(TEXT(C5,\"nnnn\"))","v":"HÉTFŐ"},"KEDD","SZERDA","CSÜTÖRTÖK","PÉNTEK","SZOMBAT"]
[null,{"$f":"Napok+DATE(NaptÉv,1,1)-WEEKDAY(DATE(NaptÉv,1,1),(HétKezdete=\"HÉTFŐ\")+1)+1","v":"2017-12-31"},"2018-01-01","2018-01-02","2018-01-03","2018-01-04","2018-01-05","2018-01-06"]
[null,{"$f":"IFERROR(IF(Ünnepnapok,IF(INDEX(tblÜnnepnapok[],MATCH(DATE(NaptÉv-(DAY(B5)>15)+(ROW()>6),MONTH(B5),DAY(B5)),IF(TartottÜnnepek,tblÜnnepnapok[KORRIGÁLT],tblÜnnepnapok[NAP]),0),6),INDEX(tblÜnnepnapok[],MATCH(DATE(NaptÉv-(DAY(B5)>15)+(ROW()>6),MONTH(B5),DAY(B5)),IF(TartottÜnnepek,tblÜnnepnapok[KORRIGÁLT],tblÜnnepnapok[NAP]),0),2),\"\"),\"\"),\"\")","v":""},{"$f":"IFERROR(IF(Ünnepnapok,IF(INDEX(tblÜnnepnapok[],MATCH(DATE(NaptÉv-(DAY(C5)>15)+(ROW()>6),MONTH(C5),DAY(C5)),IF(TartottÜnnepek,tblÜnnepnapok[KORRIGÁLT],tblÜnnepnapok[NAP]),0),6),INDEX(tblÜnnepnapok[],MATCH(DATE(NaptÉv-(DAY(C5)>15)+(ROW()>6),MONTH(C5),DAY(C5)),IF(TartottÜnnepek,tblÜnnepnapok[KORRIGÁLT],tblÜnnepnapok[NAP]),0),2),\"\"),\"\"),\"\")","v":"Újév napja"},{"$f":"IFERROR(IF(Ünnepnapok,IF(INDEX(tblÜnnepnapok[],MATCH(DATE(NaptÉv-(DAY(D5)>15)+(ROW()>6),MONTH(D5),DAY(D5)),IF(TartottÜnnepek,tblÜnnepnapok[KORRIGÁLT],tblÜnnepnapok[NAP]),0),6),INDEX(tblÜnnepnapok[],MATCH(DATE(NaptÉv-(DAY(D5)>15)+(ROW()>6),MONTH(D5),DAY(D5)),IF(TartottÜnnepek,tblÜnnepnapok[KORRIGÁLT],tblÜnnepnapok[NAP]),0),2),\"\"),\"\"),\"\")","v":""},{"$f":"IFERROR(IF(Ünnepnapok,IF(INDEX(tblÜnnepnapok[],MATCH(DATE(NaptÉv-(DAY(E5)>15)+(ROW()>6),MONTH(E5),DAY(E5)),IF(TartottÜnnepek,tblÜnnepnapok[KORRIGÁLT],tblÜnnepnapok[NAP]),0),6),INDEX(tblÜnnepnapok[],MATCH(DATE(NaptÉv-(DAY(E5)>15)+(ROW()>6),MONTH(E5),DAY(E5)),IF(TartottÜnnepek,tblÜnnepnapok[KORRIGÁLT],tblÜnnepnapok[NAP]),0),2),\"\"),\"\"),\"\")","v":""},{"$f":"IFERROR(IF(Ünnepnapok,IF(INDEX(tblÜnnepnapok[],MATCH(DATE(NaptÉv-(DAY(F5)>15)+(ROW()>6),MONTH(F5),DAY(F5)),IF(TartottÜnnepek,tblÜnnepnapok[KORRIGÁLT],tblÜnnepnapok[NAP]),0),6),INDEX(tblÜnnepnapok[],MATCH(DATE(NaptÉv-(DAY(F5)>15)+(ROW()>6),MONTH(F5),DAY(F5)),IF(TartottÜnnepek,tblÜnnepnapok[KORRIGÁLT],tblÜnnepnapok[NAP]),0),2),\"\"),\"\"),\"\")","v":""},{"$f":"IFERROR(IF(Ünnepnapok,IF(INDEX(tblÜnnepnapok[],MATCH(DATE(NaptÉv-(DAY(G5)>15)+(ROW()>6),MONTH(G5),DAY(G5)),IF(TartottÜnnepek,tblÜnnepnapok[KORRIGÁLT],tblÜnnepnapok[NAP]),0),6),INDEX(tblÜnnepnapok[],MATCH(DATE(NaptÉv-(DAY(G5)>15)+(ROW()>6),MONTH(G5),DAY(G5)),IF(TartottÜnnepek,tblÜnnepnapok[KORRIGÁLT],tblÜnnepnapok[NAP]),0),2),\"\"),\"\"),\"\")","v":""},{"$f":"IFERROR(IF(Ünnepnapok,IF(INDEX(tblÜnnepnapok[],MATCH(DATE(NaptÉv-(DAY(H5)>15)+(ROW()>6),MONTH(H5),DAY(H5)),IF(TartottÜnnepek,tblÜnnepnapok[KORRIGÁLT],tblÜnnepnapok[NAP]),0),6),INDEX(tblÜnnepnapok[],MATCH(DATE(NaptÉv-(DAY(H5)>15)+(ROW()>6),MONTH(H5),DAY(H5)),IF(TartottÜnnepek,tblÜnnepnapok[KORRIGÁLT],tblÜnnepnapok[NAP]),0),2),\"\"),\"\"),\"\")","v":""}]
[null,{"$f":"Napok+DATE(NaptÉv,1,1)-WEEKDAY(DATE(NaptÉv,1,1),(HétKezdete=\"HÉTFŐ\")+1)+8","v":"2018-01-07"},"2018-01-08","2018-01-09","2018-01-10","2018-01-11","2018-01-12","2018-01-13"]
[null,{"$f":"IFERROR(IF(Ünnepnapok,IF(INDEX(tblÜnnepnapok[],MATCH(DATE(NaptÉv,MONTH(B7),DAY(B7)),IF(TartottÜnnepek,tblÜnnepnapok[KORRIGÁLT],tblÜnnepnapok[NAP]),0),6),INDEX(tblÜnnepnapok[],MATCH(DATE(NaptÉv,MONTH(B7),DAY(B7)),IF(TartottÜnnepek,tblÜnnepnapok[KORRIGÁLT],tblÜnnepnapok[NAP]),0),2),\"\"),\"\"),\"\")","v":""},{"$f":"IFERROR(IF(Ünnepnapok,IF(INDEX(tblÜnnepnapok[],MATCH(DATE(NaptÉv,MONTH(C7),DAY(C7)),IF(TartottÜnnepek,tblÜnnepnapok[KORRIGÁLT],tblÜnnepnapok[NAP]),0),6),INDEX(tblÜnnepnapok[],MATCH(DATE(NaptÉv,MONTH(C7),DAY(C7)),IF(TartottÜnnepek,tblÜnnepnapok[KORRIGÁLT],tblÜnnepnapok[NAP]),0),2),\"\"),\"\"),\"\")","v":""},{"$f":"IFERROR(IF(Ünnepnapok,IF(INDEX(tblÜnnepnapok[],MATCH(DATE(NaptÉv,MONTH(D7),DAY(D7)),IF(TartottÜnnepek,tblÜnnepnapok[KORRIGÁLT],tblÜnnepnapok[NAP]),0),6),INDEX(tblÜnnepnapok[],MATCH(DATE(NaptÉv,MONTH(D7),DAY(D7)),IF(TartottÜnnepek,tblÜnnepnapok[KORRIGÁLT],tblÜnnepnapok[NAP]),0),2),\"\"),\"\"),\"\")","v":""},{"$f":"IFERROR(IF(Ünnepnapok,IF(INDEX(tblÜnnepnapok[],MATCH(DATE(NaptÉv,MONTH(E7),DAY(E7)),IF(TartottÜnnepek,tblÜnnepnapok[KORRIGÁLT],tblÜnnepnapok[NAP]),0),6),INDEX(tblÜnnepnapok[],MATCH(DATE(NaptÉv,MONTH(E7),DAY(E7)),IF(TartottÜnnepek,tblÜnnepnapok[KORRIGÁLT],tblÜnnepnapok[NAP]),0),2),\"\"),\"\"),\"\")","v":""},{"$f":"IFERROR(IF(Ünnepnapok,IF(INDEX(tblÜnnepnapok[],MATCH(DATE(NaptÉv,MONTH(F7),DAY(F7)),IF(TartottÜnnepek,tblÜnnepnapok[KORRIGÁLT],tblÜnnepnapok[NAP]),0),6),INDEX(tblÜnnepnapok[],MATCH(DATE(NaptÉv,MONTH(F7),DAY(F7)),IF(TartottÜnnepek,tblÜnnepnapok[KORRIGÁLT],tblÜnnepnapok[NAP]),0),2),\"\"),\"\"),\"\")","v":""},{"$f":"IFERROR(IF(Ünnepnapok,IF(INDEX(tblÜnnepnapok[],MATCH(DATE(NaptÉv,MONTH(G7),DAY(G7)),IF(TartottÜnnepek,tblÜnnepnapok[KORRIGÁLT],tblÜnnepnapok[NAP]),0),6),INDEX(tblÜnnepnapok[],MATCH(DATE(NaptÉv,MONTH(G7),DAY(G7)),IF(TartottÜnnepek,tblÜnnepnapok[KORRIGÁLT],tblÜnnepnapok[NAP]),0),2),\"\"),\"\"),\"\")","v":""},{"$f":"IFERROR(IF(Ünnepnapok,IF(INDEX(tblÜnnepnapok[],MATCH(DATE(NaptÉv,MONTH(H7),DAY(H7)),IF(TartottÜnnepek,tblÜnnepnapok[KORRIGÁLT],tblÜnnepnapok[NAP]),0),6),INDEX(tblÜnnepnapok[],MATCH(DATE(NaptÉv,MONTH(H7),DAY(H7)),IF(TartottÜnnepek,tblÜnnepnapok[KORRIGÁLT],tblÜnnepnapok[NAP]),0),2),\"\"),\"\"),\"\")","v":""}]
[null,{"$f":"Napok+DATE(NaptÉv,1,1)-WEEKDAY(DATE(NaptÉv,1,1),(HétKezdete=\"HÉTFŐ\")+1)+15","v":"2018-01-14"},"2018-01-15","2018-01-16","2018-01-17","2018-01-18","2018-01-19","2018-01-20"]
[null,{"$f":"IFERROR(IF(Ünnepnapok,IF(INDEX(tblÜnnepnapok[],MATCH(DATE(NaptÉv,MONTH(B9),DAY(B9)),IF(TartottÜnnepek,tblÜnnepnapok[KORRIGÁLT],tblÜnnepnapok[NAP]),0),6),INDEX(tblÜnnepnapok[],MATCH(DATE(NaptÉv,MONTH(B9),DAY(B9)),IF(TartottÜnnepek,tblÜnnepnapok[KORRIGÁLT],tblÜnnepnapok[NAP]),0),2),\"\"),\"\"),\"\")","v":""},{"$f":"IFERROR(IF(Ünnepnapok,IF(INDEX(tblÜnnepnapok[],MATCH(DATE(NaptÉv,MONTH(C9),DAY(C9)),IF(TartottÜnnepek,tblÜnnepnapok[KORRIGÁLT],tblÜnnepnapok[NAP]),0),6),INDEX(tblÜnnepnapok[],MATCH(DATE(NaptÉv,MONTH(C9),DAY(C9)),IF(TartottÜnnepek,tblÜnnepnapok[KORRIGÁLT],tblÜnnepnapok[NAP]),0),2),\"\"),\"\"),\"\")","v":"Martin Luther King, Jr. Day"},{"$f":"IFERROR(IF(Ünnepnapok,IF(INDEX(tblÜnnepnapok[],MATCH(DATE(NaptÉv,MONTH(D9),DAY(D9)),IF(TartottÜnnepek,tblÜnnepnapok[KORRIGÁLT],tblÜnnepnapok[NAP]),0),6),INDEX(tblÜnnepnapok[],MATCH(DATE(NaptÉv,MONTH(D9),DAY(D9)),IF(TartottÜnnepek,tblÜnnepnapok[KORRIGÁLT],tblÜnnepnapok[NAP]),0),2),\"\"),\"\"),\"\")","v":""},{"$f":"IFERROR(IF(Ünnepnapok,IF(INDEX(tblÜnnepnapok[],MATCH(DATE(NaptÉv,MONTH(E9),DAY(E9)),IF(TartottÜnnepek,tblÜnnepnapok[KORRIGÁLT],tblÜnnepnapok[NAP]),0),6),INDEX(tblÜnnepnapok[],MATCH(DATE(NaptÉv,MONTH(E9),DAY(E9)),IF(TartottÜnnepek,tblÜnnepnapok[KORRIGÁLT],tblÜnnepnapok[NAP]),0),2),\"\"),\"\"),\"\")","v":""},{"$f":"IFERROR(IF(Ünnepnapok,IF(INDEX(tblÜnnepnapok[],MATCH(DATE(NaptÉv,MONTH(F9),DAY(F9)),IF(TartottÜnnepek,tblÜnnepnapok[KORRIGÁLT],tblÜnnepnapok[NAP]),0),6),INDEX(tblÜnnepnapok[],MATCH(DATE(NaptÉv,MONTH(F9),DAY(F9)),IF(TartottÜnnepek,tblÜnnepnapok[KORRIGÁLT],tblÜnnepnapok[NAP]),0),2),\"\"),\"\"),\"\")","v":""},{"$f":"IFERROR(IF(Ünnepnapok,IF(INDEX(tblÜnnepnapok[],MATCH(DATE(NaptÉv,MONTH(G9),DAY(G9)),IF(TartottÜnnepek,tblÜnnepnapok[KORRIGÁLT],tblÜnnepnapok[NAP]),0),6),INDEX(tblÜnnepnapok[],MATCH(DATE(NaptÉv,MONTH(G9),DAY(G9)),IF(TartottÜnnepek,tblÜnnepnapok[KORRIGÁLT],tblÜnnepnapok[NAP]),0),2),\"\"),\"\"),\"\")","v":""},{"$f":"IFERROR(IF(Ünnepnapok,IF(INDEX(tblÜnnepnapok[],MATCH(DATE(NaptÉv,MONTH(H9),DAY(H9)),IF(TartottÜnnepek,tblÜnnepnapok[KORRIGÁLT],tblÜnnepnapok[NAP]),0),6),INDEX(tblÜnnepnapok[],MATCH(DATE(NaptÉv,MONTH(H9),DAY(H9)),IF(TartottÜnnepek,tblÜnnepnapok[KORRIGÁLT],tblÜnnepnapok[NAP]),0),2),\"\"),\"\"),\"\")","v":""}]
[null,{"$f":"Napok+DATE(NaptÉv,1,1)-WEEKDAY(DATE(NaptÉv,1,1),(HétKezdete=\"HÉTFŐ\")+1)+22","v":"2018-01-21"},"2018-01-22","2018-01-23","2018-01-24","2018-01-25","2018-01-26","2018-01-27"]
[null,{"$f":"IFERROR(IF(Ünnepnapok,IF(INDEX(tblÜnnepnapok[],MATCH(DATE(NaptÉv,MONTH(B11),DAY(B11)),IF(TartottÜnnepek,tblÜnnepnapok[KORRIGÁLT],tblÜnnepnapok[NAP]),0),6),INDEX(tblÜnnepnapok[],MATCH(DATE(NaptÉv,MONTH(B11),DAY(B11)),IF(TartottÜnnepek,tblÜnnepnapok[KORRIGÁLT],tblÜnnepnapok[NAP]),0),2),\"\"),\"\"),\"\")","v":""},{"$f":"IFERROR(IF(Ünnepnapok,IF(INDEX(tblÜnnepnapok[],MATCH(DATE(NaptÉv,MONTH(C11),DAY(C11)),IF(TartottÜnnepek,tblÜnnepnapok[KORRIGÁLT],tblÜnnepnapok[NAP]),0),6),INDEX(tblÜnnepnapok[],MATCH(DATE(NaptÉv,MONTH(C11),DAY(C11)),IF(TartottÜnnepek,tblÜnnepnapok[KORRIGÁLT],tblÜnnepnapok[NAP]),0),2),\"\"),\"\"),\"\")","v":""},{"$f":"IFERROR(IF(Ünnepnapok,IF(INDEX(tblÜnnepnapok[],MATCH(DATE(NaptÉv,MONTH(D11),DAY(D11)),IF(TartottÜnnepek,tblÜnnepnapok[KORRIGÁLT],tblÜnnepnapok[NAP]),0),6),INDEX(tblÜnnepnapok[],MATCH(DATE(NaptÉv,MONTH(D11),DAY(D11)),IF(TartottÜnnepek,tblÜnnepnapok[KORRIGÁLT],tblÜnnepnapok[NAP]),0),2),\"\"),\"\"),\"\")","v":""},{"$f":"IFERROR(IF(Ünnepnapok,IF(INDEX(tblÜnnepnapok[],MATCH(DATE(NaptÉv,MONTH(E11),DAY(E11)),IF(TartottÜnnepek,tblÜnnepnapok[KORRIGÁLT],tblÜnnepnapok[NAP]),0),6),INDEX(tblÜnnepnapok[],MATCH(DATE(NaptÉv,MONTH(E11),DAY(E11)),IF(TartottÜnnepek,tblÜnnepnapok[KORRIGÁLT],tblÜnnepnapok[NAP]),0),2),\"\"),\"\"),\"\")","v":""},{"$f":"IFERROR(IF(Ünnepnapok,IF(INDEX(tblÜnnepnapok[],MATCH(DATE(NaptÉv,MONTH(F11),DAY(F11)),IF(TartottÜnnepek,tblÜnnepnapok[KORRIGÁLT],tblÜnnepnapok[NAP]),0),6),INDEX(tblÜnnepnapok[],MATCH(DATE(NaptÉv,MONTH(F11),DAY(F11)),IF(TartottÜnnepek,tblÜnnepnapok[KORRIGÁLT],tblÜnnepnapok[NAP]),0),2),\"\"),\"\"),\"\")","v":""},{"$f":"IFERROR(IF(Ünnepnapok,IF(INDEX(tblÜnnepnapok[],MATCH(DATE(NaptÉv,MONTH(G11),DAY(G11)),IF(TartottÜnnepek,tblÜnnepnapok[KORRIGÁLT],tblÜnnepnapok[NAP]),0),6),INDEX(tblÜnnepnapok[],MATCH(DATE(NaptÉv,MONTH(G11),DAY(G11)),IF(TartottÜnnepek,tblÜnnepnapok[KORRIGÁLT],tblÜnnepnapok[NAP]),0),2),\"\"),\"\"),\"\")","v":""},{"$f":"IFERROR(IF(Ünnepnapok,IF(INDEX(tblÜnnepnapok[],MATCH(DATE(NaptÉv,MONTH(H11),DAY(H11)),IF(TartottÜnnepek,tblÜnnepnapok[KORRIGÁLT],tblÜnnepnapok[NAP]),0),6),INDEX(tblÜnnepnapok[],MATCH(DATE(NaptÉv,MONTH(H11),DAY(H11)),IF(TartottÜnnepek,tblÜnnepnapok[KORRIGÁLT],tblÜnnepnapok[NAP]),0),2),\"\"),\"\"),\"\")","v":""}]
[null,{"$f":"Napok+DATE(NaptÉv,1,1)-WEEKDAY(DATE(NaptÉv,1,1),(HétKezdete=\"HÉTFŐ\")+1)+29","v":"2018-01-28"},"2018-01-29","2018-01-30","2018-01-31","2018-02-01","2018-02-02","2018-02-03"]
[null,{"$f":"IFERROR(IF(Ünnepnapok,IF(INDEX(tblÜnnepnapok[],MATCH(DATE(NaptÉv,MONTH(B13),DAY(B13)),IF(TartottÜnnepek,tblÜnnepnapok[KORRIGÁLT],tblÜnnepnapok[NAP]),0),6),INDEX(tblÜnnepnapok[],MATCH(DATE(NaptÉv,MONTH(B13),DAY(B13)),IF(TartottÜnnepek,tblÜnnepnapok[KORRIGÁLT],tblÜnnepnapok[NAP]),0),2),\"\"),\"\"),\"\")","v":""},{"$f":"IFERROR(IF(Ünnepnapok,IF(INDEX(tblÜnnepnapok[],MATCH(DATE(NaptÉv,MONTH(C13),DAY(C13)),IF(TartottÜnnepek,tblÜnnepnapok[KORRIGÁLT],tblÜnnepnapok[NAP]),0),6),INDEX(tblÜnnepnapok[],MATCH(DATE(NaptÉv,MONTH(C13),DAY(C13)),IF(TartottÜnnepek,tblÜnnepnapok[KORRIGÁLT],tblÜnnepnapok[NAP]),0),2),\"\"),\"\"),\"\")","v":""},{"$f":"IFERROR(IF(Ünnepnapok,IF(INDEX(tblÜnnepnapok[],MATCH(DATE(NaptÉv,MONTH(D13),DAY(D13)),IF(TartottÜnnepek,tblÜnnepnapok[KORRIGÁLT],tblÜnnepnapok[NAP]),0),6),INDEX(tblÜnnepnapok[],MATCH(DATE(NaptÉv,MONTH(D13),DAY(D13)),IF(TartottÜnnepek,tblÜnnepnapok[KORRIGÁLT],tblÜnnepnapok[NAP]),0),2),\"\"),\"\"),\"\")","v":""},{"$f":"IFERROR(IF(Ünnepnapok,IF(INDEX(tblÜnnepnapok[],MATCH(DATE(NaptÉv,MONTH(E13),DAY(E13)),IF(TartottÜnnepek,tblÜnnepnapok[KORRIGÁLT],tblÜnnepnapok[NAP]),0),6),INDEX(tblÜnnepnapok[],MATCH(DATE(NaptÉv,MONTH(E13),DAY(E13)),IF(TartottÜnnepek,tblÜnnepnapok[KORRIGÁLT],tblÜnnepnapok[NAP]),0),2),\"\"),\"\"),\"\")","v":""},{"$f":"IFERROR(IF(Ünnepnapok,IF(INDEX(tblÜnnepnapok[],MATCH(DATE(NaptÉv,MONTH(F13),DAY(F13)),IF(TartottÜnnepek,tblÜnnepnapok[KORRIGÁLT],tblÜnnepnapok[NAP]),0),6),INDEX(tblÜnnepnapok[],MATCH(DATE(NaptÉv,MONTH(F13),DAY(F13)),IF(TartottÜnnepek,tblÜnnepnapok[KORRIGÁLT],tblÜnnepnapok[NAP]),0),2),\"\"),\"\"),\"\")","v":""},{"$f":"IFERROR(IF(Ünnepnapok,IF(INDEX(tblÜnnepnapok[],MATCH(DATE(NaptÉv,MONTH(G13),DAY(G13)),IF(TartottÜnnepek,tblÜnnepnapok[KORRIGÁLT],tblÜnnepnapok[NAP]),0),6),INDEX(tblÜnnepnapok[],MATCH(DATE(NaptÉv,MONTH(G13),DAY(G13)),IF(TartottÜnnepek,tblÜnnepnapok[KORRIGÁLT],tblÜnnepnapok[NAP]),0),2),\"\"),\"\"),\"\")","v":""},{"$f":"IFERROR(IF(Ünnepnapok,IF(INDEX(tblÜnnepnapok[],MATCH(DATE(NaptÉv,MONTH(H13),DAY(H13)),IF(TartottÜnnepek,tblÜnnepnapok[KORRIGÁLT],tblÜnnepnapok[NAP]),0),6),INDEX(tblÜnnepnapok[],MATCH(DATE(NaptÉv,MONTH(H13),DAY(H13)),IF(TartottÜnnepek,tblÜnnepnapok[KORRIGÁLT],tblÜnnepnapok[NAP]),0),2),\"\"),\"\"),\"\")","v":""}]
[null,{"$f":"Napok+DATE(NaptÉv,1,1)-WEEKDAY(DATE(NaptÉv,1,1),(HétKezdete=\"HÉTFŐ\")+1)+36","v":"2018-02-04"},"2018-02-05","MEGJEGYZÉSEK"]
[null,{"$f":"IFERROR(IF(Ünnepnapok,IF(INDEX(tblÜnnepnapok[],MATCH(DATE(NaptÉv,MONTH(B15),DAY(B15)),IF(TartottÜnnepek,tblÜnnepnapok[KORRIGÁLT],tblÜnnepnapok[NAP]),0),6),INDEX(tblÜnnepnapok[],MATCH(DATE(NaptÉv,MONTH(B15),DAY(B15)),IF(TartottÜnnepek,tblÜnnepnapok[KORRIGÁLT],tblÜnnepnapok[NAP]),0),2),\"\"),\"\"),\"\")","v":""},{"$f":"IFERROR(IF(Ünnepnapok,IF(INDEX(tblÜnnepnapok[],MATCH(DATE(NaptÉv,MONTH(C15),DAY(C15)),IF(TartottÜnnepek,tblÜnnepnapok[KORRIGÁLT],tblÜnnepnapok[NAP]),0),6),INDEX(tblÜnnepnapok[],MATCH(DATE(NaptÉv,MONTH(C15),DAY(C15)),IF(TartottÜnnepek,tblÜnnepnapok[KORRIGÁLT],tblÜnnepnapok[NAP]),0),2),\"\"),\"\"),\"\")","v":""}]
[null,{"$f":"IF(Ünnepnapok!$C$6=\"Martin Luther King, Jr. Day *\",\"* Martin Luther King Jr. Day and Inaguration Day\", \"\")","v":""}]

{"sheet":"Február","index":2,"n_rows":16,"n_cols":8,"rows_kept":16,"merged":[[1,1,1,3],[14,3,14,7],[15,3,15,7],[16,1,16,7]]}
[]
[null,{"$f":"B9","v":"2018-02-11"}]
[]
[null,{"$f":"HétKezdete","v":"VASÁRNAP"},{"$f":"UPPER(TEXT(C5,\"nnnn\"))","v":"HÉTFŐ"},"KEDD","SZERDA","CSÜTÖRTÖK","PÉNTEK","SZOMBAT"]
[null,{"$f":"Napok+DATE(NaptÉv,2,1)-WEEKDAY(DATE(NaptÉv,2,1),(HétKezdete=\"HÉTFŐ\")+1)+1","v":"2018-01-28"},"2018-01-29","2018-01-30","2018-01-31","2018-02-01","2018-02-02","2018-02-03"]
[null,{"$f":"IFERROR(IF(Ünnepnapok,IF(INDEX(tblÜnnepnapok[],MATCH(DATE(NaptÉv-(DAY(B5)>15)+(ROW()>6),MONTH(B5),DAY(B5)),IF(TartottÜnnepek,tblÜnnepnapok[KORRIGÁLT],tblÜnnepnapok[NAP]),0),6),INDEX(tblÜnnepnapok[],MATCH(DATE(NaptÉv-(DAY(B5)>15)+(ROW()>6),MONTH(B5),DAY(B5)),IF(TartottÜnnepek,tblÜnnepnapok[KORRIGÁLT],tblÜnnepnapok[NAP]),0),2),\"\"),\"\"),\"\")","v":""},{"$f":"IFERROR(IF(Ünnepnapok,IF(INDEX(tblÜnnepnapok[],MATCH(DATE(NaptÉv-(DAY(C5)>15)+(ROW()>6),MONTH(C5),DAY(C5)),IF(TartottÜnnepek,tblÜnnepnapok[KORRIGÁLT],tblÜnnepnapok[NAP]),0),6),INDEX(tblÜnnepnapok[],MATCH(DATE(NaptÉv-(DAY(C5)>15)+(ROW()>6),MONTH(C5),DAY(C5)),IF(TartottÜnnepek,tblÜnnepnapok[KORRIGÁLT],tblÜnnepnapok[NAP]),0),2),\"\"),\"\"),\"\")","v":""},{"$f":"IFERROR(IF(Ünnepnapok,IF(INDEX(tblÜnnepnapok[],MATCH(DATE(NaptÉv-(DAY(D5)>15)+(ROW()>6),MONTH(D5),DAY(D5)),IF(TartottÜnnepek,tblÜnnepnapok[KORRIGÁLT],tblÜnnepnapok[NAP]),0),6),INDEX(tblÜnnepnapok[],MATCH(DATE(NaptÉv-(DAY(D5)>15)+(ROW()>6),MONTH(D5),DAY(D5)),IF(TartottÜnnepek,tblÜnnepnapok[KORRIGÁLT],tblÜnnepnapok[NAP]),0),2),\"\"),\"\"),\"\")","v":""},{"$f":"IFERROR(IF(Ünnepnapok,IF(INDEX(tblÜnnepnapok[],MATCH(DATE(NaptÉv-(DAY(E5)>15)+(ROW()>6),MONTH(E5),DAY(E5)),IF(TartottÜnnepek,tblÜnnepnapok[KORRIGÁLT],tblÜnnepnapok[NAP]),0),6),INDEX(tblÜnnepnapok[],MATCH(DATE(NaptÉv-(DAY(E5)>15)+(ROW()>6),MONTH(E5),DAY(E5)),IF(TartottÜnnepek,tblÜnnepnapok[KORRIGÁLT],tblÜnnepnapok[NAP]),0),2),\"\"),\"\"),\"\")","v":""},{"$f":"IFERROR(IF(Ünnepnapok,IF(INDEX(tblÜnnepnapok[],MATCH(DATE(NaptÉv-(DAY(F5)>15)+(ROW()>6),MONTH(F5),DAY(F5)),IF(TartottÜnnepek,tblÜnnepnapok[KORRIGÁLT],tblÜnnepnapok[NAP]),0),6),INDEX(tblÜnnepnapok[],MATCH(DATE(NaptÉv-(DAY(F5)>15)+(ROW()>6),MONTH(F5),DAY(F5)),IF(TartottÜnnepek,tblÜnnepnapok[KORRIGÁLT],tblÜnnepnapok[NAP]),0),2),\"\"),\"\"),\"\")","v":""},{"$f":"IFERROR(IF(Ünnepnapok,IF(INDEX(tblÜnnepnapok[],MATCH(DATE(NaptÉv-(DAY(G5)>15)+(ROW()>6),MONTH(G5),DAY(G5)),IF(TartottÜnnepek,tblÜnnepnapok[KORRIGÁLT],tblÜnnepnapok[NAP]),0),6),INDEX(tblÜnnepnapok[],MATCH(DATE(NaptÉv-(DAY(G5)>15)+(ROW()>6),MONTH(G5),DAY(G5)),IF(TartottÜnnepek,tblÜnnepnapok[KORRIGÁLT],tblÜnnepnapok[NAP]),0),2),\"\"),\"\"),\"\")","v":""},{"$f":"IFERROR(IF(Ünnepnapok,IF(INDEX(tblÜnnepnapok[],MATCH(DATE(NaptÉv-(DAY(H5)>15)+(ROW()>6),MONTH(H5),DAY(H5)),IF(TartottÜnnepek,tblÜnnepnapok[KORRIGÁLT],tblÜnnepnapok[NAP]),0),6),INDEX(tblÜnnepnapok[],MATCH(DATE(NaptÉv-(DAY(H5)>15)+(ROW()>6),MONTH(H5),DAY(H5)),IF(TartottÜnnepek,tblÜnnepnapok[KORRIGÁLT],tblÜnnepnapok[NAP]),0),2),\"\"),\"\"),\"\")","v":""}]
[null,{"$f":"Napok+DATE(NaptÉv,2,1)-WEEKDAY(DATE(NaptÉv,2,1),(HétKezdete=\"HÉTFŐ\")+1)+8","v":"2018-02-04"},"2018-02-05","2018-02-06","2018-02-07","2018-02-08","2018-02-09","2018-02-10"]
[null,{"$f":"IFERROR(IF(Ünnepnapok,IF(INDEX(tblÜnnepnapok[],MATCH(DATE(NaptÉv,MONTH(B7),DAY(B7)),IF(TartottÜnnepek,tblÜnnepnapok[KORRIGÁLT],tblÜnnepnapok[NAP]),0),6),INDEX(tblÜnnepnapok[],MATCH(DATE(NaptÉv,MONTH(B7),DAY(B7)),IF(TartottÜnnepek,tblÜnnepnapok[KORRIGÁLT],tblÜnnepnapok[NAP]),0),2),\"\"),\"\"),\"\")","v":""},{"$f":"IFERROR(IF(Ünnepnapok,IF(INDEX(tblÜnnepnapok[],MATCH(DATE(NaptÉv,MONTH(C7),DAY(C7)),IF(TartottÜnnepek,tblÜnnepnapok[KORRIGÁLT],tblÜnnepnapok[NAP]),0),6),INDEX(tblÜnnepnapok[],MATCH(DATE(NaptÉv,MONTH(C7),DAY(C7)),IF(TartottÜnnepek,tblÜnnepnapok[KORRIGÁLT],tblÜnnepnapok[NAP]),0),2),\"\"),\"\"),\"\")","v":""},{"$f":"IFERROR(IF(Ünnepnapok,IF(INDEX(tblÜnnepnapok[],MATCH(DATE(NaptÉv,MONTH(D7),DAY(D7)),IF(TartottÜnnepek,tblÜnnepnapok[KORRIGÁLT],tblÜnnepnapok[NAP]),0),6),INDEX(tblÜnnepnapok[],MATCH(DATE(NaptÉv,MONTH(D7),DAY(D7)),IF(TartottÜnnepek,tblÜnnepnapok[KORRIGÁLT],tblÜnnepnapok[NAP]),0),2),\"\"),\"\"),\"\")","v":""},{"$f":"IFERROR(IF(Ünnepnapok,IF(INDEX(tblÜnnepnapok[],MATCH(DATE(NaptÉv,MONTH(E7),DAY(E7)),IF(TartottÜnnepek,tblÜnnepnapok[KORRIGÁLT],tblÜnnepnapok[NAP]),0),6),INDEX(tblÜnnepnapok[],MATCH(DATE(NaptÉv,MONTH(E7),DAY(E7)),IF(TartottÜnnepek,tblÜnnepnapok[KORRIGÁLT],tblÜnnepnapok[NAP]),0),2),\"\"),\"\"),\"\")","v":""},{"$f":"IFERROR(IF(Ünnepnapok,IF(INDEX(tblÜnnepnapok[],MATCH(DATE(NaptÉv,MONTH(F7),DAY(F7)),IF(TartottÜnnepek,tblÜnnepnapok[KORRIGÁLT],tblÜnnepnapok[NAP]),0),6),INDEX(tblÜnnepnapok[],MATCH(DATE(NaptÉv,MONTH(F7),DAY(F7)),IF(TartottÜnnepek,tblÜnnepnapok[KORRIGÁLT],tblÜnnepnapok[NAP]),0),2),\"\"),\"\"),\"\")","v":""},{"$f":"IFERROR(IF(Ünnepnapok,IF(INDEX(tblÜnnepnapok[],MATCH(DATE(NaptÉv,MONTH(G7),DAY(G7)),IF(TartottÜnnepek,tblÜnnepnapok[KORRIGÁLT],tblÜnnepnapok[NAP]),0),6),INDEX(tblÜnnepnapok[],MATCH(DATE(NaptÉv,MONTH(G7),DAY(G7)),IF(TartottÜnnepek,tblÜnnepnapok[KORRIGÁLT],tblÜnnepnapok[NAP]),0),2),\"\"),\"\"),\"\")","v":""},{"$f":"IFERROR(IF(Ünnepnapok,IF(INDEX(tblÜnnepnapok[],MATCH(DATE(NaptÉv,MONTH(H7),DAY(H7)),IF(TartottÜnnepek,tblÜnnepnapok[KORRIGÁLT],tblÜnnepnapok[NAP]),0),6),INDEX(tblÜnnepnapok[],MATCH(DATE(NaptÉv,MONTH(H7),DAY(H7)),IF(TartottÜnnepek,tblÜnnepnapok[KORRIGÁLT],tblÜnnepnapok[NAP]),0),2),\"\"),\"\"),\"\")","v":""}]
[null,{"$f":"Napok+DATE(NaptÉv,2,1)-WEEKDAY(DATE(NaptÉv,2,1),(HétKezdete=\"HÉTFŐ\")+1)+15","v":"2018-02-11"},"2018-02-12","2018-02-13","2018-02-14","2018-02-15","2018-02-16","2018-02-17"]
[null,{"$f":"IFERROR(IF(Ünnepnapok,IF(INDEX(tblÜnnepnapok[],MATCH(DATE(NaptÉv,MONTH(B9),DAY(B9)),IF(TartottÜnnepek,tblÜnnepnapok[KORRIGÁLT],tblÜnnepnapok[NAP]),0),6),INDEX(tblÜnnepnapok[],MATCH(DATE(NaptÉv,MONTH(B9),DAY(B9)),IF(TartottÜnnepek,tblÜnnepnapok[KORRIGÁLT],tblÜnnepnapok[NAP]),0),2),\"\"),\"\"),\"\")","v":""},{"$f":"IFERROR(IF(Ünnepnapok,IF(INDEX(tblÜnnepnapok[],MATCH(DATE(NaptÉv,MONTH(C9),DAY(C9)),IF(TartottÜnnepek,tblÜnnepnapok[KORRIGÁLT],tblÜnnepnapok[NAP]),0),6),INDEX(tblÜnnepnapok[],MATCH(DATE(NaptÉv,MONTH(C9),DAY(C9)),IF(TartottÜnnepek,tblÜnnepnapok[KORRIGÁLT],tblÜnnepnapok[NAP]),0),2),\"\"),\"\"),\"\")","v":""},{"$f":"IFERROR(IF(Ünnepnapok,IF(INDEX(tblÜnnepnapok[],MATCH(DATE(NaptÉv,MONTH(D9),DAY(D9)),IF(TartottÜnnepek,tblÜnnepnapok[KORRIGÁLT],tblÜnnepnapok[NAP]),0),6),INDEX(tblÜnnepnapok[],MATCH(DATE(NaptÉv,MONTH(D9),DAY(D9)),IF(TartottÜnnepek,tblÜnnepnapok[KORRIGÁLT],tblÜnnepnapok[NAP]),0),2),\"\"),\"\"),\"\")","v":""},{"$f":"IFERROR(IF(Ünnepnapok,IF(INDEX(tblÜnnepnapok[],MATCH(DATE(NaptÉv,MONTH(E9),DAY(E9)),IF(TartottÜnnepek,tblÜnnepnapok[KORRIGÁLT],tblÜnnepnapok[NAP]),0),6),INDEX(tblÜnnepnapok[],MATCH(DATE(NaptÉv,MONTH(E9),DAY(E9)),IF(TartottÜnnepek,tblÜnnepnapok[KORRIGÁLT],tblÜnnepnapok[NAP]),0),2),\"\"),\"\"),\"\")","v":""},{"$f":"IFERROR(IF(Ünnepnapok,IF(INDEX(tblÜnnepnapok[],MATCH(DATE(NaptÉv,MONTH(F9),DAY(F9)),IF(TartottÜnnepek,tblÜnnepnapok[KORRIGÁLT],tblÜnnepnapok[NAP]),0),6),INDEX(tblÜnnepnapok[],MATCH(DATE(NaptÉv,MONTH(F9),DAY(F9)),IF(TartottÜnnepek,tblÜnnepnapok[KORRIGÁLT],tblÜnnepnapok[NAP]),0),2),\"\"),\"\"),\"\")","v":""},{"$f":"IFERROR(IF(Ünnepnapok,IF(INDEX(tblÜnnepnapok[],MATCH(DATE(NaptÉv,MONTH(G9),DAY(G9)),IF(TartottÜnnepek,tblÜnnepnapok[KORRIGÁLT],tblÜnnepnapok[NAP]),0),6),INDEX(tblÜnnepnapok[],MATCH(DATE(NaptÉv,MONTH(G9),DAY(G9)),IF(TartottÜnnepek,tblÜnnepnapok[KORRIGÁLT],tblÜnnepnapok[NAP]),0),2),\"\"),\"\"),\"\")","v":""},{"$f":"IFERROR(IF(Ünnepnapok,IF(INDEX(tblÜnnepnapok[],MATCH(DATE(NaptÉv,MONTH(H9),DAY(H9)),IF(TartottÜnnepek,tblÜnnepnapok[KORRIGÁLT],tblÜnnepnapok[NAP]),0),6),INDEX(tblÜnnepnapok[],MATCH(DATE(NaptÉv,MONTH(H9),DAY(H9)),IF(TartottÜnnepek,tblÜnnepnapok[KORRIGÁLT],tblÜnnepnapok[NAP]),0),2),\"\"),\"\"),\"\")","v":""}]
[null,{"$f":"Napok+DATE(NaptÉv,2,1)-WEEKDAY(DATE(NaptÉv,2,1),(HétKezdete=\"HÉTFŐ\")+1)+22","v":"2018-02-18"},"2018-02-19","2018-02-20","2018-02-21","2018-02-22","2018-02-23","2018-02-24"]
[null,{"$f":"IFERROR(IF(Ünnepnapok,IF(INDEX(tblÜnnepnapok[],MATCH(DATE(NaptÉv,MONTH(B11),DAY(B11)),IF(TartottÜnnepek,tblÜnnepnapok[KORRIGÁLT],tblÜnnepnapok[NAP]),0),6),INDEX(tblÜnnepnapok[],MATCH(DATE(NaptÉv,MONTH(B11),DAY(B11)),IF(TartottÜnnepek,tblÜnnepnapok[KORRIGÁLT],tblÜnnepnapok[NAP]),0),2),\"\"),\"\"),\"\")","v":""},{"$f":"IFERROR(IF(Ünnepnapok,IF(INDEX(tblÜnnepnapok[],MATCH(DATE(NaptÉv,MONTH(C11),DAY(C11)),IF(TartottÜnnepek,tblÜnnepnapok[KORRIGÁLT],tblÜnnepnapok[NAP]),0),6),INDEX(tblÜnnepnapok[],MATCH(DATE(NaptÉv,MONTH(C11),DAY(C11)),IF(TartottÜnnepek,tblÜnnepnapok[KORRIGÁLT],tblÜnnepnapok[NAP]),0),2),\"\"),\"\"),\"\")","v":"Nagypéntek"},{"$f":"IFERROR(IF(Ünnepnapok,IF(INDEX(tblÜnnepnapok[],MATCH(DATE(NaptÉv,MONTH(D11),DAY(D11)),IF(TartottÜnnepek,tblÜnnepnapok[KORRIGÁLT],tblÜnnepnapok[NAP]),0),6),INDEX(tblÜnnepnapok[],MATCH(DATE(NaptÉv,MONTH(D11),DAY(D11)),IF(TartottÜnnepek,tblÜnnepnapok[KORRIGÁLT],tblÜnnepnapok[NAP]),0),2),\"\"),\"\"),\"\")","v":""},{"$f":"IFERROR(IF(Ünnepnapok,IF(INDEX(tblÜnnepnapok[],MATCH(DATE(NaptÉv,MONTH(E11),DAY(E11)),IF(TartottÜnnepek,tblÜnnepnapok[KORRIGÁLT],tblÜnnepnapok[NAP]),0),6),INDEX(tblÜnnepnapok[],MATCH(DATE(NaptÉv,MONTH(E11),DAY(E11)),IF(TartottÜnnepek,tblÜnnepnapok[KORRIGÁLT],tblÜnnepnapok[NAP]),0),2),\"\"),\"\"),\"\")","v":""},{"$f":"IFERROR(IF(Ünnepnapok,IF(INDEX(tblÜnnepnapok[],MATCH(DATE(NaptÉv,MONTH(F11),DAY(F11)),IF(TartottÜnnepek,tblÜnnepnapok[KORRIGÁLT],tblÜnnepnapok[NAP]),0),6),INDEX(tblÜnnepnapok[],MATCH(DATE(NaptÉv,MONTH(F11),DAY(F11)),IF(TartottÜnnepek,tblÜnnepnapok[KORRIGÁLT],tblÜnnepnapok[NAP]),0),2),\"\"),\"\"),\"\")","v":""},{"$f":"IFERROR(IF(Ünnepnapok,IF(INDEX(tblÜnnepnapok[],MATCH(DATE(NaptÉv,MONTH(G11),DAY(G11)),IF(TartottÜnnepek,tblÜnnepnapok[KORRIGÁLT],tblÜnnepnapok[NAP]),0),6),INDEX(tblÜnnepnapok[],MATCH(DATE(NaptÉv,MONTH(G11),DAY(G11)),IF(TartottÜnnepek,tblÜnnepnapok[KORRIGÁLT],tblÜnnepnapok[NAP]),0),2),\"\"),\"\"),\"\")","v":""},{"$f":"IFERROR(IF(Ünnepnapok,IF(INDEX(tblÜnnepnapok[],MATCH(DATE(NaptÉv,MONTH(H11),DAY(H11)),IF(TartottÜnnepek,tblÜnnepnapok[KORRIGÁLT],tblÜnnepnapok[NAP]),0),6),INDEX(tblÜnnepnapok[],MATCH(DATE(NaptÉv,MONTH(H11),DAY(H11)),IF(TartottÜnnepek,tblÜnnepnapok[KORRIGÁLT],tblÜnnepnapok[NAP]),0),2),\"\"),\"\"),\"\")","v":""}]
[null,{"$f":"Napok+DATE(NaptÉv,2,1)-WEEKDAY(DATE(NaptÉv,2,1),(HétKezdete=\"HÉTFŐ\")+1)+29","v":"2018-02-25"},"2018-02-26","2018-02-27","2018-02-28","2018-03-01","2018-03-02","2018-03-03"]
[null,{"$f":"IFERROR(IF(Ünnepnapok,IF(INDEX(tblÜnnepnapok[],MATCH(DATE(NaptÉv,MONTH(B13),DAY(B13)),IF(TartottÜnnepek,tblÜnnepnapok[KORRIGÁLT],tblÜnnepnapok[NAP]),0),6),INDEX(tblÜnnepnapok[],MATCH(DATE(NaptÉv,MONTH(B13),DAY(B13)),IF(TartottÜnnepek,tblÜnnepnapok[KORRIGÁLT],tblÜnnepnapok[NAP]),0),2),\"\"),\"\"),\"\")","v":""},{"$f":"IFERROR(IF(Ünnepnapok,IF(INDEX(tblÜnnepnapok[],MATCH(DATE(NaptÉv,MONTH(C13),DAY(C13)),IF(TartottÜnnepek,tblÜnnepnapok[KORRIGÁLT],tblÜnnepnapok[NAP]),0),6),INDEX(tblÜnnepnapok[],MATCH(DATE(NaptÉv,MONTH(C13),DAY(C13)),IF(TartottÜnnepek,tblÜnnepnapok[KORRIGÁLT],tblÜnnepnapok[NAP]),0),2),\"\"),\"\"),\"\")","v":""},{"$f":"IFERROR(IF(Ünnepnapok,IF(INDEX(tblÜnnepnapok[],MATCH(DATE(NaptÉv,MONTH(D13),DAY(D13)),IF(TartottÜnnepek,tblÜnnepnapok[KORRIGÁLT],tblÜnnepnapok[NAP]),0),6),INDEX(tblÜnnepnapok[],MATCH(DATE(NaptÉv,MONTH(D13),DAY(D13)),IF(TartottÜnnepek,tblÜnnepnapok[KORRIGÁLT],tblÜnnepnapok[NAP]),0),2),\"\"),\"\"),\"\")","v":""},{"$f":"IFERROR(IF(Ünnepnapok,IF(INDEX(tblÜnnepnapok[],MATCH(DATE(NaptÉv,MONTH(E13),DAY(E13)),IF(TartottÜnnepek,tblÜnnepnapok[KORRIGÁLT],tblÜnnepnapok[NAP]),0),6),INDEX(tblÜnnepnapok[],MATCH(DATE(NaptÉv,MONTH(E13),DAY(E13)),IF(TartottÜnnepek,tblÜnnepnapok[KORRIGÁLT],tblÜnnepnapok[NAP]),0),2),\"\"),\"\"),\"\")","v":""},{"$f":"IFERROR(IF(Ünnepnapok,IF(INDEX(tblÜnnepnapok[],MATCH(DATE(NaptÉv,MONTH(F13),DAY(F13)),IF(TartottÜnnepek,tblÜnnepnapok[KORRIGÁLT],tblÜnnepnapok[NAP]),0),6),INDEX(tblÜnnepnapok[],MATCH(DATE(NaptÉv,MONTH(F13),DAY(F13)),IF(TartottÜnnepek,tblÜnnepnapok[KORRIGÁLT],tblÜnnepnapok[NAP]),0),2),\"\"),\"\"),\"\")","v":""},{"$f":"IFERROR(IF(Ünnepnapok,IF(INDEX(tblÜnnepnapok[],MATCH(DATE(NaptÉv,MONTH(G13),DAY(G13)),IF(TartottÜnnepek,tblÜnnepnapok[KORRIGÁLT],tblÜnnepnapok[NAP]),0),6),INDEX(tblÜnnepnapok[],MATCH(DATE(NaptÉv,MONTH(G13),DAY(G13)),IF(TartottÜnnepek,tblÜnnepnapok[KORRIGÁLT],tblÜnnepnapok[NAP]),0),2),\"\"),\"\"),\"\")","v":""},{"$f":"IFERROR(IF(Ünnepnapok,IF(INDEX(tblÜnnepnapok[],MATCH(DATE(NaptÉv,MONTH(H13),DAY(H13)),IF(TartottÜnnepek,tblÜnnepnapok[KORRIGÁLT],tblÜnnepnapok[NAP]),0),6),INDEX(tblÜnnepnapok[],MATCH(DATE(NaptÉv,MONTH(H13),DAY(H13)),IF(TartottÜnnepek,tblÜnnepnapok[KORRIGÁLT],tblÜnnepnapok[NAP]),0),2),\"\"),\"\"),\"\")","v":""}]
[null,{"$f":"Napok+DATE(NaptÉv,2,1)-WEEKDAY(DATE(NaptÉv,2,1),(HétKezdete=\"HÉTFŐ\")+1)+36","v":"2018-03-04"},"2018-03-05","MEGJEGYZÉSEK"]
[null,{"$f":"IFERROR(IF(Ünnepnapok,IF(INDEX(tblÜnnepnapok[],MATCH(DATE(NaptÉv,MONTH(B15),DAY(B15)),IF(TartottÜnnepek,tblÜnnepnapok[KORRIGÁLT],tblÜnnepnapok[NAP]),0),6),INDEX(tblÜnnepnapok[],MATCH(DATE(NaptÉv,MONTH(B15),DAY(B15)),IF(TartottÜnnepek,tblÜnnepnapok[KORRIGÁLT],tblÜnnepnapok[NAP]),0),2),\"\"),\"\"),\"\")","v":""},{"$f":"IFERROR(IF(Ünnepnapok,IF(INDEX(tblÜnnepnapok[],MATCH(DATE(NaptÉv,MONTH(C15),DAY(C15)),IF(TartottÜnnepek,tblÜnnepnapok[KORRIGÁLT],tblÜnnepnapok[NAP]),0),6),INDEX(tblÜnnepnapok[],MATCH(DATE(NaptÉv,MONTH(C15),DAY(C15)),IF(TartottÜnnepek,tblÜnnepnapok[KORRIGÁLT],tblÜnnepnapok[NAP]),0),2),\"\"),\"\"),\"\")","v":""}]

{"sheet":"Március","index":3,"n_rows":16,"n_cols":8,"rows_kept":16,"merged":[[1,1,1,3],[14,3,14,7],[15,3,15,7],[16,1,16,7]]}
[]
[null,{"$f":"B9","v":"2018-03-11"}]
[]
[null,{"$f":"HétKezdete","v":"VASÁRNAP"},{"$f":"UPPER(TEXT(C5,\"nnnn\"))","v":"HÉTFŐ"},"KEDD","SZERDA","CSÜTÖRTÖK","PÉNTEK","SZOMBAT"]
[null,{"$f":"Napok+DATE(NaptÉv,3,1)-WEEKDAY(DATE(NaptÉv,3,1),(HétKezdete=\"HÉTFŐ\")+1)+1","v":"2018-02-25"},"2018-02-26","2018-02-27","2018-02-28","2018-03-01","2018-03-02","2018-03-03"]
[null,{"$f":"IFERROR(IF(Ünnepnapok,IF(INDEX(tblÜnnepnapok[],MATCH(DATE(NaptÉv-(DAY(B5)>15)+(ROW()>6),MONTH(B5),DAY(B5)),IF(TartottÜnnepek,tblÜnnepnapok[KORRIGÁLT],tblÜnnepnapok[NAP]),0),6),INDEX(tblÜnnepnapok[],MATCH(DATE(NaptÉv-(DAY(B5)>15)+(ROW()>6),MONTH(B5),DAY(B5)),IF(TartottÜnnepek,tblÜnnepnapok[KORRIGÁLT],tblÜnnepnapok[NAP]),0),2),\"\"),\"\"),\"\")","v":""},{"$f":"IFERROR(IF(Ünnepnapok,IF(INDEX(tblÜnnepnapok[],MATCH(DATE(NaptÉv-(DAY(C5)>15)+(ROW()>6),MONTH(C5),DAY(C5)),IF(TartottÜnnepek,tblÜnnepnapok[KORRIGÁLT],tblÜnnepnapok[NAP]),0),6),INDEX(tblÜnnepnapok[],MATCH(DATE(NaptÉv-(DAY(C5)>15)+(ROW()>6),MONTH(C5),DAY(C5)),IF(TartottÜnnepek,tblÜnnepnapok[KORRIGÁLT],tblÜnnepnapok[NAP]),0),2),\"\"),\"\"),\"\")","v":""},{"$f":"IFERROR(IF(Ünnepnapok,IF(INDEX(tblÜnnepnapok[],MATCH(DATE(NaptÉv-(DAY(D5)>15)+(ROW()>6),MONTH(D5),DAY(D5)),IF(TartottÜnnepek,tblÜnnepnapok[KORRIGÁLT],tblÜnnepnapok[NAP]),0),6),INDEX(tblÜnnepnapok[],MATCH(DATE(NaptÉv-(DAY(D5)>15)+(ROW()>6),MONTH(D5),DAY(D5)),IF(TartottÜnnepek,tblÜnnepnapok[KORRIGÁLT],tblÜnnepnapok[NAP]),0),2),\"\"),\"\"),\"\")","v":""},{"$f":"IFERROR(IF(Ünnepnapok,IF(INDEX(tblÜnnepnapok[],MATCH(DATE(NaptÉv-(DAY(E5)>15)+(ROW()>6),MONTH(E5),DAY(E5)),IF(TartottÜnnepek,tblÜnnepnapok[KORRIGÁLT],tblÜnnepnapok[NAP]),0),6),INDEX(tblÜnnepnapok[],MATCH(DATE(NaptÉv-(DAY(E5)>15)+(ROW()>6),MONTH(E5),DAY(E5)),IF(TartottÜnnepek,tblÜnnepnapok[KORRIGÁLT],tblÜnnepnapok[NAP]),0),2),\"\"),\"\"),\"\")","v":""},{"$f":"IFERROR(IF(Ünnepnapok,IF(INDEX(tblÜnnepnapok[],MATCH(DATE(NaptÉv-(DAY(F5)>15)+(ROW()>6),MONTH(F5),DAY(F5)),IF(TartottÜnnepek,tblÜnnepnapok[KORRIGÁLT],tblÜnnepnapok[NAP]),0),6),INDEX(tblÜnnepnapok[],MATCH(DATE(NaptÉv-(DAY(F5)>15)+(ROW()>6),MONTH(F5),DAY(F5)),IF(TartottÜnnepek,tblÜnnepnapok[KORRIGÁLT],tblÜnnepnapok[NAP]),0),2),\"\"),\"\"),\"\")","v":""},{"$f":"IFERROR(IF(Ünnepnapok,IF(INDEX(tblÜnnepnapok[],MATCH(DATE(NaptÉv-(DAY(G5)>15)+(ROW()>6),MONTH(G5),DAY(G5)),IF(TartottÜnnepek,tblÜnnepnapok[KORRIGÁLT],tblÜnnepnapok[NAP]),0),6),INDEX(tblÜnnepnapok[],MATCH(DATE(NaptÉv-(DAY(G5)>15)+(ROW()>6),MONTH(G5),DAY(G5)),IF(TartottÜnnepek,tblÜnnepnapok[KORRIGÁLT],tblÜnnepnapok[NAP]),0),2),\"\"),\"\"),\"\")","v":""},{"$f":"IFERROR(IF(Ünnepnapok,IF(INDEX(tblÜnnepnapok[],MATCH(DATE(NaptÉv-(DAY(H5)>15)+(ROW()>6),MONTH(H5),DAY(H5)),IF(TartottÜnnepek,tblÜnnepnapok[KORRIGÁLT],tblÜnnepnapok[NAP]),0),6),INDEX(tblÜnnepnapok[],MATCH(DATE(NaptÉv-(DAY(H5)>15)+(ROW()>6),MONTH(H5),DAY(H5)),IF(TartottÜnnepek,tblÜnnepnapok[KORRIGÁLT],tblÜnnepnapok[NAP]),0),2),\"\"),\"\"),\"\")","v":""}]
[null,{"$f":"Napok+DATE(NaptÉv,3,1)-WEEKDAY(DATE(NaptÉv,3,1),(HétKezdete=\"HÉTFŐ\")+1)+8","v":"2018-03-04"},"2018-03-05","2018-03-06","2018-03-07","2018-03-08","2018-03-09","2018-03-10"]
[null,{"$f":"IFERROR(IF(Ünnepnapok,IF(INDEX(tblÜnnepnapok[],MATCH(DATE(NaptÉv,MONTH(B7),DAY(B7)),IF(TartottÜnnepek,tblÜnnepnapok[KORRIGÁLT],tblÜnnepnapok[NAP]),0),6),INDEX(tblÜnnepnapok[],MATCH(DATE(NaptÉv,MONTH(B7),DAY(B7)),IF(TartottÜnnepek,tblÜnnepnapok[KORRIGÁLT],tblÜnnepnapok[NAP]),0),2),\"\"),\"\"),\"\")","v":""},{"$f":"IFERROR(IF(Ünnepnapok,IF(INDEX(tblÜnnepnapok[],MATCH(DATE(NaptÉv,MONTH(C7),DAY(C7)),IF(TartottÜnnepek,tblÜnnepnapok[KORRIGÁLT],tblÜnnepnapok[NAP]),0),6),INDEX(tblÜnnepnapok[],MATCH(DATE(NaptÉv,MONTH(C7),DAY(C7)),IF(TartottÜnnepek,tblÜnnepnapok[KORRIGÁLT],tblÜnnepnapok[NAP]),0),2),\"\"),\"\"),\"\")","v":""},{"$f":"IFERROR(IF(Ünnepnapok,IF(INDEX(tblÜnnepnapok[],MATCH(DATE(NaptÉv,MONTH(D7),DAY(D7)),IF(TartottÜnnepek,tblÜnnepnapok[KORRIGÁLT],tblÜnnepnapok[NAP]),0),6),INDEX(tblÜnnepnapok[],MATCH(DATE(NaptÉv,MONTH(D7),DAY(D7)),IF(TartottÜnnepek,tblÜnnepnapok[KORRIGÁLT],tblÜnnepnapok[NAP]),0),2),\"\"),\"\"),\"\")","v":""},{"$f":"IFERROR(IF(Ünnepnapok,IF(INDEX(tblÜnnepnapok[],MATCH(DATE(NaptÉv,MONTH(E7),DAY(E7)),IF(TartottÜnnepek,tblÜnnepnapok[KORRIGÁLT],tblÜnnepnapok[NAP]),0),6),INDEX(tblÜnnepnapok[],MATCH(DATE(NaptÉv,MONTH(E7),DAY(E7)),IF(TartottÜnnepek,tblÜnnepnapok[KORRIGÁLT],tblÜnnepnapok[NAP]),0),2),\"\"),\"\"),\"\")","v":""},{"$f":"IFERROR(IF(Ünnepnapok,IF(INDEX(tblÜnnepnapok[],MATCH(DATE(NaptÉv,MONTH(F7),DAY(F7)),IF(TartottÜnnepek,tblÜnnepnapok[KORRIGÁLT],tblÜnnepnapok[NAP]),0),6),INDEX(tblÜnnepnapok[],MATCH(DATE(NaptÉv,MONTH(F7),DAY(F7)),IF(TartottÜnnepek,tblÜnnepnapok[KORRIGÁLT],tblÜnnepnapok[NAP]),0),2),\"\"),\"\"),\"\")","v":""},{"$f":"IFERROR(IF(Ünnepnapok,IF(INDEX(tblÜnnepnapok[],MATCH(DATE(NaptÉv,MONTH(G7),DAY(G7)),IF(TartottÜnnepek,tblÜnnepnapok[KORRIGÁLT],tblÜnnepnapok[NAP]),0),6),INDEX(tblÜnnepnapok[],MATCH(DATE(NaptÉv,MONTH(G7),DAY(G7)),IF(TartottÜnnepek,tblÜnnepnapok[KORRIGÁLT],tblÜnnepnapok[NAP]),0),2),\"\"),\"\"),\"\")","v":""},{"$f":"IFERROR(IF(Ünnepnapok,IF(INDEX(tblÜnnepnapok[],MATCH(DATE(NaptÉv,MONTH(H7),DAY(H7)),IF(TartottÜnnepek,tblÜnnepnapok[KORRIGÁLT],tblÜnnepnapok[NAP]),0),6),INDEX(tblÜnnepnapok[],MATCH(DATE(NaptÉv,MONTH(H7),DAY(H7)),IF(TartottÜnnepek,tblÜnnepnapok[KORRIGÁLT],tblÜnnepnapok[NAP]),0),2),\"\"),\"\"),\"\")","v":""}]
[null,{"$f":"Napok+DATE(NaptÉv,3,1)-WEEKDAY(DATE(NaptÉv,3,1),(HétKezdete=\"HÉTFŐ\")+1)+15","v":"2018-03-11"},"2018-03-12","2018-03-13","2018-03-14","2018-03-15","2018-03-16","2018-03-17"]
[null,{"$f":"IFERROR(IF(Ünnepnapok,IF(INDEX(tblÜnnepnapok[],MATCH(DATE(NaptÉv,MONTH(B9),DAY(B9)),IF(TartottÜnnepek,tblÜnnepnapok[KORRIGÁLT],tblÜnnepnapok[NAP]),0),6),INDEX(tblÜnnepnapok[],MATCH(DATE(NaptÉv,MONTH(B9),DAY(B9)),IF(TartottÜnnepek,tblÜnnepnapok[KORRIGÁLT],tblÜnnepnapok[NAP]),0),2),\"\"),\"\"),\"\")","v":""},{"$f":"IFERROR(IF(Ünnepnapok,IF(INDEX(tblÜnnepnapok[],MATCH(DATE(NaptÉv,MONTH(C9),DAY(C9)),IF(TartottÜnnepek,tblÜnnepnapok[KORRIGÁLT],tblÜnnepnapok[NAP]),0),6),INDEX(tblÜnnepnapok[],MATCH(DATE(NaptÉv,MONTH(C9),DAY(C9)),IF(TartottÜnnepek,tblÜnnepnapok[KORRIGÁLT],tblÜnnepnapok[NAP]),0),2),\"\"),\"\"),\"\")","v":""},{"$f":"IFERROR(IF(Ünnepnapok,IF(INDEX(tblÜnnepnapok[],MATCH(DATE(NaptÉv,MONTH(D9),DAY(D9)),IF(TartottÜnnepek,tblÜnnepnapok[KORRIGÁLT],tblÜnnepnapok[NAP]),0),6),INDEX(tblÜnnepnapok[],MATCH(DATE(NaptÉv,MONTH(D9),DAY(D9)),IF(TartottÜnnepek,tblÜnnepnapok[KORRIGÁLT],tblÜnnepnapok[NAP]),0),2),\"\"),\"\"),\"\")","v":""},{"$f":"IFERROR(IF(Ünnepnapok,IF(INDEX(tblÜnnepnapok[],MATCH(DATE(NaptÉv,MONTH(E9),DAY(E9)),IF(TartottÜnnepek,tblÜnnepnapok[KORRIGÁLT],tblÜnnepnapok[NAP]),0),6),INDEX(tblÜnnepnapok[],MATCH(DATE(NaptÉv,MONTH(E9),DAY(E9)),IF(TartottÜnnepek,tblÜnnepnapok[KORRIGÁLT],tblÜnnepnapok[NAP]),0),2),\"\"),\"\"),\"\")","v":""},{"$f":"IFERROR(IF(Ünnepnapok,IF(INDEX(tblÜnnepnapok[],MATCH(DATE(NaptÉv,MONTH(F9),DAY(F9)),IF(TartottÜnnepek,tblÜnnepnapok[KORRIGÁLT],tblÜnnepnapok[NAP]),0),6),INDEX(tblÜnnepnapok[],MATCH(DATE(NaptÉv,MONTH(F9),DAY(F9)),IF(TartottÜnnepek,tblÜnnepnapok[KORRIGÁLT],tblÜnnepnapok[NAP]),0),2),\"\"),\"\"),\"\")","v":""},{"$f":"IFERROR(IF(Ünnepnapok,IF(INDEX(tblÜnnepnapok[],MATCH(DATE(NaptÉv,MONTH(G9),DAY(G9)),IF(TartottÜnnepek,tblÜnnepnapok[KORRIGÁLT],tblÜnnepnapok[NAP]),0),6),INDEX(tblÜnnepnapok[],MATCH(DATE(NaptÉv,MONTH(G9),DAY(G9)),IF(TartottÜnnepek,tblÜnnepnapok[KORRIGÁLT],tblÜnnepnapok[NAP]),0),2),\"\"),\"\"),\"\")","v":""},{"$f":"IFERROR(IF(Ünnepnapok,IF(INDEX(tblÜnnepnapok[],MATCH(DATE(NaptÉv,MONTH(H9),DAY(H9)),IF(TartottÜnnepek,tblÜnnepnapok[KORRIGÁLT],tblÜnnepnapok[NAP]),0),6),INDEX(tblÜnnepnapok[],MATCH(DATE(NaptÉv,MONTH(H9),DAY(H9)),IF(TartottÜnnepek,tblÜnnepnapok[KORRIGÁLT],tblÜnnepnapok[NAP]),0),2),\"\"),\"\"),\"\")","v":""}]
[null,{"$f":"Napok+DATE(NaptÉv,3,1)-WEEKDAY(DATE(NaptÉv,3,1),(HétKezdete=\"HÉTFŐ\")+1)+22","v":"2018-03-18"},"2018-03-19","2018-03-20","2018-03-21","2018-03-22","2018-03-23","2018-03-24"]
[null,{"$f":"IFERROR(IF(Ünnepnapok,IF(INDEX(tblÜnnepnapok[],MATCH(DATE(NaptÉv,MONTH(B11),DAY(B11)),IF(TartottÜnnepek,tblÜnnepnapok[KORRIGÁLT],tblÜnnepnapok[NAP]),0),6),INDEX(tblÜnnepnapok[],MATCH(DATE(NaptÉv,MONTH(B11),DAY(B11)),IF(TartottÜnnepek,tblÜnnepnapok[KORRIGÁLT],tblÜnnepnapok[NAP]),0),2),\"\"),\"\"),\"\")","v":""},{"$f":"IFERROR(IF(Ünnepnapok,IF(INDEX(tblÜnnepnapok[],MATCH(DATE(NaptÉv,MONTH(C11),DAY(C11)),IF(TartottÜnnepek,tblÜnnepnapok[KORRIGÁLT],tblÜnnepnapok[NAP]),0),6),INDEX(tblÜnnepnapok[],MATCH(DATE(NaptÉv,MONTH(C11),DAY(C11)),IF(TartottÜnnepek,tblÜnnepnapok[KORRIGÁLT],tblÜnnepnapok[NAP]),0),2),\"\"),\"\"),\"\")","v":""},{"$f":"IFERROR(IF(Ünnepnapok,IF(INDEX(tblÜnnepnapok[],MATCH(DATE(NaptÉv,MONTH(D11),DAY(D11)),IF(TartottÜnnepek,tblÜnnepnapok[KORRIGÁLT],tblÜnnepnapok[NAP]),0),6),INDEX(tblÜnnepnapok[],MATCH(DATE(NaptÉv,MONTH(D11),DAY(D11)),IF(TartottÜnnepek,tblÜnnepnapok[KORRIGÁLT],tblÜnnepnapok[NAP]),0),2),\"\"),\"\"),\"\")","v":""},{"$f":"IFERROR(IF(Ünnepnapok,IF(INDEX(tblÜnnepnapok[],MATCH(DATE(NaptÉv,MONTH(E11),DAY(E11)),IF(TartottÜnnepek,tblÜnnepnapok[KORRIGÁLT],tblÜnnepnapok[NAP]),0),6),INDEX(tblÜnnepnapok[],MATCH(DATE(NaptÉv,MONTH(E11),DAY(E11)),IF(TartottÜnnepek,tblÜnnepnapok[KORRIGÁLT],tblÜnnepnapok[NAP]),0),2),\"\"),\"\"),\"\")","v":""},{"$f":"IFERROR(IF(Ünnepnapok,IF(INDEX(tblÜnnepnapok[],MATCH(DATE(NaptÉv,MONTH(F11),DAY(F11)),IF(TartottÜnnepek,tblÜnnepnapok[KORRIGÁLT],tblÜnnepnapok[NAP]),0),6),INDEX(tblÜnnepnapok[],MATCH(DATE(NaptÉv,MONTH(F11),DAY(F11)),IF(TartottÜnnepek,tblÜnnepnapok[KORRIGÁLT],tblÜnnepnapok[NAP]),0),2),\"\"),\"\"),\"\")","v":""},{"$f":"IFERROR(IF(Ünnepnapok,IF(INDEX(tblÜnnepnapok[],MATCH(DATE(NaptÉv,MONTH(G11),DAY(G11)),IF(TartottÜnnepek,tblÜnnepnapok[KORRIGÁLT],tblÜnnepnapok[NAP]),0),6),INDEX(tblÜnnepnapok[],MATCH(DATE(NaptÉv,MONTH(G11),DAY(G11)),IF(TartottÜnnepek,tblÜnnepnapok[KORRIGÁLT],tblÜnnepnapok[NAP]),0),2),\"\"),\"\"),\"\")","v":""},{"$f":"IFERROR(IF(Ünnepnapok,IF(INDEX(tblÜnnepnapok[],MATCH(DATE(NaptÉv,MONTH(H11),DAY(H11)),IF(TartottÜnnepek,tblÜnnepnapok[KORRIGÁLT],tblÜnnepnapok[NAP]),0),6),INDEX(tblÜnnepnapok[],MATCH(DATE(NaptÉv,MONTH(H11),DAY(H11)),IF(TartottÜnnepek,tblÜnnepnapok[KORRIGÁLT],tblÜnnepnapok[NAP]),0),2),\"\"),\"\"),\"\")","v":""}]
[null,{"$f":"Napok+DATE(NaptÉv,3,1)-WEEKDAY(DATE(NaptÉv,3,1),(HétKezdete=\"HÉTFŐ\")+1)+29","v":"2018-03-25"},"2018-03-26","2018-03-27","2018-03-28","2018-03-29","2018-03-30","2018-03-31"]
[null,{"$f":"IFERROR(IF(Ünnepnapok,IF(INDEX(tblÜnnepnapok[],MATCH(DATE(NaptÉv,MONTH(B13),DAY(B13)),IF(TartottÜnnepek,tblÜnnepnapok[KORRIGÁLT],tblÜnnepnapok[NAP]),0),6),INDEX(tblÜnnepnapok[],MATCH(DATE(NaptÉv,MONTH(B13),DAY(B13)),IF(TartottÜnnepek,tblÜnnepnapok[KORRIGÁLT],tblÜnnepnapok[NAP]),0),2),\"\"),\"\"),\"\")","v":""},{"$f":"IFERROR(IF(Ünnepnapok,IF(INDEX(tblÜnnepnapok[],MATCH(DATE(NaptÉv,MONTH(C13),DAY(C13)),IF(TartottÜnnepek,tblÜnnepnapok[KORRIGÁLT],tblÜnnepnapok[NAP]),0),6),INDEX(tblÜnnepnapok[],MATCH(DATE(NaptÉv,MONTH(C13),DAY(C13)),IF(TartottÜnnepek,tblÜnnepnapok[KORRIGÁLT],tblÜnnepnapok[NAP]),0),2),\"\"),\"\"),\"\")","v":""},{"$f":"IFERROR(IF(Ünnepnapok,IF(INDEX(tblÜnnepnapok[],MATCH(DATE(NaptÉv,MONTH(D13),DAY(D13)),IF(TartottÜnnepek,tblÜnnepnapok[KORRIGÁLT],tblÜnnepnapok[NAP]),0),6),INDEX(tblÜnnepnapok[],MATCH(DATE(NaptÉv,MONTH(D13),DAY(D13)),IF(TartottÜnnepek,tblÜnnepnapok[KORRIGÁLT],tblÜnnepnapok[NAP]),0),2),\"\"),\"\"),\"\")","v":""},{"$f":"IFERROR(IF(Ünnepnapok,IF(INDEX(tblÜnnepnapok[],MATCH(DATE(NaptÉv,MONTH(E13),DAY(E13)),IF(TartottÜnnepek,tblÜnnepnapok[KORRIGÁLT],tblÜnnepnapok[NAP]),0),6),INDEX(tblÜnnepnapok[],MATCH(DATE(NaptÉv,MONTH(E13),DAY(E13)),IF(TartottÜnnepek,tblÜnnepnapok[KORRIGÁLT],tblÜnnepnapok[NAP]),0),2),\"\"),\"\"),\"\")","v":""},{"$f":"IFERROR(IF(Ünnepnapok,IF(INDEX(tblÜnnepnapok[],MATCH(DATE(NaptÉv,MONTH(F13),DAY(F13)),IF(TartottÜnnepek,tblÜnnepnapok[KORRIGÁLT],tblÜnnepnapok[NAP]),0),6),INDEX(tblÜnnepnapok[],MATCH(DATE(NaptÉv,MONTH(F13),DAY(F13)),IF(TartottÜnnepek,tblÜnnepnapok[KORRIGÁLT],tblÜnnepnapok[NAP]),0),2),\"\"),\"\"),\"\")","v":""},{"$f":"IFERROR(IF(Ünnepnapok,IF(INDEX(tblÜnnepnapok[],MATCH(DATE(NaptÉv,MONTH(G13),DAY(G13)),IF(TartottÜnnepek,tblÜnnepnapok[KORRIGÁLT],tblÜnnepnapok[NAP]),0),6),INDEX(tblÜnnepnapok[],MATCH(DATE(NaptÉv,MONTH(G13),DAY(G13)),IF(TartottÜnnepek,tblÜnnepnapok[KORRIGÁLT],tblÜnnepnapok[NAP]),0),2),\"\"),\"\"),\"\")","v":""},{"$f":"IFERROR(IF(Ünnepnapok,IF(INDEX(tblÜnnepnapok[],MATCH(DATE(NaptÉv,MONTH(H13),DAY(H13)),IF(TartottÜnnepek,tblÜnnepnapok[KORRIGÁLT],tblÜnnepnapok[NAP]),0),6),INDEX(tblÜnnepnapok[],MATCH(DATE(NaptÉv,MONTH(H13),DAY(H13)),IF(TartottÜnnepek,tblÜnnepnapok[KORRIGÁLT],tblÜnnepnapok[NAP]),0),2),\"\"),\"\"),\"\")","v":""}]
[null,{"$f":"Napok+DATE(NaptÉv,3,1)-WEEKDAY(DATE(NaptÉv,3,1),(HétKezdete=\"HÉTFŐ\")+1)+36","v":"2018-04-01"},"2018-04-02","MEGJEGYZÉSEK"]
[null,{"$f":"IFERROR(IF(Ünnepnapok,IF(INDEX(tblÜnnepnapok[],MATCH(DATE(NaptÉv,MONTH(B15),DAY(B15)),IF(TartottÜnnepek,tblÜnnepnapok[KORRIGÁLT],tblÜnnepnapok[NAP]),0),6),INDEX(tblÜnnepnapok[],MATCH(DATE(NaptÉv,MONTH(B15),DAY(B15)),IF(TartottÜnnepek,tblÜnnepnapok[KORRIGÁLT],tblÜnnepnapok[NAP]),0),2),\"\"),\"\"),\"\")","v":""},{"$f":"IFERROR(IF(Ünnepnapok,IF(INDEX(tblÜnnepnapok[],MATCH(DATE(NaptÉv,MONTH(C15),DAY(C15)),IF(TartottÜnnepek,tblÜnnepnapok[KORRIGÁLT],tblÜnnepnapok[NAP]),0),6),INDEX(tblÜnnepnapok[],MATCH(DATE(NaptÉv,MONTH(C15),DAY(C15)),IF(TartottÜnnepek,tblÜnnepnapok[KORRIGÁLT],tblÜnnepnapok[NAP]),0),2),\"\"),\"\"),\"\")","v":""}]

{"sheet":"Április","index":4,"n_rows":16,"n_cols":8,"rows_kept":16,"merged":[[1,1,1,3],[14,3,14,7],[15,3,15,7],[16,1,16,7]]}
[]
[null,{"$f":"B9","v":"2018-04-15"}]
[]
[null,{"$f":"HétKezdete","v":"VASÁRNAP"},{"$f":"UPPER(TEXT(C5,\"nnnn\"))","v":"HÉTFŐ"},"KEDD","SZERDA","CSÜTÖRTÖK","PÉNTEK","SZOMBAT"]
[null,{"$f":"Napok+DATE(NaptÉv,4,1)-WEEKDAY(DATE(NaptÉv,4,1),(HétKezdete=\"HÉTFŐ\")+1)+1","v":"2018-04-01"},"2018-04-02","2018-04-03","2018-04-04","2018-04-05","2018-04-06","2018-04-07"]
[null,{"$f":"IFERROR(IF(Ünnepnapok,IF(INDEX(tblÜnnepnapok[],MATCH(DATE(NaptÉv-(DAY(B5)>15)+(ROW()>6),MONTH(B5),DAY(B5)),IF(TartottÜnnepek,tblÜnnepnapok[KORRIGÁLT],tblÜnnepnapok[NAP]),0),6),INDEX(tblÜnnepnapok[],MATCH(DATE(NaptÉv-(DAY(B5)>15)+(ROW()>6),MONTH(B5),DAY(B5)),IF(TartottÜnnepek,tblÜnnepnapok[KORRIGÁLT],tblÜnnepnapok[NAP]),0),2),\"\"),\"\"),\"\")","v":""},{"$f":"IFERROR(IF(Ünnepnapok,IF(INDEX(tblÜnnepnapok[],MATCH(DATE(NaptÉv-(DAY(C5)>15)+(ROW()>6),MONTH(C5),DAY(C5)),IF(TartottÜnnepek,tblÜnnepnapok[KORRIGÁLT],tblÜnnepnapok[NAP]),0),6),INDEX(tblÜnnepnapok[],MATCH(DATE(NaptÉv-(DAY(C5)>15)+(ROW()>6),MONTH(C5),DAY(C5)),IF(TartottÜnnepek,tblÜnnepnapok[KORRIGÁLT],tblÜnnepnapok[NAP]),0),2),\"\"),\"\"),\"\")","v":""},{"$f":"IFERROR(IF(Ünnepnapok,IF(INDEX(tblÜnnepnapok[],MATCH(DATE(NaptÉv-(DAY(D5)>15)+(ROW()>6),MONTH(D5),DAY(D5)),IF(TartottÜnnepek,tblÜnnepnapok[KORRIGÁLT],tblÜnnepnapok[NAP]),0),6),INDEX(tblÜnnepnapok[],MATCH(DATE(NaptÉv-(DAY(D5)>15)+(ROW()>6),MONTH(D5),DAY(D5)),IF(TartottÜnnepek,tblÜnnepnapok[KORRIGÁLT],tblÜnnepnapok[NAP]),0),2),\"\"),\"\"),\"\")","v":""},{"$f":"IFERROR(IF(Ünnepnapok,IF(INDEX(tblÜnnepnapok[],MATCH(DATE(NaptÉv-(DAY(E5)>15)+(ROW()>6),MONTH(E5),DAY(E5)),IF(TartottÜnnepek,tblÜnnepnapok[KORRIGÁLT],tblÜnnepnapok[NAP]),0),6),INDEX(tblÜnnepnapok[],MATCH(DATE(NaptÉv-(DAY(E5)>15)+(ROW()>6),MONTH(E5),DAY(E5)),IF(TartottÜnnepek,tblÜnnepnapok[KORRIGÁLT],tblÜnnepnapok[NAP]),0),2),\"\"),\"\"),\"\")","v":""},{"$f":"IFERROR(IF(Ünnepnapok,IF(INDEX(tblÜnnepnapok[],MATCH(DATE(NaptÉv-(DAY(F5)>15)+(ROW()>6),MONTH(F5),DAY(F5)),IF(TartottÜnnepek,tblÜnnepnapok[KORRIGÁLT],tblÜnnepnapok[NAP]),0),6),INDEX(tblÜnnepnapok[],MATCH(DATE(NaptÉv-(DAY(F5)>15)+(ROW()>6),MONTH(F5),DAY(F5)),IF(TartottÜnnepek,tblÜnnepnapok[KORRIGÁLT],tblÜnnepnapok[NAP]),0),2),\"\"),\"\"),\"\")","v":""},{"$f":"IFERROR(IF(Ünnepnapok,IF(INDEX(tblÜnnepnapok[],MATCH(DATE(NaptÉv-(DAY(G5)>15)+(ROW()>6),MONTH(G5),DAY(G5)),IF(TartottÜnnepek,tblÜnnepnapok[KORRIGÁLT],tblÜnnepnapok[NAP]),0),6),INDEX(tblÜnnepnapok[],MATCH(DATE(NaptÉv-(DAY(G5)>15)+(ROW()>6),MONTH(G5),DAY(G5)),IF(TartottÜnnepek,tblÜnnepnapok[KORRIGÁLT],tblÜnnepnapok[NAP]),0),2),\"\"),\"\"),\"\")","v":""},{"$f":"IFERROR(IF(Ünnepnapok,IF(INDEX(tblÜnnepnapok[],MATCH(DATE(NaptÉv-(DAY(H5)>15)+(ROW()>6),MONTH(H5),DAY(H5)),IF(TartottÜnnepek,tblÜnnepnapok[KORRIGÁLT],tblÜnnepnapok[NAP]),0),6),INDEX(tblÜnnepnapok[],MATCH(DATE(NaptÉv-(DAY(H5)>15)+(ROW()>6),MONTH(H5),DAY(H5)),IF(TartottÜnnepek,tblÜnnepnapok[KORRIGÁLT],tblÜnnepnapok[NAP]),0),2),\"\"),\"\"),\"\")","v":""}]
[null,{"$f":"Napok+DATE(NaptÉv,4,1)-WEEKDAY(DATE(NaptÉv,4,1),(HétKezdete=\"HÉTFŐ\")+1)+8","v":"2018-04-08"},"2018-04-09","2018-04-10","2018-04-11","2018-04-12","2018-04-13","2018-04-14"]
[null,{"$f":"IFERROR(IF(Ünnepnapok,IF(INDEX(tblÜnnepnapok[],MATCH(DATE(NaptÉv,MONTH(B7),DAY(B7)),IF(TartottÜnnepek,tblÜnnepnapok[KORRIGÁLT],tblÜnnepnapok[NAP]),0),6),INDEX(tblÜnnepnapok[],MATCH(DATE(NaptÉv,MONTH(B7),DAY(B7)),IF(TartottÜnnepek,tblÜnnepnapok[KORRIGÁLT],tblÜnnepnapok[NAP]),0),2),\"\"),\"\"),\"\")","v":""},{"$f":"IFERROR(IF(Ünnepnapok,IF(INDEX(tblÜnnepnapok[],MATCH(DATE(NaptÉv,MONTH(C7),DAY(C7)),IF(TartottÜnnepek,tblÜnnepnapok[KORRIGÁLT],tblÜnnepnapok[NAP]),0),6),INDEX(tblÜnnepnapok[],MATCH(DATE(NaptÉv,MONTH(C7),DAY(C7)),IF(TartottÜnnepek,tblÜnnepnapok[KORRIGÁLT],tblÜnnepnapok[NAP]),0),2),\"\"),\"\"),\"\")","v":""},{"$f":"IFERROR(IF(Ünnepnapok,IF(INDEX(tblÜnnepnapok[],MATCH(DATE(NaptÉv,MONTH(D7),DAY(D7)),IF(TartottÜnnepek,tblÜnnepnapok[KORRIGÁLT],tblÜnnepnapok[NAP]),0),6),INDEX(tblÜnnepnapok[],MATCH(DATE(NaptÉv,MONTH(D7),DAY(D7)),IF(TartottÜnnepek,tblÜnnepnapok[KORRIGÁLT],tblÜnnepnapok[NAP]),0),2),\"\"),\"\"),\"\")","v":""},{"$f":"IFERROR(IF(Ünnepnapok,IF(INDEX(tblÜnnepnapok[],MATCH(DATE(NaptÉv,MONTH(E7),DAY(E7)),IF(TartottÜnnepek,tblÜnnepnapok[KORRIGÁLT],tblÜnnepnapok[NAP]),0),6),INDEX(tblÜnnepnapok[],MATCH(DATE(NaptÉv,MONTH(E7),DAY(E7)),IF(TartottÜnnepek,tblÜnnepnapok[KORRIGÁLT],tblÜnnepnapok[NAP]),0),2),\"\"),\"\"),\"\")","v":""},{"$f":"IFERROR(IF(Ünnepnapok,IF(INDEX(tblÜnnepnapok[],MATCH(DATE(NaptÉv,MONTH(F7),DAY(F7)),IF(TartottÜnnepek,tblÜnnepnapok[KORRIGÁLT],tblÜnnepnapok[NAP]),0),6),INDEX(tblÜnnepnapok[],MATCH(DATE(NaptÉv,MONTH(F7),DAY(F7)),IF(TartottÜnnepek,tblÜnnepnapok[KORRIGÁLT],tblÜnnepnapok[NAP]),0),2),\"\"),\"\"),\"\")","v":""},{"$f":"IFERROR(IF(Ünnepnapok,IF(INDEX(tblÜnnepnapok[],MATCH(DATE(NaptÉv,MONTH(G7),DAY(G7)),IF(TartottÜnnepek,tblÜnnepnapok[KORRIGÁLT],tblÜnnepnapok[NAP]),0),6),INDEX(tblÜnnepnapok[],MATCH(DATE(NaptÉv,MONTH(G7),DAY(G7)),IF(TartottÜnnepek,tblÜnnepnapok[KORRIGÁLT],tblÜnnepnapok[NAP]),0),2),\"\"),\"\"),\"\")","v":""},{"$f":"IFERROR(IF(Ünnepnapok,IF(INDEX(tblÜnnepnapok[],MATCH(DATE(NaptÉv,MONTH(H7),DAY(H7)),IF(TartottÜnnepek,tblÜnnepnapok[KORRIGÁLT],tblÜnnepnapok[NAP]),0),6),INDEX(tblÜnnepnapok[],MATCH(DATE(NaptÉv,MONTH(H7),DAY(H7)),IF(TartottÜnnepek,tblÜnnepnapok[KORRIGÁLT],tblÜnnepnapok[NAP]),0),2),\"\"),\"\"),\"\")","v":""}]
[null,{"$f":"Napok+DATE(NaptÉv,4,1)-WEEKDAY(DATE(NaptÉv,4,1),(HétKezdete=\"HÉTFŐ\")+1)+15","v":"2018-04-15"},"2018-04-16","2018-04-17","2018-04-18","2018-04-19","2018-04-20","2018-04-21"]
[null,{"$f":"IFERROR(IF(Ünnepnapok,IF(INDEX(tblÜnnepnapok[],MATCH(DATE(NaptÉv,MONTH(B9),DAY(B9)),IF(TartottÜnnepek,tblÜnnepnapok[KORRIGÁLT],tblÜnnepnapok[NAP]),0),6),INDEX(tblÜnnepnapok[],MATCH(DATE(NaptÉv,MONTH(B9),DAY(B9)),IF(TartottÜnnepek,tblÜnnepnapok[KORRIGÁLT],tblÜnnepnapok[NAP]),0),2),\"\"),\"\"),\"\")","v":""},{"$f":"IFERROR(IF(Ünnepnapok,IF(INDEX(tblÜnnepnapok[],MATCH(DATE(NaptÉv,MONTH(C9),DAY(C9)),IF(TartottÜnnepek,tblÜnnepnapok[KORRIGÁLT],tblÜnnepnapok[NAP]),0),6),INDEX(tblÜnnepnapok[],MATCH(DATE(NaptÉv,MONTH(C9),DAY(C9)),IF(TartottÜnnepek,tblÜnnepnapok[KORRIGÁLT],tblÜnnepnapok[NAP]),0),2),\"\"),\"\"),\"\")","v":""},{"$f":"IFERROR(IF(Ünnepnapok,IF(INDEX(tblÜnnepnapok[],MATCH(DATE(NaptÉv,MONTH(D9),DAY(D9)),IF(TartottÜnnepek,tblÜnnepnapok[KORRIGÁLT],tblÜnnepnapok[NAP]),0),6),INDEX(tblÜnnepnapok[],MATCH(DATE(NaptÉv,MONTH(D9),DAY(D9)),IF(TartottÜnnepek,tblÜnnepnapok[KORRIGÁLT],tblÜnnepnapok[NAP]),0),2),\"\"),\"\"),\"\")","v":""},{"$f":"IFERROR(IF(Ünnepnapok,IF(INDEX(tblÜnnepnapok[],MATCH(DATE(NaptÉv,MONTH(E9),DAY(E9)),IF(TartottÜnnepek,tblÜnnepnapok[KORRIGÁLT],tblÜnnepnapok[NAP]),0),6),INDEX(tblÜnnepnapok[],MATCH(DATE(NaptÉv,MONTH(E9),DAY(E9)),IF(TartottÜnnepek,tblÜnnepnapok[KORRIGÁLT],tblÜnnepnapok[NAP]),0),2),\"\"),\"\"),\"\")","v":""},{"$f":"IFERROR(IF(Ünnepnapok,IF(INDEX(tblÜnnepnapok[],MATCH(DATE(NaptÉv,MONTH(F9),DAY(F9)),IF(TartottÜnnepek,tblÜnnepnapok[KORRIGÁLT],tblÜnnepnapok[NAP]),0),6),INDEX(tblÜnnepnapok[],MATCH(DATE(NaptÉv,MONTH(F9),DAY(F9)),IF(TartottÜnnepek,tblÜnnepnapok[KORRIGÁLT],tblÜnnepnapok[NAP]),0),2),\"\"),\"\"),\"\")","v":""},{"$f":"IFERROR(IF(Ünnepnapok,IF(INDEX(tblÜnnepnapok[],MATCH(DATE(NaptÉv,MONTH(G9),DAY(G9)),IF(TartottÜnnepek,tblÜnnepnapok[KORRIGÁLT],tblÜnnepnapok[NAP]),0),6),INDEX(tblÜnnepnapok[],MATCH(DATE(NaptÉv,MONTH(G9),DAY(G9)),IF(TartottÜnnepek,tblÜnnepnapok[KORRIGÁLT],tblÜnnepnapok[NAP]),0),2),\"\"),\"\"),\"\")","v":""},{"$f":"IFERROR(IF(Ünnepnapok,IF(INDEX(tblÜnnepnapok[],MATCH(DATE(NaptÉv,MONTH(H9),DAY(H9)),IF(TartottÜnnepek,tblÜnnepnapok[KORRIGÁLT],tblÜnnepnapok[NAP]),0),6),INDEX(tblÜnnepnapok[],MATCH(DATE(NaptÉv,MONTH(H9),DAY(H9)),IF(TartottÜnnepek,tblÜnnepnapok[KORRIGÁLT],tblÜnnepnapok[NAP]),0),2),\"\"),\"\"),\"\")","v":""}]
[null,{"$f":"Napok+DATE(NaptÉv,4,1)-WEEKDAY(DATE(NaptÉv,4,1),(HétKezdete=\"HÉTFŐ\")+1)+22","v":"2018-04-22"},"2018-04-23","2018-04-24","2018-04-25","2018-04-26","2018-04-27","2018-04-28"]
[null,{"$f":"IFERROR(IF(Ünnepnapok,IF(INDEX(tblÜnnepnapok[],MATCH(DATE(NaptÉv,MONTH(B11),DAY(B11)),IF(TartottÜnnepek,tblÜnnepnapok[KORRIGÁLT],tblÜnnepnapok[NAP]),0),6),INDEX(tblÜnnepnapok[],MATCH(DATE(NaptÉv,MONTH(B11),DAY(B11)),IF(TartottÜnnepek,tblÜnnepnapok[KORRIGÁLT],tblÜnnepnapok[NAP]),0),2),\"\"),\"\"),\"\")","v":""},{"$f":"IFERROR(IF(Ünnepnapok,IF(INDEX(tblÜnnepnapok[],MATCH(DATE(NaptÉv,MONTH(C11),DAY(C11)),IF(TartottÜnnepek,tblÜnnepnapok[KORRIGÁLT],tblÜnnepnapok[NAP]),0),6),INDEX(tblÜnnepnapok[],MATCH(DATE(NaptÉv,MONTH(C11),DAY(C11)),IF(TartottÜnnepek,tblÜnnepnapok[KORRIGÁLT],tblÜnnepnapok[NAP]),0),2),\"\"),\"\"),\"\")","v":""},{"$f":"IFERROR(IF(Ünnepnapok,IF(INDEX(tblÜnnepnapok[],MATCH(DATE(NaptÉv,MONTH(D11),DAY(D11)),IF(TartottÜnnepek,tblÜnnepnapok[KORRIGÁLT],tblÜnnepnapok[NAP]),0),6),INDEX(tblÜnnepnapok[],MATCH(DATE(NaptÉv,MONTH(D11),DAY(D11)),IF(TartottÜnnepek,tblÜnnepnapok[KORRIGÁLT],tblÜnnepnapok[NAP]),0),2),\"\"),\"\"),\"\")","v":""},{"$f":"IFERROR(IF(Ünnepnapok,IF(INDEX(tblÜnnepnapok[],MATCH(DATE(NaptÉv,MONTH(E11),DAY(E11)),IF(TartottÜnnepek,tblÜnnepnapok[KORRIGÁLT],tblÜnnepnapok[NAP]),0),6),INDEX(tblÜnnepnapok[],MATCH(DATE(NaptÉv,MONTH(E11),DAY(E11)),IF(TartottÜnnepek,tblÜnnepnapok[KORRIGÁLT],tblÜnnepnapok[NAP]),0),2),\"\"),\"\"),\"\")","v":""},{"$f":"IFERROR(IF(Ünnepnapok,IF(INDEX(tblÜnnepnapok[],MATCH(DATE(NaptÉv,MONTH(F11),DAY(F11)),IF(TartottÜnnepek,tblÜnnepnapok[KORRIGÁLT],tblÜnnepnapok[NAP]),0),6),INDEX(tblÜnnepnapok[],MATCH(DATE(NaptÉv,MONTH(F11),DAY(F11)),IF(TartottÜnnepek,tblÜnnepnapok[KORRIGÁLT],tblÜnnepnapok[NAP]),0),2),\"\"),\"\"),\"\")","v":""},{"$f":"IFERROR(IF(Ünnepnapok,IF(INDEX(tblÜnnepnapok[],MATCH(DATE(NaptÉv,MONTH(G11),DAY(G11)),IF(TartottÜnnepek,tblÜnnepnapok[KORRIGÁLT],tblÜnnepnapok[NAP]),0),6),INDEX(tblÜnnepnapok[],MATCH(DATE(NaptÉv,MONTH(G11),DAY(G11)),IF(TartottÜnnepek,tblÜnnepnapok[KORRIGÁLT],tblÜnnepnapok[NAP]),0),2),\"\"),\"\"),\"\")","v":""},{"$f":"IFERROR(IF(Ünnepnapok,IF(INDEX(tblÜnnepnapok[],MATCH(DATE(NaptÉv,MONTH(H11),DAY(H11)),IF(TartottÜnnepek,tblÜnnepnapok[KORRIGÁLT],tblÜnnepnapok[NAP]),0),6),INDEX(tblÜnnepnapok[],MATCH(DATE(NaptÉv,MONTH(H11),DAY(H11)),IF(TartottÜnnepek,tblÜnnepnapok[KORRIGÁLT],tblÜnnepnapok[NAP]),0),2),\"\"),\"\"),\"\")","v":""}]
[null,{"$f":"Napok+DATE(NaptÉv,4,1)-WEEKDAY(DATE(NaptÉv,4,1),(HétKezdete=\"HÉTFŐ\")+1)+29","v":"2018-04-29"},"2018-04-30","2018-05-01","2018-05-02","2018-05-03","2018-05-04","2018-05-05"]
[null,{"$f":"IFERROR(IF(Ünnepnapok,IF(INDEX(tblÜnnepnapok[],MATCH(DATE(NaptÉv,MONTH(B13),DAY(B13)),IF(TartottÜnnepek,tblÜnnepnapok[KORRIGÁLT],tblÜnnepnapok[NAP]),0),6),INDEX(tblÜnnepnapok[],MATCH(DATE(NaptÉv,MONTH(B13),DAY(B13)),IF(TartottÜnnepek,tblÜnnepnapok[KORRIGÁLT],tblÜnnepnapok[NAP]),0),2),\"\"),\"\"),\"\")","v":""},{"$f":"IFERROR(IF(Ünnepnapok,IF(INDEX(tblÜnnepnapok[],MATCH(DATE(NaptÉv,MONTH(C13),DAY(C13)),IF(TartottÜnnepek,tblÜnnepnapok[KORRIGÁLT],tblÜnnepnapok[NAP]),0),6),INDEX(tblÜnnepnapok[],MATCH(DATE(NaptÉv,MONTH(C13),DAY(C13)),IF(TartottÜnnepek,tblÜnnepnapok[KORRIGÁLT],tblÜnnepnapok[NAP]),0),2),\"\"),\"\"),\"\")","v":""},{"$f":"IFERROR(IF(Ünnepnapok,IF(INDEX(tblÜnnepnapok[],MATCH(DATE(NaptÉv,MONTH(D13),DAY(D13)),IF(TartottÜnnepek,tblÜnnepnapok[KORRIGÁLT],tblÜnnepnapok[NAP]),0),6),INDEX(tblÜnnepnapok[],MATCH(DATE(NaptÉv,MONTH(D13),DAY(D13)),IF(TartottÜnnepek,tblÜnnepnapok[KORRIGÁLT],tblÜnnepnapok[NAP]),0),2),\"\"),\"\"),\"\")","v":""},{"$f":"IFERROR(IF(Ünnepnapok,IF(INDEX(tblÜnnepnapok[],MATCH(DATE(NaptÉv,MONTH(E13),DAY(E13)),IF(TartottÜnnepek,tblÜnnepnapok[KORRIGÁLT],tblÜnnepnapok[NAP]),0),6),INDEX(tblÜnnepnapok[],MATCH(DATE(NaptÉv,MONTH(E13),DAY(E13)),IF(TartottÜnnepek,tblÜnnepnapok[KORRIGÁLT],tblÜnnepnapok[NAP]),0),2),\"\"),\"\"),\"\")","v":""},{"$f":"IFERROR(IF(Ünnepnapok,IF(INDEX(tblÜnnepnapok[],MATCH(DATE(NaptÉv,MONTH(F13),DAY(F13)),IF(TartottÜnnepek,tblÜnnepnapok[KORRIGÁLT],tblÜnnepnapok[NAP]),0),6),INDEX(tblÜnnepnapok[],MATCH(DATE(NaptÉv,MONTH(F13),DAY(F13)),IF(TartottÜnnepek,tblÜnnepnapok[KORRIGÁLT],tblÜnnepnapok[NAP]),0),2),\"\"),\"\"),\"\")","v":""},{"$f":"IFERROR(IF(Ünnepnapok,IF(INDEX(tblÜnnepnapok[],MATCH(DATE(NaptÉv,MONTH(G13),DAY(G13)),IF(TartottÜnnepek,tblÜnnepnapok[KORRIGÁLT],tblÜnnepnapok[NAP]),0),6),INDEX(tblÜnnepnapok[],MATCH(DATE(NaptÉv,MONTH(G13),DAY(G13)),IF(TartottÜnnepek,tblÜnnepnapok[KORRIGÁLT],tblÜnnepnapok[NAP]),0),2),\"\"),\"\"),\"\")","v":""},{"$f":"IFERROR(IF(Ünnepnapok,IF(INDEX(tblÜnnepnapok[],MATCH(DATE(NaptÉv,MONTH(H13),DAY(H13)),IF(TartottÜnnepek,tblÜnnepnapok[KORRIGÁLT],tblÜnnepnapok[NAP]),0),6),INDEX(tblÜnnepnapok[],MATCH(DATE(NaptÉv,MONTH(H13),DAY(H13)),IF(TartottÜnnepek,tblÜnnepnapok[KORRIGÁLT],tblÜnnepnapok[NAP]),0),2),\"\"),\"\"),\"\")","v":""}]
[null,{"$f":"Napok+DATE(NaptÉv,4,1)-WEEKDAY(DATE(NaptÉv,4,1),(HétKezdete=\"HÉTFŐ\")+1)+36","v":"2018-05-06"},"2018-05-07","MEGJEGYZÉSEK"]
[null,{"$f":"IFERROR(IF(Ünnepnapok,IF(INDEX(tblÜnnepnapok[],MATCH(DATE(NaptÉv,MONTH(B15),DAY(B15)),IF(TartottÜnnepek,tblÜnnepnapok[KORRIGÁLT],tblÜnnepnapok[NAP]),0),6),INDEX(tblÜnnepnapok[],MATCH(DATE(NaptÉv,MONTH(B15),DAY(B15)),IF(TartottÜnnepek,tblÜnnepnapok[KORRIGÁLT],tblÜnnepnapok[NAP]),0),2),\"\"),\"\"),\"\")","v":""},{"$f":"IFERROR(IF(Ünnepnapok,IF(INDEX(tblÜnnepnapok[],MATCH(DATE(NaptÉv,MONTH(C15),DAY(C15)),IF(TartottÜnnepek,tblÜnnepnapok[KORRIGÁLT],tblÜnnepnapok[NAP]),0),6),INDEX(tblÜnnepnapok[],MATCH(DATE(NaptÉv,MONTH(C15),DAY(C15)),IF(TartottÜnnepek,tblÜnnepnapok[KORRIGÁLT],tblÜnnepnapok[NAP]),0),2),\"\"),\"\"),\"\")","v":""}]

{"sheet":"Május","index":5,"n_rows":16,"n_cols":8,"rows_kept":16,"merged":[[1,1,1,3],[14,3,14,7],[15,3,15,7],[16,1,16,7]]}
[]
[null,{"$f":"B9","v":"2018-05-13"}]
[]
[null,{"$f":"HétKezdete","v":"VASÁRNAP"},{"$f":"UPPER(TEXT(C5,\"nnnn\"))","v":"HÉTFŐ"},"KEDD","SZERDA","CSÜTÖRTÖK","PÉNTEK","SZOMBAT"]
[null,{"$f":"Napok+DATE(NaptÉv,5,1)-WEEKDAY(DATE(NaptÉv,5,1),(HétKezdete=\"HÉTFŐ\")+1)+1","v":"2018-04-29"},"2018-04-30","2018-05-01","2018-05-02","2018-05-03","2018-05-04","2018-05-05"]
[null,{"$f":"IFERROR(IF(Ünnepnapok,IF(INDEX(tblÜnnepnapok[],MATCH(DATE(NaptÉv-(DAY(B5)>15)+(ROW()>6),MONTH(B5),DAY(B5)),IF(TartottÜnnepek,tblÜnnepnapok[KORRIGÁLT],tblÜnnepnapok[NAP]),0),6),INDEX(tblÜnnepnapok[],MATCH(DATE(NaptÉv-(DAY(B5)>15)+(ROW()>6),MONTH(B5),DAY(B5)),IF(TartottÜnnepek,tblÜnnepnapok[KORRIGÁLT],tblÜnnepnapok[NAP]),0),2),\"\"),\"\"),\"\")","v":""},{"$f":"IFERROR(IF(Ünnepnapok,IF(INDEX(tblÜnnepnapok[],MATCH(DATE(NaptÉv-(DAY(C5)>15)+(ROW()>6),MONTH(C5),DAY(C5)),IF(TartottÜnnepek,tblÜnnepnapok[KORRIGÁLT],tblÜnnepnapok[NAP]),0),6),INDEX(tblÜnnepnapok[],MATCH(DATE(NaptÉv-(DAY(C5)>15)+(ROW()>6),MONTH(C5),DAY(C5)),IF(TartottÜnnepek,tblÜnnepnapok[KORRIGÁLT],tblÜnnepnapok[NAP]),0),2),\"\"),\"\"),\"\")","v":""},{"$f":"IFERROR(IF(Ünnepnapok,IF(INDEX(tblÜnnepnapok[],MATCH(DATE(NaptÉv-(DAY(D5)>15)+(ROW()>6),MONTH(D5),DAY(D5)),IF(TartottÜnnepek,tblÜnnepnapok[KORRIGÁLT],tblÜnnepnapok[NAP]),0),6),INDEX(tblÜnnepnapok[],MATCH(DATE(NaptÉv-(DAY(D5)>15)+(ROW()>6),MONTH(D5),DAY(D5)),IF(TartottÜnnepek,tblÜnnepnapok[KORRIGÁLT],tblÜnnepnapok[NAP]),0),2),\"\"),\"\"),\"\")","v":""},{"$f":"IFERROR(IF(Ünnepnapok,IF(INDEX(tblÜnnepnapok[],MATCH(DATE(NaptÉv-(DAY(E5)>15)+(ROW()>6),MONTH(E5),DAY(E5)),IF(TartottÜnnepek,tblÜnnepnapok[KORRIGÁLT],tblÜnnepnapok[NAP]),0),6),INDEX(tblÜnnepnapok[],MATCH(DATE(NaptÉv-(DAY(E5)>15)+(ROW()>6),MONTH(E5),DAY(E5)),IF(TartottÜnnepek,tblÜnnepnapok[KORRIGÁLT],tblÜnnepnapok[NAP]),0),2),\"\"),\"\"),\"\")","v":""},{"$f":"IFERROR(IF(Ünnepnapok,IF(INDEX(tblÜnnepnapok[],MATCH(DATE(NaptÉv-(DAY(F5)>15)+(ROW()>6),MONTH(F5),DAY(F5)),IF(TartottÜnnepek,tblÜnnepnapok[KORRIGÁLT],tblÜnnepnapok[NAP]),0),6),INDEX(tblÜnnepnapok[],MATCH(DATE(NaptÉv-(DAY(F5)>15)+(ROW()>6),MONTH(F5),DAY(F5)),IF(TartottÜnnepek,tblÜnnepnapok[KORRIGÁLT],tblÜnnepnapok[NAP]),0),2),\"\"),\"\"),\"\")","v":""},{"$f":"IFERROR(IF(Ünnepnapok,IF(INDEX(tblÜnnepnapok[],MATCH(DATE(NaptÉv-(DAY(G5)>15)+(ROW()>6),MONTH(G5),DAY(G5)),IF(TartottÜnnepek,tblÜnnepnapok[KORRIGÁLT],tblÜnnepnapok[NAP]),0),6),INDEX(tblÜnnepnapok[],MATCH(DATE(NaptÉv-(DAY(G5)>15)+(ROW()>6),MONTH(G5),DAY(G5)),IF(TartottÜnnepek,tblÜnnepnapok[KORRIGÁLT],tblÜnnepnapok[NAP]),0),2),\"\"),\"\"),\"\")","v":""},{"$f":"IFERROR(IF(Ünnepnapok,IF(INDEX(tblÜnnepnapok[],MATCH(DATE(NaptÉv-(DAY(H5)>15)+(ROW()>6),MONTH(H5),DAY(H5)),IF(TartottÜnnepek,tblÜnnepnapok[KORRIGÁLT],tblÜnnepnapok[NAP]),0),6),INDEX(tblÜnnepnapok[],MATCH(DATE(NaptÉv-(DAY(H5)>15)+(ROW()>6),MONTH(H5),DAY(H5)),IF(TartottÜnnepek,tblÜnnepnapok[KORRIGÁLT],tblÜnnepnapok[NAP]),0),2),\"\"),\"\"),\"\")","v":""}]
[null,{"$f":"Napok+DATE(NaptÉv,5,1)-WEEKDAY(DATE(NaptÉv,5,1),(HétKezdete=\"HÉTFŐ\")+1)+8","v":"2018-05-06"},"2018-05-07","2018-05-08","2018-05-09","2018-05-10","2018-05-11","2018-05-12"]
[null,{"$f":"IFERROR(IF(Ünnepnapok,IF(INDEX(tblÜnnepnapok[],MATCH(DATE(NaptÉv,MONTH(B7),DAY(B7)),IF(TartottÜnnepek,tblÜnnepnapok[KORRIGÁLT],tblÜnnepnapok[NAP]),0),6),INDEX(tblÜnnepnapok[],MATCH(DATE(NaptÉv,MONTH(B7),DAY(B7)),IF(TartottÜnnepek,tblÜnnepnapok[KORRIGÁLT],tblÜnnepnapok[NAP]),0),2),\"\"),\"\"),\"\")","v":""},{"$f":"IFERROR(IF(Ünnepnapok,IF(INDEX(tblÜnnepnapok[],MATCH(DATE(NaptÉv,MONTH(C7),DAY(C7)),IF(TartottÜnnepek,tblÜnnepnapok[KORRIGÁLT],tblÜnnepnapok[NAP]),0),6),INDEX(tblÜnnepnapok[],MATCH(DATE(NaptÉv,MONTH(C7),DAY(C7)),IF(TartottÜnnepek,tblÜnnepnapok[KORRIGÁLT],tblÜnnepnapok[NAP]),0),2),\"\"),\"\"),\"\")","v":""},{"$f":"IFERROR(IF(Ünnepnapok,IF(INDEX(tblÜnnepnapok[],MATCH(DATE(NaptÉv,MONTH(D7),DAY(D7)),IF(TartottÜnnepek,tblÜnnepnapok[KORRIGÁLT],tblÜnnepnapok[NAP]),0),6),INDEX(tblÜnnepnapok[],MATCH(DATE(NaptÉv,MONTH(D7),DAY(D7)),IF(TartottÜnnepek,tblÜnnepnapok[KORRIGÁLT],tblÜnnepnapok[NAP]),0),2),\"\"),\"\"),\"\")","v":""},{"$f":"IFERROR(IF(Ünnepnapok,IF(INDEX(tblÜnnepnapok[],MATCH(DATE(NaptÉv,MONTH(E7),DAY(E7)),IF(TartottÜnnepek,tblÜnnepnapok[KORRIGÁLT],tblÜnnepnapok[NAP]),0),6),INDEX(tblÜnnepnapok[],MATCH(DATE(NaptÉv,MONTH(E7),DAY(E7)),IF(TartottÜnnepek,tblÜnnepnapok[KORRIGÁLT],tblÜnnepnapok[NAP]),0),2),\"\"),\"\"),\"\")","v":""},{"$f":"IFERROR(IF(Ünnepnapok,IF(INDEX(tblÜnnepnapok[],MATCH(DATE(NaptÉv,MONTH(F7),DAY(F7)),IF(TartottÜnnepek,tblÜnnepnapok[KORRIGÁLT],tblÜnnepnapok[NAP]),0),6),INDEX(tblÜnnepnapok[],MATCH(DATE(NaptÉv,MONTH(F7),DAY(F7)),IF(TartottÜnnepek,tblÜnnepnapok[KORRIGÁLT],tblÜnnepnapok[NAP]),0),2),\"\"),\"\"),\"\")","v":""},{"$f":"IFERROR(IF(Ünnepnapok,IF(INDEX(tblÜnnepnapok[],MATCH(DATE(NaptÉv,MONTH(G7),DAY(G7)),IF(TartottÜnnepek,tblÜnnepnapok[KORRIGÁLT],tblÜnnepnapok[NAP]),0),6),INDEX(tblÜnnepnapok[],MATCH(DATE(NaptÉv,MONTH(G7),DAY(G7)),IF(TartottÜnnepek,tblÜnnepnapok[KORRIGÁLT],tblÜnnepnapok[NAP]),0),2),\"\"),\"\"),\"\")","v":""},{"$f":"IFERROR(IF(Ünnepnapok,IF(INDEX(tblÜnnepnapok[],MATCH(DATE(NaptÉv,MONTH(H7),DAY(H7)),IF(TartottÜnnepek,tblÜnnepnapok[KORRIGÁLT],tblÜnnepnapok[NAP]),0),6),INDEX(tblÜnnepnapok[],MATCH(DATE(NaptÉv,MONTH(H7),DAY(H7)),IF(TartottÜnnepek,tblÜnnepnapok[KORRIGÁLT],tblÜnnepnapok[NAP]),0),2),\"\"),\"\"),\"\")","v":""}]
[null,{"$f":"Napok+DATE(NaptÉv,5,1)-WEEKDAY(DATE(NaptÉv,5,1),(HétKezdete=\"HÉTFŐ\")+1)+15","v":"2018-05-13"},"2018-05-14","2018-05-15","2018-05-16","2018-05-17","2018-05-18","2018-05-19"]
[null,{"$f":"IFERROR(IF(Ünnepnapok,IF(INDEX(tblÜnnepnapok[],MATCH(DATE(NaptÉv,MONTH(B9),DAY(B9)),IF(TartottÜnnepek,tblÜnnepnapok[KORRIGÁLT],tblÜnnepnapok[NAP]),0),6),INDEX(tblÜnnepnapok[],MATCH(DATE(NaptÉv,MONTH(B9),DAY(B9)),IF(TartottÜnnepek,tblÜnnepnapok[KORRIGÁLT],tblÜnnepnapok[NAP]),0),2),\"\"),\"\"),\"\")","v":""},{"$f":"IFERROR(IF(Ünnepnapok,IF(INDEX(tblÜnnepnapok[],MATCH(DATE(NaptÉv,MONTH(C9),DAY(C9)),IF(TartottÜnnepek,tblÜnnepnapok[KORRIGÁLT],tblÜnnepnapok[NAP]),0),6),INDEX(tblÜnnepnapok[],MATCH(DATE(NaptÉv,MONTH(C9),DAY(C9)),IF(TartottÜnnepek,tblÜnnepnapok[KORRIGÁLT],tblÜnnepnapok[NAP]),0),2),\"\"),\"\"),\"\")","v":""},{"$f":"IFERROR(IF(Ünnepnapok,IF(INDEX(tblÜnnepnapok[],MATCH(DATE(NaptÉv,MONTH(D9),DAY(D9)),IF(TartottÜnnepek,tblÜnnepnapok[KORRIGÁLT],tblÜnnepnapok[NAP]),0),6),INDEX(tblÜnnepnapok[],MATCH(DATE(NaptÉv,MONTH(D9),DAY(D9)),IF(TartottÜnnepek,tblÜnnepnapok[KORRIGÁLT],tblÜnnepnapok[NAP]),0),2),\"\"),\"\"),\"\")","v":""},{"$f":"IFERROR(IF(Ünnepnapok,IF(INDEX(tblÜnnepnapok[],MATCH(DATE(NaptÉv,MONTH(E9),DAY(E9)),IF(TartottÜnnepek,tblÜnnepnapok[KORRIGÁLT],tblÜnnepnapok[NAP]),0),6),INDEX(tblÜnnepnapok[],MATCH(DATE(NaptÉv,MONTH(E9),DAY(E9)),IF(TartottÜnnepek,tblÜnnepnapok[KORRIGÁLT],tblÜnnepnapok[NAP]),0),2),\"\"),\"\"),\"\")","v":""},{"$f":"IFERROR(IF(Ünnepnapok,IF(INDEX(tblÜnnepnapok[],MATCH(DATE(NaptÉv,MONTH(F9),DAY(F9)),IF(TartottÜnnepek,tblÜnnepnapok[KORRIGÁLT],tblÜnnepnapok[NAP]),0),6),INDEX(tblÜnnepnapok[],MATCH(DATE(NaptÉv,MONTH(F9),DAY(F9)),IF(TartottÜnnepek,tblÜnnepnapok[KORRIGÁLT],tblÜnnepnapok[NAP]),0),2),\"\"),\"\"),\"\")","v":""},{"$f":"IFERROR(IF(Ünnepnapok,IF(INDEX(tblÜnnepnapok[],MATCH(DATE(NaptÉv,MONTH(G9),DAY(G9)),IF(TartottÜnnepek,tblÜnnepnapok[KORRIGÁLT],tblÜnnepnapok[NAP]),0),6),INDEX(tblÜnnepnapok[],MATCH(DATE(NaptÉv,MONTH(G9),DAY(G9)),IF(TartottÜnnepek,tblÜnnepnapok[KORRIGÁLT],tblÜnnepnapok[NAP]),0),2),\"\"),\"\"),\"\")","v":""},{"$f":"IFERROR(IF(Ünnepnapok,IF(INDEX(tblÜnnepnapok[],MATCH(DATE(NaptÉv,MONTH(H9),DAY(H9)),IF(TartottÜnnepek,tblÜnnepnapok[KORRIGÁLT],tblÜnnepnapok[NAP]),0),6),INDEX(tblÜnnepnapok[],MATCH(DATE(NaptÉv,MONTH(H9),DAY(H9)),IF(TartottÜnnepek,tblÜnnepnapok[KORRIGÁLT],tblÜnnepnapok[NAP]),0),2),\"\"),\"\"),\"\")","v":""}]
[null,{"$f":"Napok+DATE(NaptÉv,5,1)-WEEKDAY(DATE(NaptÉv,5,1),(HétKezdete=\"HÉTFŐ\")+1)+22","v":"2018-05-20"},"2018-05-21","2018-05-22","2018-05-23","2018-05-24","2018-05-25","2018-05-26"]
[null,{"$f":"IFERROR(IF(Ünnepnapok,IF(INDEX(tblÜnnepnapok[],MATCH(DATE(NaptÉv,MONTH(B11),DAY(B11)),IF(TartottÜnnepek,tblÜnnepnapok[KORRIGÁLT],tblÜnnepnapok[NAP]),0),6),INDEX(tblÜnnepnapok[],MATCH(DATE(NaptÉv,MONTH(B11),DAY(B11)),IF(TartottÜnnepek,tblÜnnepnapok[KORRIGÁLT],tblÜnnepnapok[NAP]),0),2),\"\"),\"\"),\"\")","v":""},{"$f":"IFERROR(IF(Ünnepnapok,IF(INDEX(tblÜnnepnapok[],MATCH(DATE(NaptÉv,MONTH(C11),DAY(C11)),IF(TartottÜnnepek,tblÜnnepnapok[KORRIGÁLT],tblÜnnepnapok[NAP]),0),6),INDEX(tblÜnnepnapok[],MATCH(DATE(NaptÉv,MONTH(C11),DAY(C11)),IF(TartottÜnnepek,tblÜnnepnapok[KORRIGÁLT],tblÜnnepnapok[NAP]),0),2),\"\"),\"\"),\"\")","v":""},{"$f":"IFERROR(IF(Ünnepnapok,IF(INDEX(tblÜnnepnapok[],MATCH(DATE(NaptÉv,MONTH(D11),DAY(D11)),IF(TartottÜnnepek,tblÜnnepnapok[KORRIGÁLT],tblÜnnepnapok[NAP]),0),6),INDEX(tblÜnnepnapok[],MATCH(DATE(NaptÉv,MONTH(D11),DAY(D11)),IF(TartottÜnnepek,tblÜnnepnapok[KORRIGÁLT],tblÜnnepnapok[NAP]),0),2),\"\"),\"\"),\"\")","v":""},{"$f":"IFERROR(IF(Ünnepnapok,IF(INDEX(tblÜnnepnapok[],MATCH(DATE(NaptÉv,MONTH(E11),DAY(E11)),IF(TartottÜnnepek,tblÜnnepnapok[KORRIGÁLT],tblÜnnepnapok[NAP]),0),6),INDEX(tblÜnnepnapok[],MATCH(DATE(NaptÉv,MONTH(E11),DAY(E11)),IF(TartottÜnnepek,tblÜnnepnapok[KORRIGÁLT],tblÜnnepnapok[NAP]),0),2),\"\"),\"\"),\"\")","v":""},{"$f":"IFERROR(IF(Ünnepnapok,IF(INDEX(tblÜnnepnapok[],MATCH(DATE(NaptÉv,MONTH(F11),DAY(F11)),IF(TartottÜnnepek,tblÜnnepnapok[KORRIGÁLT],tblÜnnepnapok[NAP]),0),6),INDEX(tblÜnnepnapok[],MATCH(DATE(NaptÉv,MONTH(F11),DAY(F11)),IF(TartottÜnnepek,tblÜnnepnapok[KORRIGÁLT],tblÜnnepnapok[NAP]),0),2),\"\"),\"\"),\"\")","v":""},{"$f":"IFERROR(IF(Ünnepnapok,IF(INDEX(tblÜnnepnapok[],MATCH(DATE(NaptÉv,MONTH(G11),DAY(G11)),IF(TartottÜnnepek,tblÜnnepnapok[KORRIGÁLT],tblÜnnepnapok[NAP]),0),6),INDEX(tblÜnnepnapok[],MATCH(DATE(NaptÉv,MONTH(G11),DAY(G11)),IF(TartottÜnnepek,tblÜnnepnapok[KORRIGÁLT],tblÜnnepnapok[NAP]),0),2),\"\"),\"\"),\"\")","v":""},{"$f":"IFERROR(IF(Ünnepnapok,IF(INDEX(tblÜnnepnapok[],MATCH(DATE(NaptÉv,MONTH(H11),DAY(H11)),IF(TartottÜnnepek,tblÜnnepnapok[KORRIGÁLT],tblÜnnepnapok[NAP]),0),6),INDEX(tblÜnnepnapok[],MATCH(DATE(NaptÉv,MONTH(H11),DAY(H11)),IF(TartottÜnnepek,tblÜnnepnapok[KORRIGÁLT],tblÜnnepnapok[NAP]),0),2),\"\"),\"\"),\"\")","v":""}]
[null,{"$f":"Napok+DATE(NaptÉv,5,1)-WEEKDAY(DATE(NaptÉv,5,1),(HétKezdete=\"HÉTFŐ\")+1)+29","v":"2018-05-27"},"2018-05-28","2018-05-29","2018-05-30","2018-05-31","2018-06-01","2018-06-02"]
[null,{"$f":"IFERROR(IF(Ünnepnapok,IF(INDEX(tblÜnnepnapok[],MATCH(DATE(NaptÉv,MONTH(B13),DAY(B13)),IF(TartottÜnnepek,tblÜnnepnapok[KORRIGÁLT],tblÜnnepnapok[NAP]),0),6),INDEX(tblÜnnepnapok[],MATCH(DATE(NaptÉv,MONTH(B13),DAY(B13)),IF(TartottÜnnepek,tblÜnnepnapok[KORRIGÁLT],tblÜnnepnapok[NAP]),0),2),\"\"),\"\"),\"\")","v":""},{"$f":"IFERROR(IF(Ünnepnapok,IF(INDEX(tblÜnnepnapok[],MATCH(DATE(NaptÉv,MONTH(C13),DAY(C13)),IF(TartottÜnnepek,tblÜnnepnapok[KORRIGÁLT],tblÜnnepnapok[NAP]),0),6),INDEX(tblÜnnepnapok[],MATCH(DATE(NaptÉv,MONTH(C13),DAY(C13)),IF(TartottÜnnepek,tblÜnnepnapok[KORRIGÁLT],tblÜnnepnapok[NAP]),0),2),\"\"),\"\"),\"\")","v":"Húsvéthétfő"},{"$f":"IFERROR(IF(Ünnepnapok,IF(INDEX(tblÜnnepnapok[],MATCH(DATE(NaptÉv,MONTH(D13),DAY(D13)),IF(TartottÜnnepek,tblÜnnepnapok[KORRIGÁLT],tblÜnnepnapok[NAP]),0),6),INDEX(tblÜnnepnapok[],MATCH(DATE(NaptÉv,MONTH(D13),DAY(D13)),IF(TartottÜnnepek,tblÜnnepnapok[KORRIGÁLT],tblÜnnepnapok[NAP]),0),2),\"\"),\"\"),\"\")","v":""},{"$f":"IFERROR(IF(Ünnepnapok,IF(INDEX(tblÜnnepnapok[],MATCH(DATE(NaptÉv,MONTH(E13),DAY(E13)),IF(TartottÜnnepek,tblÜnnepnapok[KORRIGÁLT],tblÜnnepnapok[NAP]),0),6),INDEX(tblÜnnepnapok[],MATCH(DATE(NaptÉv,MONTH(E13),DAY(E13)),IF(TartottÜnnepek,tblÜnnepnapok[KORRIGÁLT],tblÜnnepnapok[NAP]),0),2),\"\"),\"\"),\"\")","v":""},{"$f":"IFERROR(IF(Ünnepnapok,IF(INDEX(tblÜnnepnapok[],MATCH(DATE(NaptÉv,MONTH(F13),DAY(F13)),IF(TartottÜnnepek,tblÜnnepnapok[KORRIGÁLT],tblÜnnepnapok[NAP]),0),6),INDEX(tblÜnnepnapok[],MATCH(DATE(NaptÉv,MONTH(F13),DAY(F13)),IF(TartottÜnnepek,tblÜnnepnapok[KORRIGÁLT],tblÜnnepnapok[NAP]),0),2),\"\"),\"\"),\"\")","v":""},{"$f":"IFERROR(IF(Ünnepnapok,IF(INDEX(tblÜnnepnapok[],MATCH(DATE(NaptÉv,MONTH(G13),DAY(G13)),IF(TartottÜnnepek,tblÜnnepnapok[KORRIGÁLT],tblÜnnepnapok[NAP]),0),6),INDEX(tblÜnnepnapok[],MATCH(DATE(NaptÉv,MONTH(G13),DAY(G13)),IF(TartottÜnnepek,tblÜnnepnapok[KORRIGÁLT],tblÜnnepnapok[NAP]),0),2),\"\"),\"\"),\"\")","v":""},{"$f":"IFERROR(IF(Ünnepnapok,IF(INDEX(tblÜnnepnapok[],MATCH(DATE(NaptÉv,MONTH(H13),DAY(H13)),IF(TartottÜnnepek,tblÜnnepnapok[KORRIGÁLT],tblÜnnepnapok[NAP]),0),6),INDEX(tblÜnnepnapok[],MATCH(DATE(NaptÉv,MONTH(H13),DAY(H13)),IF(TartottÜnnepek,tblÜnnepnapok[KORRIGÁLT],tblÜnnepnapok[NAP]),0),2),\"\"),\"\"),\"\")","v":""}]
[null,{"$f":"Napok+DATE(NaptÉv,5,1)-WEEKDAY(DATE(NaptÉv,5,1),(HétKezdete=\"HÉTFŐ\")+1)+36","v":"2018-06-03"},"2018-06-04","MEGJEGYZÉSEK"]
[null,{"$f":"IFERROR(IF(Ünnepnapok,IF(INDEX(tblÜnnepnapok[],MATCH(DATE(NaptÉv,MONTH(B15),DAY(B15)),IF(TartottÜnnepek,tblÜnnepnapok[KORRIGÁLT],tblÜnnepnapok[NAP]),0),6),INDEX(tblÜnnepnapok[],MATCH(DATE(NaptÉv,MONTH(B15),DAY(B15)),IF(TartottÜnnepek,tblÜnnepnapok[KORRIGÁLT],tblÜnnepnapok[NAP]),0),2),\"\"),\"\"),\"\")","v":""},{"$f":"IFERROR(IF(Ünnepnapok,IF(INDEX(tblÜnnepnapok[],MATCH(DATE(NaptÉv,MONTH(C15),DAY(C15)),IF(TartottÜnnepek,tblÜnnepnapok[KORRIGÁLT],tblÜnnepnapok[NAP]),0),6),INDEX(tblÜnnepnapok[],MATCH(DATE(NaptÉv,MONTH(C15),DAY(C15)),IF(TartottÜnnepek,tblÜnnepnapok[KORRIGÁLT],tblÜnnepnapok[NAP]),0),2),\"\"),\"\"),\"\")","v":""}]

{"sheet":"Június","index":6,"n_rows":16,"n_cols":8,"rows_kept":16,"merged":[[1,1,1,3],[14,3,14,7],[15,3,15,7],[16,1,16,7]]}
[]
[null,{"$f":"B9","v":"2018-06-10"}]
[]
[null,{"$f":"HétKezdete","v":"VASÁRNAP"},{"$f":"UPPER(TEXT(C5,\"nnnn\"))","v":"HÉTFŐ"},"KEDD","SZERDA","CSÜTÖRTÖK","PÉNTEK","SZOMBAT"]
[null,{"$f":"Napok+DATE(NaptÉv,6,1)-WEEKDAY(DATE(NaptÉv,6,1),(HétKezdete=\"HÉTFŐ\")+1)+1","v":"2018-05-27"},"2018-05-28","2018-05-29","2018-05-30","2018-05-31","2018-06-01","2018-06-02"]
[null,{"$f":"IFERROR(IF(Ünnepnapok,IF(INDEX(tblÜnnepnapok[],MATCH(DATE(NaptÉv-(DAY(B5)>15)+(ROW()>6),MONTH(B5),DAY(B5)),IF(TartottÜnnepek,tblÜnnepnapok[KORRIGÁLT],tblÜnnepnapok[NAP]),0),6),INDEX(tblÜnnepnapok[],MATCH(DATE(NaptÉv-(DAY(B5)>15)+(ROW()>6),MONTH(B5),DAY(B5)),IF(TartottÜnnepek,tblÜnnepnapok[KORRIGÁLT],tblÜnnepnapok[NAP]),0),2),\"\"),\"\"),\"\")","v":""},{"$f":"IFERROR(IF(Ünnepnapok,IF(INDEX(tblÜnnepnapok[],MATCH(DATE(NaptÉv-(DAY(C5)>15)+(ROW()>6),MONTH(C5),DAY(C5)),IF(TartottÜnnepek,tblÜnnepnapok[KORRIGÁLT],tblÜnnepnapok[NAP]),0),6),INDEX(tblÜnnepnapok[],MATCH(DATE(NaptÉv-(DAY(C5)>15)+(ROW()>6),MONTH(C5),DAY(C5)),IF(TartottÜnnepek,tblÜnnepnapok[KORRIGÁLT],tblÜnnepnapok[NAP]),0),2),\"\"),\"\"),\"\")","v":""},{"$f":"IFERROR(IF(Ünnepnapok,IF(INDEX(tblÜnnepnapok[],MATCH(DATE(NaptÉv-(DAY(D5)>15)+(ROW()>6),MONTH(D5),DAY(D5)),IF(TartottÜnnepek,tblÜnnepnapok[KORRIGÁLT],tblÜnnepnapok[NAP]),0),6),INDEX(tblÜnnepnapok[],MATCH(DATE(NaptÉv-(DAY(D5)>15)+(ROW()>6),MONTH(D5),DAY(D5)),IF(TartottÜnnepek,tblÜnnepnapok[KORRIGÁLT],tblÜnnepnapok[NAP]),0),2),\"\"),\"\"),\"\")","v":""},{"$f":"IFERROR(IF(Ünnepnapok,IF(INDEX(tblÜnnepnapok[],MATCH(DATE(NaptÉv-(DAY(E5)>15)+(ROW()>6),MONTH(E5),DAY(E5)),IF(TartottÜnnepek,tblÜnnepnapok[KORRIGÁLT],tblÜnnepnapok[NAP]),0),6),INDEX(tblÜnnepnapok[],MATCH(DATE(NaptÉv-(DAY(E5)>15)+(ROW()>6),MONTH(E5),DAY(E5)),IF(TartottÜnnepek,tblÜnnepnapok[KORRIGÁLT],tblÜnnepnapok[NAP]),0),2),\"\"),\"\"),\"\")","v":""},{"$f":"IFERROR(IF(Ünnepnapok,IF(INDEX(tblÜnnepnapok[],MATCH(DATE(NaptÉv-(DAY(F5)>15)+(ROW()>6),MONTH(F5),DAY(F5)),IF(TartottÜnnepek,tblÜnnepnapok[KORRIGÁLT],tblÜnnepnapok[NAP]),0),6),INDEX(tblÜnnepnapok[],MATCH(DATE(NaptÉv-(DAY(F5)>15)+(ROW()>6),MONTH(F5),DAY(F5)),IF(TartottÜnnepek,tblÜnnepnapok[KORRIGÁLT],tblÜnnepnapok[NAP]),0),2),\"\"),\"\"),\"\")","v":""},{"$f":"IFERROR(IF(Ünnepnapok,IF(INDEX(tblÜnnepnapok[],MATCH(DATE(NaptÉv-(DAY(G5)>15)+(ROW()>6),MONTH(G5),DAY(G5)),IF(TartottÜnnepek,tblÜnnepnapok[KORRIGÁLT],tblÜnnepnapok[NAP]),0),6),INDEX(tblÜnnepnapok[],MATCH(DATE(NaptÉv-(DAY(G5)>15)+(ROW()>6),MONTH(G5),DAY(G5)),IF(TartottÜnnepek,tblÜnnepnapok[KORRIGÁLT],tblÜnnepnapok[NAP]),0),2),\"\"),\"\"),\"\")","v":""},{"$f":"IFERROR(IF(Ünnepnapok,IF(INDEX(tblÜnnepnapok[],MATCH(DATE(NaptÉv-(DAY(H5)>15)+(ROW()>6),MONTH(H5),DAY(H5)),IF(TartottÜnnepek,tblÜnnepnapok[KORRIGÁLT],tblÜnnepnapok[NAP]),0),6),INDEX(tblÜnnepnapok[],MATCH(DATE(NaptÉv-(DAY(H5)>15)+(ROW()>6),MONTH(H5),DAY(H5)),IF(TartottÜnnepek,tblÜnnepnapok[KORRIGÁLT],tblÜnnepnapok[NAP]),0),2),\"\"),\"\"),\"\")","v":""}]
[null,{"$f":"Napok+DATE(NaptÉv,6,1)-WEEKDAY(DATE(NaptÉv,6,1),(HétKezdete=\"HÉTFŐ\")+1)+8","v":"2018-06-03"},"2018-06-04","2018-06-05","2018-06-06","2018-06-07","2018-06-08","2018-06-09"]
[null,{"$f":"IFERROR(IF(Ünnepnapok,IF(INDEX(tblÜnnepnapok[],MATCH(DATE(NaptÉv,MONTH(B7),DAY(B7)),IF(TartottÜnnepek,tblÜnnepnapok[KORRIGÁLT],tblÜnnepnapok[NAP]),0),6),INDEX(tblÜnnepnapok[],MATCH(DATE(NaptÉv,MONTH(B7),DAY(B7)),IF(TartottÜnnepek,tblÜnnepnapok[KORRIGÁLT],tblÜnnepnapok[NAP]),0),2),\"\"),\"\"),\"\")","v":""},{"$f":"IFERROR(IF(Ünnepnapok,IF(INDEX(tblÜnnepnapok[],MATCH(DATE(NaptÉv,MONTH(C7),DAY(C7)),IF(TartottÜnnepek,tblÜnnepnapok[KORRIGÁLT],tblÜnnepnapok[NAP]),0),6),INDEX(tblÜnnepnapok[],MATCH(DATE(NaptÉv,MONTH(C7),DAY(C7)),IF(TartottÜnnepek,tblÜnnepnapok[KORRIGÁLT],tblÜnnepnapok[NAP]),0),2),\"\"),\"\"),\"\")","v":""},{"$f":"IFERROR(IF(Ünnepnapok,IF(INDEX(tblÜnnepnapok[],MATCH(DATE(NaptÉv,MONTH(D7),DAY(D7)),IF(TartottÜnnepek,tblÜnnepnapok[KORRIGÁLT],tblÜnnepnapok[NAP]),0),6),INDEX(tblÜnnepnapok[],MATCH(DATE(NaptÉv,MONTH(D7),DAY(D7)),IF(TartottÜnnepek,tblÜnnepnapok[KORRIGÁLT],tblÜnnepnapok[NAP]),0),2),\"\"),\"\"),\"\")","v":""},{"$f":"IFERROR(IF(Ünnepnapok,IF(INDEX(tblÜnnepnapok[],MATCH(DATE(NaptÉv,MONTH(E7),DAY(E7)),IF(TartottÜnnepek,tblÜnnepnapok[KORRIGÁLT],tblÜnnepnapok[NAP]),0),6),INDEX(tblÜnnepnapok[],MATCH(DATE(NaptÉv,MONTH(E7),DAY(E7)),IF(TartottÜnnepek,tblÜnnepnapok[KORRIGÁLT],tblÜnnepnapok[NAP]),0),2),\"\"),\"\"),\"\")","v":""},{"$f":"IFERROR(IF(Ünnepnapok,IF(INDEX(tblÜnnepnapok[],MATCH(DATE(NaptÉv,MONTH(F7),DAY(F7)),IF(TartottÜnnepek,tblÜnnepnapok[KORRIGÁLT],tblÜnnepnapok[NAP]),0),6),INDEX(tblÜnnepnapok[],MATCH(DATE(NaptÉv,MONTH(F7),DAY(F7)),IF(TartottÜnnepek,tblÜnnepnapok[KORRIGÁLT],tblÜnnepnapok[NAP]),0),2),\"\"),\"\"),\"\")","v":""},{"$f":"IFERROR(IF(Ünnepnapok,IF(INDEX(tblÜnnepnapok[],MATCH(DATE(NaptÉv,MONTH(G7),DAY(G7)),IF(TartottÜnnepek,tblÜnnepnapok[KORRIGÁLT],tblÜnnepnapok[NAP]),0),6),INDEX(tblÜnnepnapok[],MATCH(DATE(NaptÉv,MONTH(G7),DAY(G7)),IF(TartottÜnnepek,tblÜnnepnapok[KORRIGÁLT],tblÜnnepnapok[NAP]),0),2),\"\"),\"\"),\"\")","v":""},{"$f":"IFERROR(IF(Ünnepnapok,IF(INDEX(tblÜnnepnapok[],MATCH(DATE(NaptÉv,MONTH(H7),DAY(H7)),IF(TartottÜnnepek,tblÜnnepnapok[KORRIGÁLT],tblÜnnepnapok[NAP]),0),6),INDEX(tblÜnnepnapok[],MATCH(DATE(NaptÉv,MONTH(H7),DAY(H7)),IF(TartottÜnnepek,tblÜnnepnapok[KORRIGÁLT],tblÜnnepnapok[NAP]),0),2),\"\"),\"\"),\"\")","v":""}]
[null,{"$f":"Napok+DATE(NaptÉv,6,1)-WEEKDAY(DATE(NaptÉv,6,1),(HétKezdete=\"HÉTFŐ\")+1)+15","v":"2018-06-10"},"2018-06-11","2018-06-12","2018-06-13","2018-06-14","2018-06-15","2018-06-16"]
[null,{"$f":"IFERROR(IF(Ünnepnapok,IF(INDEX(tblÜnnepnapok[],MATCH(DATE(NaptÉv,MONTH(B9),DAY(B9)),IF(TartottÜnnepek,tblÜnnepnapok[KORRIGÁLT],tblÜnnepnapok[NAP]),0),6),INDEX(tblÜnnepnapok[],MATCH(DATE(NaptÉv,MONTH(B9),DAY(B9)),IF(TartottÜnnepek,tblÜnnepnapok[KORRIGÁLT],tblÜnnepnapok[NAP]),0),2),\"\"),\"\"),\"\")","v":""},{"$f":"IFERROR(IF(Ünnepnapok,IF(INDEX(tblÜnnepnapok[],MATCH(DATE(NaptÉv,MONTH(C9),DAY(C9)),IF(TartottÜnnepek,tblÜnnepnapok[KORRIGÁLT],tblÜnnepnapok[NAP]),0),6),INDEX(tblÜnnepnapok[],MATCH(DATE(NaptÉv,MONTH(C9),DAY(C9)),IF(TartottÜnnepek,tblÜnnepnapok[KORRIGÁLT],tblÜnnepnapok[NAP]),0),2),\"\"),\"\"),\"\")","v":""},{"$f":"IFERROR(IF(Ünnepnapok,IF(INDEX(tblÜnnepnapok[],MATCH(DATE(NaptÉv,MONTH(D9),DAY(D9)),IF(TartottÜnnepek,tblÜnnepnapok[KORRIGÁLT],tblÜnnepnapok[NAP]),0),6),INDEX(tblÜnnepnapok[],MATCH(DATE(NaptÉv,MONTH(D9),DAY(D9)),IF(TartottÜnnepek,tblÜnnepnapok[KORRIGÁLT],tblÜnnepnapok[NAP]),0),2),\"\"),\"\"),\"\")","v":""},{"$f":"IFERROR(IF(Ünnepnapok,IF(INDEX(tblÜnnepnapok[],MATCH(DATE(NaptÉv,MONTH(E9),DAY(E9)),IF(TartottÜnnepek,tblÜnnepnapok[KORRIGÁLT],tblÜnnepnapok[NAP]),0),6),INDEX(tblÜnnepnapok[],MATCH(DATE(NaptÉv,MONTH(E9),DAY(E9)),IF(TartottÜnnepek,tblÜnnepnapok[KORRIGÁLT],tblÜnnepnapok[NAP]),0),2),\"\"),\"\"),\"\")","v":""},{"$f":"IFERROR(IF(Ünnepnapok,IF(INDEX(tblÜnnepnapok[],MATCH(DATE(NaptÉv,MONTH(F9),DAY(F9)),IF(TartottÜnnepek,tblÜnnepnapok[KORRIGÁLT],tblÜnnepnapok[NAP]),0),6),INDEX(tblÜnnepnapok[],MATCH(DATE(NaptÉv,MONTH(F9),DAY(F9)),IF(TartottÜnnepek,tblÜnnepnapok[KORRIGÁLT],tblÜnnepnapok[NAP]),0),2),\"\"),\"\"),\"\")","v":""},{"$f":"IFERROR(IF(Ünnepnapok,IF(INDEX(tblÜnnepnapok[],MATCH(DATE(NaptÉv,MONTH(G9),DAY(G9)),IF(TartottÜnnepek,tblÜnnepnapok[KORRIGÁLT],tblÜnnepnapok[NAP]),0),6),INDEX(tblÜnnepnapok[],MATCH(DATE(NaptÉv,MONTH(G9),DAY(G9)),IF(TartottÜnnepek,tblÜnnepnapok[KORRIGÁLT],tblÜnnepnapok[NAP]),0),2),\"\"),\"\"),\"\")","v":""},{"$f":"IFERROR(IF(Ünnepnapok,IF(INDEX(tblÜnnepnapok[],MATCH(DATE(NaptÉv,MONTH(H9),DAY(H9)),IF(TartottÜnnepek,tblÜnnepnapok[KORRIGÁLT],tblÜnnepnapok[NAP]),0),6),INDEX(tblÜnnepnapok[],MATCH(DATE(NaptÉv,MONTH(H9),DAY(H9)),IF(TartottÜnnepek,tblÜnnepnapok[KORRIGÁLT],tblÜnnepnapok[NAP]),0),2),\"\"),\"\"),\"\")","v":""}]
[null,{"$f":"Napok+DATE(NaptÉv,6,1)-WEEKDAY(DATE(NaptÉv,6,1),(HétKezdete=\"HÉTFŐ\")+1)+22","v":"2018-06-17"},"2018-06-18","2018-06-19","2018-06-20","2018-06-21","2018-06-22","2018-06-23"]
[null,{"$f":"IFERROR(IF(Ünnepnapok,IF(INDEX(tblÜnnepnapok[],MATCH(DATE(NaptÉv,MONTH(B11),DAY(B11)),IF(TartottÜnnepek,tblÜnnepnapok[KORRIGÁLT],tblÜnnepnapok[NAP]),0),6),INDEX(tblÜnnepnapok[],MATCH(DATE(NaptÉv,MONTH(B11),DAY(B11)),IF(TartottÜnnepek,tblÜnnepnapok[KORRIGÁLT],tblÜnnepnapok[NAP]),0),2),\"\"),\"\"),\"\")","v":""},{"$f":"IFERROR(IF(Ünnepnapok,IF(INDEX(tblÜnnepnapok[],MATCH(DATE(NaptÉv,MONTH(C11),DAY(C11)),IF(TartottÜnnepek,tblÜnnepnapok[KORRIGÁLT],tblÜnnepnapok[NAP]),0),6),INDEX(tblÜnnepnapok[],MATCH(DATE(NaptÉv,MONTH(C11),DAY(C11)),IF(TartottÜnnepek,tblÜnnepnapok[KORRIGÁLT],tblÜnnepnapok[NAP]),0),2),\"\"),\"\"),\"\")","v":""},{"$f":"IFERROR(IF(Ünnepnapok,IF(INDEX(tblÜnnepnapok[],MATCH(DATE(NaptÉv,MONTH(D11),DAY(D11)),IF(TartottÜnnepek,tblÜnnepnapok[KORRIGÁLT],tblÜnnepnapok[NAP]),0),6),INDEX(tblÜnnepnapok[],MATCH(DATE(NaptÉv,MONTH(D11),DAY(D11)),IF(TartottÜnnepek,tblÜnnepnapok[KORRIGÁLT],tblÜnnepnapok[NAP]),0),2),\"\"),\"\"),\"\")","v":""},{"$f":"IFERROR(IF(Ünnepnapok,IF(INDEX(tblÜnnepnapok[],MATCH(DATE(NaptÉv,MONTH(E11),DAY(E11)),IF(TartottÜnnepek,tblÜnnepnapok[KORRIGÁLT],tblÜnnepnapok[NAP]),0),6),INDEX(tblÜnnepnapok[],MATCH(DATE(NaptÉv,MONTH(E11),DAY(E11)),IF(TartottÜnnepek,tblÜnnepnapok[KORRIGÁLT],tblÜnnepnapok[NAP]),0),2),\"\"),\"\"),\"\")","v":""},{"$f":"IFERROR(IF(Ünnepnapok,IF(INDEX(tblÜnnepnapok[],MATCH(DATE(NaptÉv,MONTH(F11),DAY(F11)),IF(TartottÜnnepek,tblÜnnepnapok[KORRIGÁLT],tblÜnnepnapok[NAP]),0),6),INDEX(tblÜnnepnapok[],MATCH(DATE(NaptÉv,MONTH(F11),DAY(F11)),IF(TartottÜnnepek,tblÜnnepnapok[KORRIGÁLT],tblÜnnepnapok[NAP]),0),2),\"\"),\"\"),\"\")","v":""},{"$f":"IFERROR(IF(Ünnepnapok,IF(INDEX(tblÜnnepnapok[],MATCH(DATE(NaptÉv,MONTH(G11),DAY(G11)),IF(TartottÜnnepek,tblÜnnepnapok[KORRIGÁLT],tblÜnnepnapok[NAP]),0),6),INDEX(tblÜnnepnapok[],MATCH(DATE(NaptÉv,MONTH(G11),DAY(G11)),IF(TartottÜnnepek,tblÜnnepnapok[KORRIGÁLT],tblÜnnepnapok[NAP]),0),2),\"\"),\"\"),\"\")","v":""},{"$f":"IFERROR(IF(Ünnepnapok,IF(INDEX(tblÜnnepnapok[],MATCH(DATE(NaptÉv,MONTH(H11),DAY(H11)),IF(TartottÜnnepek,tblÜnnepnapok[KORRIGÁLT],tblÜnnepnapok[NAP]),0),6),INDEX(tblÜnnepnapok[],MATCH(DATE(NaptÉv,MONTH(H11),DAY(H11)),IF(TartottÜnnepek,tblÜnnepnapok[KORRIGÁLT],tblÜnnepnapok[NAP]),0),2),\"\"),\"\"),\"\")","v":""}]
[null,{"$f":"Napok+DATE(NaptÉv,6,1)-WEEKDAY(DATE(NaptÉv,6,1),(HétKezdete=\"HÉTFŐ\")+1)+29","v":"2018-06-24"},"2018-06-25","2018-06-26","2018-06-27","2018-06-28","2018-06-29","2018-06-30"]
[null,{"$f":"IFERROR(IF(Ünnepnapok,IF(INDEX(tblÜnnepnapok[],MATCH(DATE(NaptÉv,MONTH(B13),DAY(B13)),IF(TartottÜnnepek,tblÜnnepnapok[KORRIGÁLT],tblÜnnepnapok[NAP]),0),6),INDEX(tblÜnnepnapok[],MATCH(DATE(NaptÉv,MONTH(B13),DAY(B13)),IF(TartottÜnnepek,tblÜnnepnapok[KORRIGÁLT],tblÜnnepnapok[NAP]),0),2),\"\"),\"\"),\"\")","v":""},{"$f":"IFERROR(IF(Ünnepnapok,IF(INDEX(tblÜnnepnapok[],MATCH(DATE(NaptÉv,MONTH(C13),DAY(C13)),IF(TartottÜnnepek,tblÜnnepnapok[KORRIGÁLT],tblÜnnepnapok[NAP]),0),6),INDEX(tblÜnnepnapok[],MATCH(DATE(NaptÉv,MONTH(C13),DAY(C13)),IF(TartottÜnnepek,tblÜnnepnapok[KORRIGÁLT],tblÜnnepnapok[NAP]),0),2),\"\"),\"\"),\"\")","v":""},{"$f":"IFERROR(IF(Ünnepnapok,IF(INDEX(tblÜnnepnapok[],MATCH(DATE(NaptÉv,MONTH(D13),DAY(D13)),IF(TartottÜnnepek,tblÜnnepnapok[KORRIGÁLT],tblÜnnepnapok[NAP]),0),6),INDEX(tblÜnnepnapok[],MATCH(DATE(NaptÉv,MONTH(D13),DAY(D13)),IF(TartottÜnnepek,tblÜnnepnapok[KORRIGÁLT],tblÜnnepnapok[NAP]),0),2),\"\"),\"\"),\"\")","v":""},{"$f":"IFERROR(IF(Ünnepnapok,IF(INDEX(tblÜnnepnapok[],MATCH(DATE(NaptÉv,MONTH(E13),DAY(E13)),IF(TartottÜnnepek,tblÜnnepnapok[KORRIGÁLT],tblÜnnepnapok[NAP]),0),6),INDEX(tblÜnnepnapok[],MATCH(DATE(NaptÉv,MONTH(E13),DAY(E13)),IF(TartottÜnnepek,tblÜnnepnapok[KORRIGÁLT],tblÜnnepnapok[NAP]),0),2),\"\"),\"\"),\"\")","v":""},{"$f":"IFERROR(IF(Ünnepnapok,IF(INDEX(tblÜnnepnapok[],MATCH(DATE(NaptÉv,MONTH(F13),DAY(F13)),IF(TartottÜnnepek,tblÜnnepnapok[KORRIGÁLT],tblÜnnepnapok[NAP]),0),6),INDEX(tblÜnnepnapok[],MATCH(DATE(NaptÉv,MONTH(F13),DAY(F13)),IF(TartottÜnnepek,tblÜnnepnapok[KORRIGÁLT],tblÜnnepnapok[NAP]),0),2),\"\"),\"\"),\"\")","v":""},{"$f":"IFERROR(IF(Ünnepnapok,IF(INDEX(tblÜnnepnapok[],MATCH(DATE(NaptÉv,MONTH(G13),DAY(G13)),IF(TartottÜnnepek,tblÜnnepnapok[KORRIGÁLT],tblÜnnepnapok[NAP]),0),6),INDEX(tblÜnnepnapok[],MATCH(DATE(NaptÉv,MONTH(G13),DAY(G13)),IF(TartottÜnnepek,tblÜnnepnapok[KORRIGÁLT],tblÜnnepnapok[NAP]),0),2),\"\"),\"\"),\"\")","v":""},{"$f":"IFERROR(IF(Ünnepnapok,IF(INDEX(tblÜnnepnapok[],MATCH(DATE(NaptÉv,MONTH(H13),DAY(H13)),IF(TartottÜnnepek,tblÜnnepnapok[KORRIGÁLT],tblÜnnepnapok[NAP]),0),6),INDEX(tblÜnnepnapok[],MATCH(DATE(NaptÉv,MONTH(H13),DAY(H13)),IF(TartottÜnnepek,tblÜnnepnapok[KORRIGÁLT],tblÜnnepnapok[NAP]),0),2),\"\"),\"\"),\"\")","v":""}]
[null,{"$f":"Napok+DATE(NaptÉv,6,1)-WEEKDAY(DATE(NaptÉv,6,1),(HétKezdete=\"HÉTFŐ\")+1)+36","v":"2018-07-01"},"2018-07-02","MEGJEGYZÉSEK"]
[null,{"$f":"IFERROR(IF(Ünnepnapok,IF(INDEX(tblÜnnepnapok[],MATCH(DATE(NaptÉv,MONTH(B15),DAY(B15)),IF(TartottÜnnepek,tblÜnnepnapok[KORRIGÁLT],tblÜnnepnapok[NAP]),0),6),INDEX(tblÜnnepnapok[],MATCH(DATE(NaptÉv,MONTH(B15),DAY(B15)),IF(TartottÜnnepek,tblÜnnepnapok[KORRIGÁLT],tblÜnnepnapok[NAP]),0),2),\"\"),\"\"),\"\")","v":""},{"$f":"IFERROR(IF(Ünnepnapok,IF(INDEX(tblÜnnepnapok[],MATCH(DATE(NaptÉv,MONTH(C15),DAY(C15)),IF(TartottÜnnepek,tblÜnnepnapok[KORRIGÁLT],tblÜnnepnapok[NAP]),0),6),INDEX(tblÜnnepnapok[],MATCH(DATE(NaptÉv,MONTH(C15),DAY(C15)),IF(TartottÜnnepek,tblÜnnepnapok[KORRIGÁLT],tblÜnnepnapok[NAP]),0),2),\"\"),\"\"),\"\")","v":""}]

{"sheet":"Július","index":7,"n_rows":16,"n_cols":8,"rows_kept":16,"merged":[[1,1,1,3],[14,3,14,7],[15,3,15,7],[16,1,16,7]]}
[]
[null,{"$f":"B9","v":"2018-07-15"}]
[]
[null,{"$f":"HétKezdete","v":"VASÁRNAP"},{"$f":"UPPER(TEXT(C5,\"nnnn\"))","v":"HÉTFŐ"},"KEDD","SZERDA","CSÜTÖRTÖK","PÉNTEK","SZOMBAT"]
[null,{"$f":"Napok+DATE(NaptÉv,7,1)-WEEKDAY(DATE(NaptÉv,7,1),(HétKezdete=\"HÉTFŐ\")+1)+1","v":"2018-07-01"},"2018-07-02","2018-07-03","2018-07-04","2018-07-05","2018-07-06","2018-07-07"]
[null,{"$f":"IFERROR(IF(Ünnepnapok,IF(INDEX(tblÜnnepnapok[],MATCH(DATE(NaptÉv-(DAY(B5)>15)+(ROW()>6),MONTH(B5),DAY(B5)),IF(TartottÜnnepek,tblÜnnepnapok[KORRIGÁLT],tblÜnnepnapok[NAP]),0),6),INDEX(tblÜnnepnapok[],MATCH(DATE(NaptÉv-(DAY(B5)>15)+(ROW()>6),MONTH(B5),DAY(B5)),IF(TartottÜnnepek,tblÜnnepnapok[KORRIGÁLT],tblÜnnepnapok[NAP]),0),2),\"\"),\"\"),\"\")","v":""},{"$f":"IFERROR(IF(Ünnepnapok,IF(INDEX(tblÜnnepnapok[],MATCH(DATE(NaptÉv-(DAY(C5)>15)+(ROW()>6),MONTH(C5),DAY(C5)),IF(TartottÜnnepek,tblÜnnepnapok[KORRIGÁLT],tblÜnnepnapok[NAP]),0),6),INDEX(tblÜnnepnapok[],MATCH(DATE(NaptÉv-(DAY(C5)>15)+(ROW()>6),MONTH(C5),DAY(C5)),IF(TartottÜnnepek,tblÜnnepnapok[KORRIGÁLT],tblÜnnepnapok[NAP]),0),2),\"\"),\"\"),\"\")","v":""},{"$f":"IFERROR(IF(Ünnepnapok,IF(INDEX(tblÜnnepnapok[],MATCH(DATE(NaptÉv-(DAY(D5)>15)+(ROW()>6),MONTH(D5),DAY(D5)),IF(TartottÜnnepek,tblÜnnepnapok[KORRIGÁLT],tblÜnnepnapok[NAP]),0),6),INDEX(tblÜnnepnapok[],MATCH(DATE(NaptÉv-(DAY(D5)>15)+(ROW()>6),MONTH(D5),DAY(D5)),IF(TartottÜnnepek,tblÜnnepnapok[KORRIGÁLT],tblÜnnepnapok[NAP]),0),2),\"\"),\"\"),\"\")","v":""},{"$f":"IFERROR(IF(Ünnepnapok,IF(INDEX(tblÜnnepnapok[],MATCH(DATE(NaptÉv-(DAY(E5)>15)+(ROW()>6),MONTH(E5),DAY(E5)),IF(TartottÜnnepek,tblÜnnepnapok[KORRIGÁLT],tblÜnnepnapok[NAP]),0),6),INDEX(tblÜnnepnapok[],MATCH(DATE(NaptÉv-(DAY(E5)>15)+(ROW()>6),MONTH(E5),DAY(E5)),IF(TartottÜnnepek,tblÜnnepnapok[KORRIGÁLT],tblÜnnepnapok[NAP]),0),2),\"\"),\"\"),\"\")","v":"A munka ünnepe"},{"$f":"IFERROR(IF(Ünnepnapok,IF(INDEX(tblÜnnepnapok[],MATCH(DATE(NaptÉv-(DAY(F5)>15)+(ROW()>6),MONTH(F5),DAY(F5)),IF(TartottÜnnepek,tblÜnnepnapok[KORRIGÁLT],tblÜnnepnapok[NAP]),0),6),INDEX(tblÜnnepnapok[],MATCH(DATE(NaptÉv-(DAY(F5)>15)+(ROW()>6),MONTH(F5),DAY(F5)),IF(TartottÜnnepek,tblÜnnepnapok[KORRIGÁLT],tblÜnnepnapok[NAP]),0),2),\"\"),\"\"),\"\")","v":""},{"$f":"IFERROR(IF(Ünnepnapok,IF(INDEX(tblÜnnepnapok[],MATCH(DATE(NaptÉv-(DAY(G5)>15)+(ROW()>6),MONTH(G5),DAY(G5)),IF(TartottÜnnepek,tblÜnnepnapok[KORRIGÁLT],tblÜnnepnapok[NAP]),0),6),INDEX(tblÜnnepnapok[],MATCH(DATE(NaptÉv-(DAY(G5)>15)+(ROW()>6),MONTH(G5),DAY(G5)),IF(TartottÜnnepek,tblÜnnepnapok[KORRIGÁLT],tblÜnnepnapok[NAP]),0),2),\"\"),\"\"),\"\")","v":""},{"$f":"IFERROR(IF(Ünnepnapok,IF(INDEX(tblÜnnepnapok[],MATCH(DATE(NaptÉv-(DAY(H5)>15)+(ROW()>6),MONTH(H5),DAY(H5)),IF(TartottÜnnepek,tblÜnnepnapok[KORRIGÁLT],tblÜnnepnapok[NAP]),0),6),INDEX(tblÜnnepnapok[],MATCH(DATE(NaptÉv-(DAY(H5)>15)+(ROW()>6),MONTH(H5),DAY(H5)),IF(TartottÜnnepek,tblÜnnepnapok[KORRIGÁLT],tblÜnnepnapok[NAP]),0),2),\"\"),\"\"),\"\")","v":""}]
[null,{"$f":"Napok+DATE(NaptÉv,7,1)-WEEKDAY(DATE(NaptÉv,7,1),(HétKezdete=\"HÉTFŐ\")+1)+8","v":"2018-07-08"},"2018-07-09","2018-07-10","2018-07-11","2018-07-12","2018-07-13","2018-07-14"]
[null,{"$f":"IFERROR(IF(Ünnepnapok,IF(INDEX(tblÜnnepnapok[],MATCH(DATE(NaptÉv,MONTH(B7),DAY(B7)),IF(TartottÜnnepek,tblÜnnepnapok[KORRIGÁLT],tblÜnnepnapok[NAP]),0),6),INDEX(tblÜnnepnapok[],MATCH(DATE(NaptÉv,MONTH(B7),DAY(B7)),IF(TartottÜnnepek,tblÜnnepnapok[KORRIGÁLT],tblÜnnepnapok[NAP]),0),2),\"\"),\"\"),\"\")","v":""},{"$f":"IFERROR(IF(Ünnepnapok,IF(INDEX(tblÜnnepnapok[],MATCH(DATE(NaptÉv,MONTH(C7),DAY(C7)),IF(TartottÜnnepek,tblÜnnepnapok[KORRIGÁLT],tblÜnnepnapok[NAP]),0),6),INDEX(tblÜnnepnapok[],MATCH(DATE(NaptÉv,MONTH(C7),DAY(C7)),IF(TartottÜnnepek,tblÜnnepnapok[KORRIGÁLT],tblÜnnepnapok[NAP]),0),2),\"\"),\"\"),\"\")","v":""},{"$f":"IFERROR(IF(Ünnepnapok,IF(INDEX(tblÜnnepnapok[],MATCH(DATE(NaptÉv,MONTH(D7),DAY(D7)),IF(TartottÜnnepek,tblÜnnepnapok[KORRIGÁLT],tblÜnnepnapok[NAP]),0),6),INDEX(tblÜnnepnapok[],MATCH(DATE(NaptÉv,MONTH(D7),DAY(D7)),IF(TartottÜnnepek,tblÜnnepnapok[KORRIGÁLT],tblÜnnepnapok[NAP]),0),2),\"\"),\"\"),\"\")","v":""},{"$f":"IFERROR(IF(Ünnepnapok,IF(INDEX(tblÜnnepnapok[],MATCH(DATE(NaptÉv,MONTH(E7),DAY(E7)),IF(TartottÜnnepek,tblÜnnepnapok[KORRIGÁLT],tblÜnnepnapok[NAP]),0),6),INDEX(tblÜnnepnapok[],MATCH(DATE(NaptÉv,MONTH(E7),DAY(E7)),IF(TartottÜnnepek,tblÜnnepnapok[KORRIGÁLT],tblÜnnepnapok[NAP]),0),2),\"\"),\"\"),\"\")","v":""},{"$f":"IFERROR(IF(Ünnepnapok,IF(INDEX(tblÜnnepnapok[],MATCH(DATE(NaptÉv,MONTH(F7),DAY(F7)),IF(TartottÜnnepek,tblÜnnepnapok[KORRIGÁLT],tblÜnnepnapok[NAP]),0),6),INDEX(tblÜnnepnapok[],MATCH(DATE(NaptÉv,MONTH(F7),DAY(F7)),IF(TartottÜnnepek,tblÜnnepnapok[KORRIGÁLT],tblÜnnepnapok[NAP]),0),2),\"\"),\"\"),\"\")","v":""},{"$f":"IFERROR(IF(Ünnepnapok,IF(INDEX(tblÜnnepnapok[],MATCH(DATE(NaptÉv,MONTH(G7),DAY(G7)),IF(TartottÜnnepek,tblÜnnepnapok[KORRIGÁLT],tblÜnnepnapok[NAP]),0),6),INDEX(tblÜnnepnapok[],MATCH(DATE(NaptÉv,MONTH(G7),DAY(G7)),IF(TartottÜnnepek,tblÜnnepnapok[KORRIGÁLT],tblÜnnepnapok[NAP]),0),2),\"\"),\"\"),\"\")","v":""},{"$f":"IFERROR(IF(Ünnepnapok,IF(INDEX(tblÜnnepnapok[],MATCH(DATE(NaptÉv,MONTH(H7),DAY(H7)),IF(TartottÜnnepek,tblÜnnepnapok[KORRIGÁLT],tblÜnnepnapok[NAP]),0),6),INDEX(tblÜnnepnapok[],MATCH(DATE(NaptÉv,MONTH(H7),DAY(H7)),IF(TartottÜnnepek,tblÜnnepnapok[KORRIGÁLT],tblÜnnepnapok[NAP]),0),2),\"\"),\"\"),\"\")","v":""}]
[null,{"$f":"Napok+DATE(NaptÉv,7,1)-WEEKDAY(DATE(NaptÉv,7,1),(HétKezdete=\"HÉTFŐ\")+1)+15","v":"2018-07-15"},"2018-07-16","2018-07-17","2018-07-18","2018-07-19","2018-07-20","2018-07-21"]
[null,{"$f":"IFERROR(IF(Ünnepnapok,IF(INDEX(tblÜnnepnapok[],MATCH(DATE(NaptÉv,MONTH(B9),DAY(B9)),IF(TartottÜnnepek,tblÜnnepnapok[KORRIGÁLT],tblÜnnepnapok[NAP]),0),6),INDEX(tblÜnnepnapok[],MATCH(DATE(NaptÉv,MONTH(B9),DAY(B9)),IF(TartottÜnnepek,tblÜnnepnapok[KORRIGÁLT],tblÜnnepnapok[NAP]),0),2),\"\"),\"\"),\"\")","v":""},{"$f":"IFERROR(IF(Ünnepnapok,IF(INDEX(tblÜnnepnapok[],MATCH(DATE(NaptÉv,MONTH(C9),DAY(C9)),IF(TartottÜnnepek,tblÜnnepnapok[KORRIGÁLT],tblÜnnepnapok[NAP]),0),6),INDEX(tblÜnnepnapok[],MATCH(DATE(NaptÉv,MONTH(C9),DAY(C9)),IF(TartottÜnnepek,tblÜnnepnapok[KORRIGÁLT],tblÜnnepnapok[NAP]),0),2),\"\"),\"\"),\"\")","v":""},{"$f":"IFERROR(IF(Ünnepnapok,IF(INDEX(tblÜnnepnapok[],MATCH(DATE(NaptÉv,MONTH(D9),DAY(D9)),IF(TartottÜnnepek,tblÜnnepnapok[KORRIGÁLT],tblÜnnepnapok[NAP]),0),6),INDEX(tblÜnnepnapok[],MATCH(DATE(NaptÉv,MONTH(D9),DAY(D9)),IF(TartottÜnnepek,tblÜnnepnapok[KORRIGÁLT],tblÜnnepnapok[NAP]),0),2),\"\"),\"\"),\"\")","v":""},{"$f":"IFERROR(IF(Ünnepnapok,IF(INDEX(tblÜnnepnapok[],MATCH(DATE(NaptÉv,MONTH(E9),DAY(E9)),IF(TartottÜnnepek,tblÜnnepnapok[KORRIGÁLT],tblÜnnepnapok[NAP]),0),6),INDEX(tblÜnnepnapok[],MATCH(DATE(NaptÉv,MONTH(E9),DAY(E9)),IF(TartottÜnnepek,tblÜnnepnapok[KORRIGÁLT],tblÜnnepnapok[NAP]),0),2),\"\"),\"\"),\"\")","v":""},{"$f":"IFERROR(IF(Ünnepnapok,IF(INDEX(tblÜnnepnapok[],MATCH(DATE(NaptÉv,MONTH(F9),DAY(F9)),IF(TartottÜnnepek,tblÜnnepnapok[KORRIGÁLT],tblÜnnepnapok[NAP]),0),6),INDEX(tblÜnnepnapok[],MATCH(DATE(NaptÉv,MONTH(F9),DAY(F9)),IF(TartottÜnnepek,tblÜnnepnapok[KORRIGÁLT],tblÜnnepnapok[NAP]),0),2),\"\"),\"\"),\"\")","v":""},{"$f":"IFERROR(IF(Ünnepnapok,IF(INDEX(tblÜnnepnapok[],MATCH(DATE(NaptÉv,MONTH(G9),DAY(G9)),IF(TartottÜnnepek,tblÜnnepnapok[KORRIGÁLT],tblÜnnepnapok[NAP]),0),6),INDEX(tblÜnnepnapok[],MATCH(DATE(NaptÉv,MONTH(G9),DAY(G9)),IF(TartottÜnnepek,tblÜnnepnapok[KORRIGÁLT],tblÜnnepnapok[NAP]),0),2),\"\"),\"\"),\"\")","v":""},{"$f":"IFERROR(IF(Ünnepnapok,IF(INDEX(tblÜnnepnapok[],MATCH(DATE(NaptÉv,MONTH(H9),DAY(H9)),IF(TartottÜnnepek,tblÜnnepnapok[KORRIGÁLT],tblÜnnepnapok[NAP]),0),6),INDEX(tblÜnnepnapok[],MATCH(DATE(NaptÉv,MONTH(H9),DAY(H9)),IF(TartottÜnnepek,tblÜnnepnapok[KORRIGÁLT],tblÜnnepnapok[NAP]),0),2),\"\"),\"\"),\"\")","v":""}]
[null,{"$f":"Napok+DATE(NaptÉv,7,1)-WEEKDAY(DATE(NaptÉv,7,1),(HétKezdete=\"HÉTFŐ\")+1)+22","v":"2018-07-22"},"2018-07-23","2018-07-24","2018-07-25","2018-07-26","2018-07-27","2018-07-28"]
[null,{"$f":"IFERROR(IF(Ünnepnapok,IF(INDEX(tblÜnnepnapok[],MATCH(DATE(NaptÉv,MONTH(B11),DAY(B11)),IF(TartottÜnnepek,tblÜnnepnapok[KORRIGÁLT],tblÜnnepnapok[NAP]),0),6),INDEX(tblÜnnepnapok[],MATCH(DATE(NaptÉv,MONTH(B11),DAY(B11)),IF(TartottÜnnepek,tblÜnnepnapok[KORRIGÁLT],tblÜnnepnapok[NAP]),0),2),\"\"),\"\"),\"\")","v":""},{"$f":"IFERROR(IF(Ünnepnapok,IF(INDEX(tblÜnnepnapok[],MATCH(DATE(NaptÉv,MONTH(C11),DAY(C11)),IF(TartottÜnnepek,tblÜnnepnapok[KORRIGÁLT],tblÜnnepnapok[NAP]),0),6),INDEX(tblÜnnepnapok[],MATCH(DATE(NaptÉv,MONTH(C11),DAY(C11)),IF(TartottÜnnepek,tblÜnnepnapok[KORRIGÁLT],tblÜnnepnapok[NAP]),0),2),\"\"),\"\"),\"\")","v":""},{"$f":"IFERROR(IF(Ünnepnapok,IF(INDEX(tblÜnnepnapok[],MATCH(DATE(NaptÉv,MONTH(D11),DAY(D11)),IF(TartottÜnnepek,tblÜnnepnapok[KORRIGÁLT],tblÜnnepnapok[NAP]),0),6),INDEX(tblÜnnepnapok[],MATCH(DATE(NaptÉv,MONTH(D11),DAY(D11)),IF(TartottÜnnepek,tblÜnnepnapok[KORRIGÁLT],tblÜnnepnapok[NAP]),0),2),\"\"),\"\"),\"\")","v":""},{"$f":"IFERROR(IF(Ünnepnapok,IF(INDEX(tblÜnnepnapok[],MATCH(DATE(NaptÉv,MONTH(E11),DAY(E11)),IF(TartottÜnnepek,tblÜnnepnapok[KORRIGÁLT],tblÜnnepnapok[NAP]),0),6),INDEX(tblÜnnepnapok[],MATCH(DATE(NaptÉv,MONTH(E11),DAY(E11)),IF(TartottÜnnepek,tblÜnnepnapok[KORRIGÁLT],tblÜnnepnapok[NAP]),0),2),\"\"),\"\"),\"\")","v":""},{"$f":"IFERROR(IF(Ünnepnapok,IF(INDEX(tblÜnnepnapok[],MATCH(DATE(NaptÉv,MONTH(F11),DAY(F11)),IF(TartottÜnnepek,tblÜnnepnapok[KORRIGÁLT],tblÜnnepnapok[NAP]),0),6),INDEX(tblÜnnepnapok[],MATCH(DATE(NaptÉv,MONTH(F11),DAY(F11)),IF(TartottÜnnepek,tblÜnnepnapok[KORRIGÁLT],tblÜnnepnapok[NAP]),0),2),\"\"),\"\"),\"\")","v":""},{"$f":"IFERROR(IF(Ünnepnapok,IF(INDEX(tblÜnnepnapok[],MATCH(DATE(NaptÉv,MONTH(G11),DAY(G11)),IF(TartottÜnnepek,tblÜnnepnapok[KORRIGÁLT],tblÜnnepnapok[NAP]),0),6),INDEX(tblÜnnepnapok[],MATCH(DATE(NaptÉv,MONTH(G11),DAY(G11)),IF(TartottÜnnepek,tblÜnnepnapok[KORRIGÁLT],tblÜnnepnapok[NAP]),0),2),\"\"),\"\"),\"\")","v":""},{"$f":"IFERROR(IF(Ünnepnapok,IF(INDEX(tblÜnnepnapok[],MATCH(DATE(NaptÉv,MONTH(H11),DAY(H11)),IF(TartottÜnnepek,tblÜnnepnapok[KORRIGÁLT],tblÜnnepnapok[NAP]),0),6),INDEX(tblÜnnepnapok[],MATCH(DATE(NaptÉv,MONTH(H11),DAY(H11)),IF(TartottÜnnepek,tblÜnnepnapok[KORRIGÁLT],tblÜnnepnapok[NAP]),0),2),\"\"),\"\"),\"\")","v":""}]
[null,{"$f":"Napok+DATE(NaptÉv,7,1)-WEEKDAY(DATE(NaptÉv,7,1),(HétKezdete=\"HÉTFŐ\")+1)+29","v":"2018-07-29"},"2018-07-30","2018-07-31","2018-08-01","2018-08-02","2018-08-03","2018-08-04"]
[null,{"$f":"IFERROR(IF(Ünnepnapok,IF(INDEX(tblÜnnepnapok[],MATCH(DATE(NaptÉv,MONTH(B13),DAY(B13)),IF(TartottÜnnepek,tblÜnnepnapok[KORRIGÁLT],tblÜnnepnapok[NAP]),0),6),INDEX(tblÜnnepnapok[],MATCH(DATE(NaptÉv,MONTH(B13),DAY(B13)),IF(TartottÜnnepek,tblÜnnepnapok[KORRIGÁLT],tblÜnnepnapok[NAP]),0),2),\"\"),\"\"),\"\")","v":""},{"$f":"IFERROR(IF(Ünnepnapok,IF(INDEX(tblÜnnepnapok[],MATCH(DATE(NaptÉv,MONTH(C13),DAY(C13)),IF(TartottÜnnepek,tblÜnnepnapok[KORRIGÁLT],tblÜnnepnapok[NAP]),0),6),INDEX(tblÜnnepnapok[],MATCH(DATE(NaptÉv,MONTH(C13),DAY(C13)),IF(TartottÜnnepek,tblÜnnepnapok[KORRIGÁLT],tblÜnnepnapok[NAP]),0),2),\"\"),\"\"),\"\")","v":""},{"$f":"IFERROR(IF(Ünnepnapok,IF(INDEX(tblÜnnepnapok[],MATCH(DATE(NaptÉv,MONTH(D13),DAY(D13)),IF(TartottÜnnepek,tblÜnnepnapok[KORRIGÁLT],tblÜnnepnapok[NAP]),0),6),INDEX(tblÜnnepnapok[],MATCH(DATE(NaptÉv,MONTH(D13),DAY(D13)),IF(TartottÜnnepek,tblÜnnepnapok[KORRIGÁLT],tblÜnnepnapok[NAP]),0),2),\"\"),\"\"),\"\")","v":""},{"$f":"IFERROR(IF(Ünnepnapok,IF(INDEX(tblÜnnepnapok[],MATCH(DATE(NaptÉv,MONTH(E13),DAY(E13)),IF(TartottÜnnepek,tblÜnnepnapok[KORRIGÁLT],tblÜnnepnapok[NAP]),0),6),INDEX(tblÜnnepnapok[],MATCH(DATE(NaptÉv,MONTH(E13),DAY(E13)),IF(TartottÜnnepek,tblÜnnepnapok[KORRIGÁLT],tblÜnnepnapok[NAP]),0),2),\"\"),\"\"),\"\")","v":""},{"$f":"IFERROR(IF(Ünnepnapok,IF(INDEX(tblÜnnepnapok[],MATCH(DATE(NaptÉv,MONTH(F13),DAY(F13)),IF(TartottÜnnepek,tblÜnnepnapok[KORRIGÁLT],tblÜnnepnapok[NAP]),0),6),INDEX(tblÜnnepnapok[],MATCH(DATE(NaptÉv,MONTH(F13),DAY(F13)),IF(TartottÜnnepek,tblÜnnepnapok[KORRIGÁLT],tblÜnnepnapok[NAP]),0),2),\"\"),\"\"),\"\")","v":""},{"$f":"IFERROR(IF(Ünnepnapok,IF(INDEX(tblÜnnepnapok[],MATCH(DATE(NaptÉv,MONTH(G13),DAY(G13)),IF(TartottÜnnepek,tblÜnnepnapok[KORRIGÁLT],tblÜnnepnapok[NAP]),0),6),INDEX(tblÜnnepnapok[],MATCH(DATE(NaptÉv,MONTH(G13),DAY(G13)),IF(TartottÜnnepek,tblÜnnepnapok[KORRIGÁLT],tblÜnnepnapok[NAP]),0),2),\"\"),\"\"),\"\")","v":""},{"$f":"IFERROR(IF(Ünnepnapok,IF(INDEX(tblÜnnepnapok[],MATCH(DATE(NaptÉv,MONTH(H13),DAY(H13)),IF(TartottÜnnepek,tblÜnnepnapok[KORRIGÁLT],tblÜnnepnapok[NAP]),0),6),INDEX(tblÜnnepnapok[],MATCH(DATE(NaptÉv,MONTH(H13),DAY(H13)),IF(TartottÜnnepek,tblÜnnepnapok[KORRIGÁLT],tblÜnnepnapok[NAP]),0),2),\"\"),\"\"),\"\")","v":""}]
[null,{"$f":"Napok+DATE(NaptÉv,7,1)-WEEKDAY(DATE(NaptÉv,7,1),(HétKezdete=\"HÉTFŐ\")+1)+36","v":"2018-08-05"},"2018-08-06","MEGJEGYZÉSEK"]
[null,{"$f":"IFERROR(IF(Ünnepnapok,IF(INDEX(tblÜnnepnapok[],MATCH(DATE(NaptÉv,MONTH(B15),DAY(B15)),IF(TartottÜnnepek,tblÜnnepnapok[KORRIGÁLT],tblÜnnepnapok[NAP]),0),6),INDEX(tblÜnnepnapok[],MATCH(DATE(NaptÉv,MONTH(B15),DAY(B15)),IF(TartottÜnnepek,tblÜnnepnapok[KORRIGÁLT],tblÜnnepnapok[NAP]),0),2),\"\"),\"\"),\"\")","v":""},{"$f":"IFERROR(IF(Ünnepnapok,IF(INDEX(tblÜnnepnapok[],MATCH(DATE(NaptÉv,MONTH(C15),DAY(C15)),IF(TartottÜnnepek,tblÜnnepnapok[KORRIGÁLT],tblÜnnepnapok[NAP]),0),6),INDEX(tblÜnnepnapok[],MATCH(DATE(NaptÉv,MONTH(C15),DAY(C15)),IF(TartottÜnnepek,tblÜnnepnapok[KORRIGÁLT],tblÜnnepnapok[NAP]),0),2),\"\"),\"\"),\"\")","v":""}]

{"sheet":"Augusztus","index":8,"n_rows":16,"n_cols":8,"rows_kept":16,"merged":[[1,1,1,3],[14,3,14,7],[15,3,15,7],[16,1,16,7]]}
[]
[null,{"$f":"B9","v":"2018-08-12"}]
[]
[null,{"$f":"HétKezdete","v":"VASÁRNAP"},{"$f":"UPPER(TEXT(C5,\"nnnn\"))","v":"HÉTFŐ"},"KEDD","SZERDA","CSÜTÖRTÖK","PÉNTEK","SZOMBAT"]
[null,{"$f":"Napok+DATE(NaptÉv,8,1)-WEEKDAY(DATE(NaptÉv,8,1),(HétKezdete=\"HÉTFŐ\")+1)+1","v":"2018-07-29"},"2018-07-30","2018-07-31","2018-08-01","2018-08-02","2018-08-03","2018-08-04"]
[null,{"$f":"IFERROR(IF(Ünnepnapok,IF(INDEX(tblÜnnepnapok[],MATCH(DATE(NaptÉv-(DAY(B5)>15)+(ROW()>6),MONTH(B5),DAY(B5)),IF(TartottÜnnepek,tblÜnnepnapok[KORRIGÁLT],tblÜnnepnapok[NAP]),0),6),INDEX(tblÜnnepnapok[],MATCH(DATE(NaptÉv-(DAY(B5)>15)+(ROW()>6),MONTH(B5),DAY(B5)),IF(TartottÜnnepek,tblÜnnepnapok[KORRIGÁLT],tblÜnnepnapok[NAP]),0),2),\"\"),\"\"),\"\")","v":""},{"$f":"IFERROR(IF(Ünnepnapok,IF(INDEX(tblÜnnepnapok[],MATCH(DATE(NaptÉv-(DAY(C5)>15)+(ROW()>6),MONTH(C5),DAY(C5)),IF(TartottÜnnepek,tblÜnnepnapok[KORRIGÁLT],tblÜnnepnapok[NAP]),0),6),INDEX(tblÜnnepnapok[],MATCH(DATE(NaptÉv-(DAY(C5)>15)+(ROW()>6),MONTH(C5),DAY(C5)),IF(TartottÜnnepek,tblÜnnepnapok[KORRIGÁLT],tblÜnnepnapok[NAP]),0),2),\"\"),\"\"),\"\")","v":""},{"$f":"IFERROR(IF(Ünnepnapok,IF(INDEX(tblÜnnepnapok[],MATCH(DATE(NaptÉv-(DAY(D5)>15)+(ROW()>6),MONTH(D5),DAY(D5)),IF(TartottÜnnepek,tblÜnnepnapok[KORRIGÁLT],tblÜnnepnapok[NAP]),0),6),INDEX(tblÜnnepnapok[],MATCH(DATE(NaptÉv-(DAY(D5)>15)+(ROW()>6),MONTH(D5),DAY(D5)),IF(TartottÜnnepek,tblÜnnepnapok[KORRIGÁLT],tblÜnnepnapok[NAP]),0),2),\"\"),\"\"),\"\")","v":""},{"$f":"IFERROR(IF(Ünnepnapok,IF(INDEX(tblÜnnepnapok[],MATCH(DATE(NaptÉv-(DAY(E5)>15)+(ROW()>6),MONTH(E5),DAY(E5)),IF(TartottÜnnepek,tblÜnnepnapok[KORRIGÁLT],tblÜnnepnapok[NAP]),0),6),INDEX(tblÜnnepnapok[],MATCH(DATE(NaptÉv-(DAY(E5)>15)+(ROW()>6),MONTH(E5),DAY(E5)),IF(TartottÜnnepek,tblÜnnepnapok[KORRIGÁLT],tblÜnnepnapok[NAP]),0),2),\"\"),\"\"),\"\")","v":""},{"$f":"IFERROR(IF(Ünnepnapok,IF(INDEX(tblÜnnepnapok[],MATCH(DATE(NaptÉv-(DAY(F5)>15)+(ROW()>6),MONTH(F5),DAY(F5)),IF(TartottÜnnepek,tblÜnnepnapok[KORRIGÁLT],tblÜnnepnapok[NAP]),0),6),INDEX(tblÜnnepnapok[],MATCH(DATE(NaptÉv-(DAY(F5)>15)+(ROW()>6),MONTH(F5),DAY(F5)),IF(TartottÜnnepek,tblÜnnepnapok[KORRIGÁLT],tblÜnnepnapok[NAP]),0),2),\"\"),\"\"),\"\")","v":""},{"$f":"IFERROR(IF(Ünnepnapok,IF(INDEX(tblÜnnepnapok[],MATCH(DATE(NaptÉv-(DAY(G5)>15)+(ROW()>6),MONTH(G5),DAY(G5)),IF(TartottÜnnepek,tblÜnnepnapok[KORRIGÁLT],tblÜnnepnapok[NAP]),0),6),INDEX(tblÜnnepnapok[],MATCH(DATE(NaptÉv-(DAY(G5)>15)+(ROW()>6),MONTH(G5),DAY(G5)),IF(TartottÜnnepek,tblÜnnepnapok[KORRIGÁLT],tblÜnnepnapok[NAP]),0),2),\"\"),\"\"),\"\")","v":""},{"$f":"IFERROR(IF(Ünnepnapok,IF(INDEX(tblÜnnepnapok[],MATCH(DATE(NaptÉv-(DAY(H5)>15)+(ROW()>6),MONTH(H5),DAY(H5)),IF(TartottÜnnepek,tblÜnnepnapok[KORRIGÁLT],tblÜnnepnapok[NAP]),0),6),INDEX(tblÜnnepnapok[],MATCH(DATE(NaptÉv-(DAY(H5)>15)+(ROW()>6),MONTH(H5),DAY(H5)),IF(TartottÜnnepek,tblÜnnepnapok[KORRIGÁLT],tblÜnnepnapok[NAP]),0),2),\"\"),\"\"),\"\")","v":""}]
[null,{"$f":"Napok+DATE(NaptÉv,8,1)-WEEKDAY(DATE(NaptÉv,8,1),(HétKezdete=\"HÉTFŐ\")+1)+8","v":"2018-08-05"},"2018-08-06","2018-08-07","2018-08-08","2018-08-09","2018-08-10","2018-08-11"]
[null,{"$f":"IFERROR(IF(Ünnepnapok,IF(INDEX(tblÜnnepnapok[],MATCH(DATE(NaptÉv,MONTH(B7),DAY(B7)),IF(TartottÜnnepek,tblÜnnepnapok[KORRIGÁLT],tblÜnnepnapok[NAP]),0),6),INDEX(tblÜnnepnapok[],MATCH(DATE(NaptÉv,MONTH(B7),DAY(B7)),IF(TartottÜnnepek,tblÜnnepnapok[KORRIGÁLT],tblÜnnepnapok[NAP]),0),2),\"\"),\"\"),\"\")","v":""},{"$f":"IFERROR(IF(Ünnepnapok,IF(INDEX(tblÜnnepnapok[],MATCH(DATE(NaptÉv,MONTH(C7),DAY(C7)),IF(TartottÜnnepek,tblÜnnepnapok[KORRIGÁLT],tblÜnnepnapok[NAP]),0),6),INDEX(tblÜnnepnapok[],MATCH(DATE(NaptÉv,MONTH(C7),DAY(C7)),IF(TartottÜnnepek,tblÜnnepnapok[KORRIGÁLT],tblÜnnepnapok[NAP]),0),2),\"\"),\"\"),\"\")","v":""},{"$f":"IFERROR(IF(Ünnepnapok,IF(INDEX(tblÜnnepnapok[],MATCH(DATE(NaptÉv,MONTH(D7),DAY(D7)),IF(TartottÜnnepek,tblÜnnepnapok[KORRIGÁLT],tblÜnnepnapok[NAP]),0),6),INDEX(tblÜnnepnapok[],MATCH(DATE(NaptÉv,MONTH(D7),DAY(D7)),IF(TartottÜnnepek,tblÜnnepnapok[KORRIGÁLT],tblÜnnepnapok[NAP]),0),2),\"\"),\"\"),\"\")","v":""},{"$f":"IFERROR(IF(Ünnepnapok,IF(INDEX(tblÜnnepnapok[],MATCH(DATE(NaptÉv,MONTH(E7),DAY(E7)),IF(TartottÜnnepek,tblÜnnepnapok[KORRIGÁLT],tblÜnnepnapok[NAP]),0),6),INDEX(tblÜnnepnapok[],MATCH(DATE(NaptÉv,MONTH(E7),DAY(E7)),IF(TartottÜnnepek,tblÜnnepnapok[KORRIGÁLT],tblÜnnepnapok[NAP]),0),2),\"\"),\"\"),\"\")","v":""},{"$f":"IFERROR(IF(Ünnepnapok,IF(INDEX(tblÜnnepnapok[],MATCH(DATE(NaptÉv,MONTH(F7),DAY(F7)),IF(TartottÜnnepek,tblÜnnepnapok[KORRIGÁLT],tblÜnnepnapok[NAP]),0),6),INDEX(tblÜnnepnapok[],MATCH(DATE(NaptÉv,MONTH(F7),DAY(F7)),IF(TartottÜnnepek,tblÜnnepnapok[KORRIGÁLT],tblÜnnepnapok[NAP]),0),2),\"\"),\"\"),\"\")","v":""},{"$f":"IFERROR(IF(Ünnepnapok,IF(INDEX(tblÜnnepnapok[],MATCH(DATE(NaptÉv,MONTH(G7),DAY(G7)),IF(TartottÜnnepek,tblÜnnepnapok[KORRIGÁLT],tblÜnnepnapok[NAP]),0),6),INDEX(tblÜnnepnapok[],MATCH(DATE(NaptÉv,MONTH(G7),DAY(G7)),IF(TartottÜnnepek,tblÜnnepnapok[KORRIGÁLT],tblÜnnepnapok[NAP]),0),2),\"\"),\"\"),\"\")","v":""},{"$f":"IFERROR(IF(Ünnepnapok,IF(INDEX(tblÜnnepnapok[],MATCH(DATE(NaptÉv,MONTH(H7),DAY(H7)),IF(TartottÜnnepek,tblÜnnepnapok[KORRIGÁLT],tblÜnnepnapok[NAP]),0),6),INDEX(tblÜnnepnapok[],MATCH(DATE(NaptÉv,MONTH(H7),DAY(H7)),IF(TartottÜnnepek,tblÜnnepnapok[KORRIGÁLT],tblÜnnepnapok[NAP]),0),2),\"\"),\"\"),\"\")","v":""}]
[null,{"$f":"Napok+DATE(NaptÉv,8,1)-WEEKDAY(DATE(NaptÉv,8,1),(HétKezdete=\"HÉTFŐ\")+1)+15","v":"2018-08-12"},"2018-08-13","2018-08-14","2018-08-15","2018-08-16","2018-08-17","2018-08-18"]
[null,{"$f":"IFERROR(IF(Ünnepnapok,IF(INDEX(tblÜnnepnapok[],MATCH(DATE(NaptÉv,MONTH(B9),DAY(B9)),IF(TartottÜnnepek,tblÜnnepnapok[KORRIGÁLT],tblÜnnepnapok[NAP]),0),6),INDEX(tblÜnnepnapok[],MATCH(DATE(NaptÉv,MONTH(B9),DAY(B9)),IF(TartottÜnnepek,tblÜnnepnapok[KORRIGÁLT],tblÜnnepnapok[NAP]),0),2),\"\"),\"\"),\"\")","v":""},{"$f":"IFERROR(IF(Ünnepnapok,IF(INDEX(tblÜnnepnapok[],MATCH(DATE(NaptÉv,MONTH(C9),DAY(C9)),IF(TartottÜnnepek,tblÜnnepnapok[KORRIGÁLT],tblÜnnepnapok[NAP]),0),6),INDEX(tblÜnnepnapok[],MATCH(DATE(NaptÉv,MONTH(C9),DAY(C9)),IF(TartottÜnnepek,tblÜnnepnapok[KORRIGÁLT],tblÜnnepnapok[NAP]),0),2),\"\"),\"\"),\"\")","v":""},{"$f":"IFERROR(IF(Ünnepnapok,IF(INDEX(tblÜnnepnapok[],MATCH(DATE(NaptÉv,MONTH(D9),DAY(D9)),IF(TartottÜnnepek,tblÜnnepnapok[KORRIGÁLT],tblÜnnepnapok[NAP]),0),6),INDEX(tblÜnnepnapok[],MATCH(DATE(NaptÉv,MONTH(D9),DAY(D9)),IF(TartottÜnnepek,tblÜnnepnapok[KORRIGÁLT],tblÜnnepnapok[NAP]),0),2),\"\"),\"\"),\"\")","v":""},{"$f":"IFERROR(IF(Ünnepnapok,IF(INDEX(tblÜnnepnapok[],MATCH(DATE(NaptÉv,MONTH(E9),DAY(E9)),IF(TartottÜnnepek,tblÜnnepnapok[KORRIGÁLT],tblÜnnepnapok[NAP]),0),6),INDEX(tblÜnnepnapok[],MATCH(DATE(NaptÉv,MONTH(E9),DAY(E9)),IF(TartottÜnnepek,tblÜnnepnapok[KORRIGÁLT],tblÜnnepnapok[NAP]),0),2),\"\"),\"\"),\"\")","v":""},{"$f":"IFERROR(IF(Ünnepnapok,IF(INDEX(tblÜnnepnapok[],MATCH(DATE(NaptÉv,MONTH(F9),DAY(F9)),IF(TartottÜnnepek,tblÜnnepnapok[KORRIGÁLT],tblÜnnepnapok[NAP]),0),6),INDEX(tblÜnnepnapok[],MATCH(DATE(NaptÉv,MONTH(F9),DAY(F9)),IF(TartottÜnnepek,tblÜnnepnapok[KORRIGÁLT],tblÜnnepnapok[NAP]),0),2),\"\"),\"\"),\"\")","v":""},{"$f":"IFERROR(IF(Ünnepnapok,IF(INDEX(tblÜnnepnapok[],MATCH(DATE(NaptÉv,MONTH(G9),DAY(G9)),IF(TartottÜnnepek,tblÜnnepnapok[KORRIGÁLT],tblÜnnepnapok[NAP]),0),6),INDEX(tblÜnnepnapok[],MATCH(DATE(NaptÉv,MONTH(G9),DAY(G9)),IF(TartottÜnnepek,tblÜnnepnapok[KORRIGÁLT],tblÜnnepnapok[NAP]),0),2),\"\"),\"\"),\"\")","v":""},{"$f":"IFERROR(IF(Ünnepnapok,IF(INDEX(tblÜnnepnapok[],MATCH(DATE(NaptÉv,MONTH(H9),DAY(H9)),IF(TartottÜnnepek,tblÜnnepnapok[KORRIGÁLT],tblÜnnepnapok[NAP]),0),6),INDEX(tblÜnnepnapok[],MATCH(DATE(NaptÉv,MONTH(H9),DAY(H9)),IF(TartottÜnnepek,tblÜnnepnapok[KORRIGÁLT],tblÜnnepnapok[NAP]),0),2),\"\"),\"\"),\"\")","v":""}]
[null,{"$f":"Napok+DATE(NaptÉv,8,1)-WEEKDAY(DATE(NaptÉv,8,1),(HétKezdete=\"HÉTFŐ\")+1)+22","v":"2018-08-19"},"2018-08-20","2018-08-21","2018-08-22","2018-08-23","2018-08-24","2018-08-25"]
[null,{"$f":"IFERROR(IF(Ünnepnapok,IF(INDEX(tblÜnnepnapok[],MATCH(DATE(NaptÉv,MONTH(B11),DAY(B11)),IF(TartottÜnnepek,tblÜnnepnapok[KORRIGÁLT],tblÜnnepnapok[NAP]),0),6),INDEX(tblÜnnepnapok[],MATCH(DATE(NaptÉv,MONTH(B11),DAY(B11)),IF(TartottÜnnepek,tblÜnnepnapok[KORRIGÁLT],tblÜnnepnapok[NAP]),0),2),\"\"),\"\"),\"\")","v":""},{"$f":"IFERROR(IF(Ünnepnapok,IF(INDEX(tblÜnnepnapok[],MATCH(DATE(NaptÉv,MONTH(C11),DAY(C11)),IF(TartottÜnnepek,tblÜnnepnapok[KORRIGÁLT],tblÜnnepnapok[NAP]),0),6),INDEX(tblÜnnepnapok[],MATCH(DATE(NaptÉv,MONTH(C11),DAY(C11)),IF(TartottÜnnepek,tblÜnnepnapok[KORRIGÁLT],tblÜnnepnapok[NAP]),0),2),\"\"),\"\"),\"\")","v":""},{"$f":"IFERROR(IF(Ünnepnapok,IF(INDEX(tblÜnnepnapok[],MATCH(DATE(NaptÉv,MONTH(D11),DAY(D11)),IF(TartottÜnnepek,tblÜnnepnapok[KORRIGÁLT],tblÜnnepnapok[NAP]),0),6),INDEX(tblÜnnepnapok[],MATCH(DATE(NaptÉv,MONTH(D11),DAY(D11)),IF(TartottÜnnepek,tblÜnnepnapok[KORRIGÁLT],tblÜnnepnapok[NAP]),0),2),\"\"),\"\"),\"\")","v":""},{"$f":"IFERROR(IF(Ünnepnapok,IF(INDEX(tblÜnnepnapok[],MATCH(DATE(NaptÉv,MONTH(E11),DAY(E11)),IF(TartottÜnnepek,tblÜnnepnapok[KORRIGÁLT],tblÜnnepnapok[NAP]),0),6),INDEX(tblÜnnepnapok[],MATCH(DATE(NaptÉv,MONTH(E11),DAY(E11)),IF(TartottÜnnepek,tblÜnnepnapok[KORRIGÁLT],tblÜnnepnapok[NAP]),0),2),\"\"),\"\"),\"\")","v":""},{"$f":"IFERROR(IF(Ünnepnapok,IF(INDEX(tblÜnnepnapok[],MATCH(DATE(NaptÉv,MONTH(F11),DAY(F11)),IF(TartottÜnnepek,tblÜnnepnapok[KORRIGÁLT],tblÜnnepnapok[NAP]),0),6),INDEX(tblÜnnepnapok[],MATCH(DATE(NaptÉv,MONTH(F11),DAY(F11)),IF(TartottÜnnepek,tblÜnnepnapok[KORRIGÁLT],tblÜnnepnapok[NAP]),0),2),\"\"),\"\"),\"\")","v":""},{"$f":"IFERROR(IF(Ünnepnapok,IF(INDEX(tblÜnnepnapok[],MATCH(DATE(NaptÉv,MONTH(G11),DAY(G11)),IF(TartottÜnnepek,tblÜnnepnapok[KORRIGÁLT],tblÜnnepnapok[NAP]),0),6),INDEX(tblÜnnepnapok[],MATCH(DATE(NaptÉv,MONTH(G11),DAY(G11)),IF(TartottÜnnepek,tblÜnnepnapok[KORRIGÁLT],tblÜnnepnapok[NAP]),0),2),\"\"),\"\"),\"\")","v":""},{"$f":"IFERROR(IF(Ünnepnapok,IF(INDEX(tblÜnnepnapok[],MATCH(DATE(NaptÉv,MONTH(H11),DAY(H11)),IF(TartottÜnnepek,tblÜnnepnapok[KORRIGÁLT],tblÜnnepnapok[NAP]),0),6),INDEX(tblÜnnepnapok[],MATCH(DATE(NaptÉv,MONTH(H11),DAY(H11)),IF(TartottÜnnepek,tblÜnnepnapok[KORRIGÁLT],tblÜnnepnapok[NAP]),0),2),\"\"),\"\"),\"\")","v":""}]
[null,{"$f":"Napok+DATE(NaptÉv,8,1)-WEEKDAY(DATE(NaptÉv,8,1),(HétKezdete=\"HÉTFŐ\")+1)+29","v":"2018-08-26"},"2018-08-27","2018-08-28","2018-08-29","2018-08-30","2018-08-31","2018-09-01"]
[null,{"$f":"IFERROR(IF(Ünnepnapok,IF(INDEX(tblÜnnepnapok[],MATCH(DATE(NaptÉv,MONTH(B13),DAY(B13)),IF(TartottÜnnepek,tblÜnnepnapok[KORRIGÁLT],tblÜnnepnapok[NAP]),0),6),INDEX(tblÜnnepnapok[],MATCH(DATE(NaptÉv,MONTH(B13),DAY(B13)),IF(TartottÜnnepek,tblÜnnepnapok[KORRIGÁLT],tblÜnnepnapok[NAP]),0),2),\"\"),\"\"),\"\")","v":""},{"$f":"IFERROR(IF(Ünnepnapok,IF(INDEX(tblÜnnepnapok[],MATCH(DATE(NaptÉv,MONTH(C13),DAY(C13)),IF(TartottÜnnepek,tblÜnnepnapok[KORRIGÁLT],tblÜnnepnapok[NAP]),0),6),INDEX(tblÜnnepnapok[],MATCH(DATE(NaptÉv,MONTH(C13),DAY(C13)),IF(TartottÜnnepek,tblÜnnepnapok[KORRIGÁLT],tblÜnnepnapok[NAP]),0),2),\"\"),\"\"),\"\")","v":""},{"$f":"IFERROR(IF(Ünnepnapok,IF(INDEX(tblÜnnepnapok[],MATCH(DATE(NaptÉv,MONTH(D13),DAY(D13)),IF(TartottÜnnepek,tblÜnnepnapok[KORRIGÁLT],tblÜnnepnapok[NAP]),0),6),INDEX(tblÜnnepnapok[],MATCH(DATE(NaptÉv,MONTH(D13),DAY(D13)),IF(TartottÜnnepek,tblÜnnepnapok[KORRIGÁLT],tblÜnnepnapok[NAP]),0),2),\"\"),\"\"),\"\")","v":""},{"$f":"IFERROR(IF(Ünnepnapok,IF(INDEX(tblÜnnepnapok[],MATCH(DATE(NaptÉv,MONTH(E13),DAY(E13)),IF(TartottÜnnepek,tblÜnnepnapok[KORRIGÁLT],tblÜnnepnapok[NAP]),0),6),INDEX(tblÜnnepnapok[],MATCH(DATE(NaptÉv,MONTH(E13),DAY(E13)),IF(TartottÜnnepek,tblÜnnepnapok[KORRIGÁLT],tblÜnnepnapok[NAP]),0),2),\"\"),\"\"),\"\")","v":""},{"$f":"IFERROR(IF(Ünnepnapok,IF(INDEX(tblÜnnepnapok[],MATCH(DATE(NaptÉv,MONTH(F13),DAY(F13)),IF(TartottÜnnepek,tblÜnnepnapok[KORRIGÁLT],tblÜnnepnapok[NAP]),0),6),INDEX(tblÜnnepnapok[],MATCH(DATE(NaptÉv,MONTH(F13),DAY(F13)),IF(TartottÜnnepek,tblÜnnepnapok[KORRIGÁLT],tblÜnnepnapok[NAP]),0),2),\"\"),\"\"),\"\")","v":""},{"$f":"IFERROR(IF(Ünnepnapok,IF(INDEX(tblÜnnepnapok[],MATCH(DATE(NaptÉv,MONTH(G13),DAY(G13)),IF(TartottÜnnepek,tblÜnnepnapok[KORRIGÁLT],tblÜnnepnapok[NAP]),0),6),INDEX(tblÜnnepnapok[],MATCH(DATE(NaptÉv,MONTH(G13),DAY(G13)),IF(TartottÜnnepek,tblÜnnepnapok[KORRIGÁLT],tblÜnnepnapok[NAP]),0),2),\"\"),\"\"),\"\")","v":""},{"$f":"IFERROR(IF(Ünnepnapok,IF(INDEX(tblÜnnepnapok[],MATCH(DATE(NaptÉv,MONTH(H13),DAY(H13)),IF(TartottÜnnepek,tblÜnnepnapok[KORRIGÁLT],tblÜnnepnapok[NAP]),0),6),INDEX(tblÜnnepnapok[],MATCH(DATE(NaptÉv,MONTH(H13),DAY(H13)),IF(TartottÜnnepek,tblÜnnepnapok[KORRIGÁLT],tblÜnnepnapok[NAP]),0),2),\"\"),\"\"),\"\")","v":""}]
[null,{"$f":"Napok+DATE(NaptÉv,8,1)-WEEKDAY(DATE(NaptÉv,8,1),(HétKezdete=\"HÉTFŐ\")+1)+36","v":"2018-09-02"},"2018-09-03","MEGJEGYZÉSEK"]
[null,{"$f":"IFERROR(IF(Ünnepnapok,IF(INDEX(tblÜnnepnapok[],MATCH(DATE(NaptÉv,MONTH(B15),DAY(B15)),IF(TartottÜnnepek,tblÜnnepnapok[KORRIGÁLT],tblÜnnepnapok[NAP]),0),6),INDEX(tblÜnnepnapok[],MATCH(DATE(NaptÉv,MONTH(B15),DAY(B15)),IF(TartottÜnnepek,tblÜnnepnapok[KORRIGÁLT],tblÜnnepnapok[NAP]),0),2),\"\"),\"\"),\"\")","v":""},{"$f":"IFERROR(IF(Ünnepnapok,IF(INDEX(tblÜnnepnapok[],MATCH(DATE(NaptÉv,MONTH(C15),DAY(C15)),IF(TartottÜnnepek,tblÜnnepnapok[KORRIGÁLT],tblÜnnepnapok[NAP]),0),6),INDEX(tblÜnnepnapok[],MATCH(DATE(NaptÉv,MONTH(C15),DAY(C15)),IF(TartottÜnnepek,tblÜnnepnapok[KORRIGÁLT],tblÜnnepnapok[NAP]),0),2),\"\"),\"\"),\"\")","v":"Pünkösd hétfő"}]

{"sheet":"Szeptember","index":9,"n_rows":16,"n_cols":8,"rows_kept":16,"merged":[[1,1,1,3],[14,3,14,7],[15,3,15,7],[16,1,16,7]]}
[]
[null,{"$f":"B9","v":"2018-09-09"}]
[]
[null,{"$f":"HétKezdete","v":"VASÁRNAP"},{"$f":"UPPER(TEXT(C5,\"nnnn\"))","v":"HÉTFŐ"},"KEDD","SZERDA","CSÜTÖRTÖK","PÉNTEK","SZOMBAT"]
[null,{"$f":"Napok+DATE(NaptÉv,9,1)-WEEKDAY(DATE(NaptÉv,9,1),(HétKezdete=\"HÉTFŐ\")+1)+1","v":"2018-08-26"},"2018-08-27","2018-08-28","2018-08-29","2018-08-30","2018-08-31","2018-09-01"]
[null,{"$f":"IFERROR(IF(Ünnepnapok,IF(INDEX(tblÜnnepnapok[],MATCH(DATE(NaptÉv-(DAY(B5)>15)+(ROW()>6),MONTH(B5),DAY(B5)),IF(TartottÜnnepek,tblÜnnepnapok[KORRIGÁLT],tblÜnnepnapok[NAP]),0),6),INDEX(tblÜnnepnapok[],MATCH(DATE(NaptÉv-(DAY(B5)>15)+(ROW()>6),MONTH(B5),DAY(B5)),IF(TartottÜnnepek,tblÜnnepnapok[KORRIGÁLT],tblÜnnepnapok[NAP]),0),2),\"\"),\"\"),\"\")","v":""},{"$f":"IFERROR(IF(Ünnepnapok,IF(INDEX(tblÜnnepnapok[],MATCH(DATE(NaptÉv-(DAY(C5)>15)+(ROW()>6),MONTH(C5),DAY(C5)),IF(TartottÜnnepek,tblÜnnepnapok[KORRIGÁLT],tblÜnnepnapok[NAP]),0),6),INDEX(tblÜnnepnapok[],MATCH(DATE(NaptÉv-(DAY(C5)>15)+(ROW()>6),MONTH(C5),DAY(C5)),IF(TartottÜnnepek,tblÜnnepnapok[KORRIGÁLT],tblÜnnepnapok[NAP]),0),2),\"\"),\"\"),\"\")","v":""},{"$f":"IFERROR(IF(Ünnepnapok,IF(INDEX(tblÜnnepnapok[],MATCH(DATE(NaptÉv-(DAY(D5)>15)+(ROW()>6),MONTH(D5),DAY(D5)),IF(TartottÜnnepek,tblÜnnepnapok[KORRIGÁLT],tblÜnnepnapok[NAP]),0),6),INDEX(tblÜnnepnapok[],MATCH(DATE(NaptÉv-(DAY(D5)>15)+(ROW()>6),MONTH(D5),DAY(D5)),IF(TartottÜnnepek,tblÜnnepnapok[KORRIGÁLT],tblÜnnepnapok[NAP]),0),2),\"\"),\"\"),\"\")","v":""},{"$f":"IFERROR(IF(Ünnepnapok,IF(INDEX(tblÜnnepnapok[],MATCH(DATE(NaptÉv-(DAY(E5)>15)+(ROW()>6),MONTH(E5),DAY(E5)),IF(TartottÜnnepek,tblÜnnepnapok[KORRIGÁLT],tblÜnnepnapok[NAP]),0),6),INDEX(tblÜnnepnapok[],MATCH(DATE(NaptÉv-(DAY(E5)>15)+(ROW()>6),MONTH(E5),DAY(E5)),IF(TartottÜnnepek,tblÜnnepnapok[KORRIGÁLT],tblÜnnepnapok[NAP]),0),2),\"\"),\"\"),\"\")","v":""},{"$f":"IFERROR(IF(Ünnepnapok,IF(INDEX(tblÜnnepnapok[],MATCH(DATE(NaptÉv-(DAY(F5)>15)+(ROW()>6),MONTH(F5),DAY(F5)),IF(TartottÜnnepek,tblÜnnepnapok[KORRIGÁLT],tblÜnnepnapok[NAP]),0),6),INDEX(tblÜnnepnapok[],MATCH(DATE(NaptÉv-(DAY(F5)>15)+(ROW()>6),MONTH(F5),DAY(F5)),IF(TartottÜnnepek,tblÜnnepnapok[KORRIGÁLT],tblÜnnepnapok[NAP]),0),2),\"\"),\"\"),\"\")","v":""},{"$f":"IFERROR(IF(Ünnepnapok,IF(INDEX(tblÜnnepnapok[],MATCH(DATE(NaptÉv-(DAY(G5)>15)+(ROW()>6),MONTH(G5),DAY(G5)),IF(TartottÜnnepek,tblÜnnepnapok[KORRIGÁLT],tblÜnnepnapok[NAP]),0),6),INDEX(tblÜnnepnapok[],MATCH(DATE(NaptÉv-(DAY(G5)>15)+(ROW()>6),MONTH(G5),DAY(G5)),IF(TartottÜnnepek,tblÜnnepnapok[KORRIGÁLT],tblÜnnepnapok[NAP]),0),2),\"\"),\"\"),\"\")","v":""},{"$f":"IFERROR(IF(Ünnepnapok,IF(INDEX(tblÜnnepnapok[],MATCH(DATE(NaptÉv-(DAY(H5)>15)+(ROW()>6),MONTH(H5),DAY(H5)),IF(TartottÜnnepek,tblÜnnepnapok[KORRIGÁLT],tblÜnnepnapok[NAP]),0),6),INDEX(tblÜnnepnapok[],MATCH(DATE(NaptÉv-(DAY(H5)>15)+(ROW()>6),MONTH(H5),DAY(H5)),IF(TartottÜnnepek,tblÜnnepnapok[KORRIGÁLT],tblÜnnepnapok[NAP]),0),2),\"\"),\"\"),\"\")","v":""}]
[null,{"$f":"Napok+DATE(NaptÉv,9,1)-WEEKDAY(DATE(NaptÉv,9,1),(HétKezdete=\"HÉTFŐ\")+1)+8","v":"2018-09-02"},"2018-09-03","2018-09-04","2018-09-05","2018-09-06","2018-09-07","2018-09-08"]
[null,{"$f":"IFERROR(IF(Ünnepnapok,IF(INDEX(tblÜnnepnapok[],MATCH(DATE(NaptÉv,MONTH(B7),DAY(B7)),IF(TartottÜnnepek,tblÜnnepnapok[KORRIGÁLT],tblÜnnepnapok[NAP]),0),6),INDEX(tblÜnnepnapok[],MATCH(DATE(NaptÉv,MONTH(B7),DAY(B7)),IF(TartottÜnnepek,tblÜnnepnapok[KORRIGÁLT],tblÜnnepnapok[NAP]),0),2),\"\"),\"\"),\"\")","v":""},{"$f":"IFERROR(IF(Ünnepnapok,IF(INDEX(tblÜnnepnapok[],MATCH(DATE(NaptÉv,MONTH(C7),DAY(C7)),IF(TartottÜnnepek,tblÜnnepnapok[KORRIGÁLT],tblÜnnepnapok[NAP]),0),6),INDEX(tblÜnnepnapok[],MATCH(DATE(NaptÉv,MONTH(C7),DAY(C7)),IF(TartottÜnnepek,tblÜnnepnapok[KORRIGÁLT],tblÜnnepnapok[NAP]),0),2),\"\"),\"\"),\"\")","v":"Pünkösd hétfő"},{"$f":"IFERROR(IF(Ünnepnapok,IF(INDEX(tblÜnnepnapok[],MATCH(DATE(NaptÉv,MONTH(D7),DAY(D7)),IF(TartottÜnnepek,tblÜnnepnapok[KORRIGÁLT],tblÜnnepnapok[NAP]),0),6),INDEX(tblÜnnepnapok[],MATCH(DATE(NaptÉv,MONTH(D7),DAY(D7)),IF(TartottÜnnepek,tblÜnnepnapok[KORRIGÁLT],tblÜnnepnapok[NAP]),0),2),\"\"),\"\"),\"\")","v":""},{"$f":"IFERROR(IF(Ünnepnapok,IF(INDEX(tblÜnnepnapok[],MATCH(DATE(NaptÉv,MONTH(E7),DAY(E7)),IF(TartottÜnnepek,tblÜnnepnapok[KORRIGÁLT],tblÜnnepnapok[NAP]),0),6),INDEX(tblÜnnepnapok[],MATCH(DATE(NaptÉv,MONTH(E7),DAY(E7)),IF(TartottÜnnepek,tblÜnnepnapok[KORRIGÁLT],tblÜnnepnapok[NAP]),0),2),\"\"),\"\"),\"\")","v":""},{"$f":"IFERROR(IF(Ünnepnapok,IF(INDEX(tblÜnnepnapok[],MATCH(DATE(NaptÉv,MONTH(F7),DAY(F7)),IF(TartottÜnnepek,tblÜnnepnapok[KORRIGÁLT],tblÜnnepnapok[NAP]),0),6),INDEX(tblÜnnepnapok[],MATCH(DATE(NaptÉv,MONTH(F7),DAY(F7)),IF(TartottÜnnepek,tblÜnnepnapok[KORRIGÁLT],tblÜnnepnapok[NAP]),0),2),\"\"),\"\"),\"\")","v":""},{"$f":"IFERROR(IF(Ünnepnapok,IF(INDEX(tblÜnnepnapok[],MATCH(DATE(NaptÉv,MONTH(G7),DAY(G7)),IF(TartottÜnnepek,tblÜnnepnapok[KORRIGÁLT],tblÜnnepnapok[NAP]),0),6),INDEX(tblÜnnepnapok[],MATCH(DATE(NaptÉv,MONTH(G7),DAY(G7)),IF(TartottÜnnepek,tblÜnnepnapok[KORRIGÁLT],tblÜnnepnapok[NAP]),0),2),\"\"),\"\"),\"\")","v":""},{"$f":"IFERROR(IF(Ünnepnapok,IF(INDEX(tblÜnnepnapok[],MATCH(DATE(NaptÉv,MONTH(H7),DAY(H7)),IF(TartottÜnnepek,tblÜnnepnapok[KORRIGÁLT],tblÜnnepnapok[NAP]),0),6),INDEX(tblÜnnepnapok[],MATCH(DATE(NaptÉv,MONTH(H7),DAY(H7)),IF(TartottÜnnepek,tblÜnnepnapok[KORRIGÁLT],tblÜnnepnapok[NAP]),0),2),\"\"),\"\"),\"\")","v":""}]
[null,{"$f":"Napok+DATE(NaptÉv,9,1)-WEEKDAY(DATE(NaptÉv,9,1),(HétKezdete=\"HÉTFŐ\")+1)+15","v":"2018-09-09"},"2018-09-10","2018-09-11","2018-09-12","2018-09-13","2018-09-14","2018-09-15"]
[null,{"$f":"IFERROR(IF(Ünnepnapok,IF(INDEX(tblÜnnepnapok[],MATCH(DATE(NaptÉv,MONTH(B9),DAY(B9)),IF(TartottÜnnepek,tblÜnnepnapok[KORRIGÁLT],tblÜnnepnapok[NAP]),0),6),INDEX(tblÜnnepnapok[],MATCH(DATE(NaptÉv,MONTH(B9),DAY(B9)),IF(TartottÜnnepek,tblÜnnepnapok[KORRIGÁLT],tblÜnnepnapok[NAP]),0),2),\"\"),\"\"),\"\")","v":""},{"$f":"IFERROR(IF(Ünnepnapok,IF(INDEX(tblÜnnepnapok[],MATCH(DATE(NaptÉv,MONTH(C9),DAY(C9)),IF(TartottÜnnepek,tblÜnnepnapok[KORRIGÁLT],tblÜnnepnapok[NAP]),0),6),INDEX(tblÜnnepnapok[],MATCH(DATE(NaptÉv,MONTH(C9),DAY(C9)),IF(TartottÜnnepek,tblÜnnepnapok[KORRIGÁLT],tblÜnnepnapok[NAP]),0),2),\"\"),\"\"),\"\")","v":""},{"$f":"IFERROR(IF(Ünnepnapok,IF(INDEX(tblÜnnepnapok[],MATCH(DATE(NaptÉv,MONTH(D9),DAY(D9)),IF(TartottÜnnepek,tblÜnnepnapok[KORRIGÁLT],tblÜnnepnapok[NAP]),0),6),INDEX(tblÜnnepnapok[],MATCH(DATE(NaptÉv,MONTH(D9),DAY(D9)),IF(TartottÜnnepek,tblÜnnepnapok[KORRIGÁLT],tblÜnnepnapok[NAP]),0),2),\"\"),\"\"),\"\")","v":""},{"$f":"IFERROR(IF(Ünnepnapok,IF(INDEX(tblÜnnepnapok[],MATCH(DATE(NaptÉv,MONTH(E9),DAY(E9)),IF(TartottÜnnepek,tblÜnnepnapok[KORRIGÁLT],tblÜnnepnapok[NAP]),0),6),INDEX(tblÜnnepnapok[],MATCH(DATE(NaptÉv,MONTH(E9),DAY(E9)),IF(TartottÜnnepek,tblÜnnepnapok[KORRIGÁLT],tblÜnnepnapok[NAP]),0),2),\"\"),\"\"),\"\")","v":""},{"$f":"IFERROR(IF(Ünnepnapok,IF(INDEX(tblÜnnepnapok[],MATCH(DATE(NaptÉv,MONTH(F9),DAY(F9)),IF(TartottÜnnepek,tblÜnnepnapok[KORRIGÁLT],tblÜnnepnapok[NAP]),0),6),INDEX(tblÜnnepnapok[],MATCH(DATE(NaptÉv,MONTH(F9),DAY(F9)),IF(TartottÜnnepek,tblÜnnepnapok[KORRIGÁLT],tblÜnnepnapok[NAP]),0),2),\"\"),\"\"),\"\")","v":""},{"$f":"IFERROR(IF(Ünnepnapok,IF(INDEX(tblÜnnepnapok[],MATCH(DATE(NaptÉv,MONTH(G9),DAY(G9)),IF(TartottÜnnepek,tblÜnnepnapok[KORRIGÁLT],tblÜnnepnapok[NAP]),0),6),INDEX(tblÜnnepnapok[],MATCH(DATE(NaptÉv,MONTH(G9),DAY(G9)),IF(TartottÜnnepek,tblÜnnepnapok[KORRIGÁLT],tblÜnnepnapok[NAP]),0),2),\"\"),\"\"),\"\")","v":""},{"$f":"IFERROR(IF(Ünnepnapok,IF(INDEX(tblÜnnepnapok[],MATCH(DATE(NaptÉv,MONTH(H9),DAY(H9)),IF(TartottÜnnepek,tblÜnnepnapok[KORRIGÁLT],tblÜnnepnapok[NAP]),0),6),INDEX(tblÜnnepnapok[],MATCH(DATE(NaptÉv,MONTH(H9),DAY(H9)),IF(TartottÜnnepek,tblÜnnepnapok[KORRIGÁLT],tblÜnnepnapok[NAP]),0),2),\"\"),\"\"),\"\")","v":""}]
[null,{"$f":"Napok+DATE(NaptÉv,9,1)-WEEKDAY(DATE(NaptÉv,9,1),(HétKezdete=\"HÉTFŐ\")+1)+22","v":"2018-09-16"},"2018-09-17","2018-09-18","2018-09-19","2018-09-20","2018-09-21","2018-09-22"]
[null,{"$f":"IFERROR(IF(Ünnepnapok,IF(INDEX(tblÜnnepnapok[],MATCH(DATE(NaptÉv,MONTH(B11),DAY(B11)),IF(TartottÜnnepek,tblÜnnepnapok[KORRIGÁLT],tblÜnnepnapok[NAP]),0),6),INDEX(tblÜnnepnapok[],MATCH(DATE(NaptÉv,MONTH(B11),DAY(B11)),IF(TartottÜnnepek,tblÜnnepnapok[KORRIGÁLT],tblÜnnepnapok[NAP]),0),2),\"\"),\"\"),\"\")","v":""},{"$f":"IFERROR(IF(Ünnepnapok,IF(INDEX(tblÜnnepnapok[],MATCH(DATE(NaptÉv,MONTH(C11),DAY(C11)),IF(TartottÜnnepek,tblÜnnepnapok[KORRIGÁLT],tblÜnnepnapok[NAP]),0),6),INDEX(tblÜnnepnapok[],MATCH(DATE(NaptÉv,MONTH(C11),DAY(C11)),IF(TartottÜnnepek,tblÜnnepnapok[KORRIGÁLT],tblÜnnepnapok[NAP]),0),2),\"\"),\"\"),\"\")","v":""},{"$f":"IFERROR(IF(Ünnepnapok,IF(INDEX(tblÜnnepnapok[],MATCH(DATE(NaptÉv,MONTH(D11),DAY(D11)),IF(TartottÜnnepek,tblÜnnepnapok[KORRIGÁLT],tblÜnnepnapok[NAP]),0),6),INDEX(tblÜnnepnapok[],MATCH(DATE(NaptÉv,MONTH(D11),DAY(D11)),IF(TartottÜnnepek,tblÜnnepnapok[KORRIGÁLT],tblÜnnepnapok[NAP]),0),2),\"\"),\"\"),\"\")","v":""},{"$f":"IFERROR(IF(Ünnepnapok,IF(INDEX(tblÜnnepnapok[],MATCH(DATE(NaptÉv,MONTH(E11),DAY(E11)),IF(TartottÜnnepek,tblÜnnepnapok[KORRIGÁLT],tblÜnnepnapok[NAP]),0),6),INDEX(tblÜnnepnapok[],MATCH(DATE(NaptÉv,MONTH(E11),DAY(E11)),IF(TartottÜnnepek,tblÜnnepnapok[KORRIGÁLT],tblÜnnepnapok[NAP]),0),2),\"\"),\"\"),\"\")","v":""},{"$f":"IFERROR(IF(Ünnepnapok,IF(INDEX(tblÜnnepnapok[],MATCH(DATE(NaptÉv,MONTH(F11),DAY(F11)),IF(TartottÜnnepek,tblÜnnepnapok[KORRIGÁLT],tblÜnnepnapok[NAP]),0),6),INDEX(tblÜnnepnapok[],MATCH(DATE(NaptÉv,MONTH(F11),DAY(F11)),IF(TartottÜnnepek,tblÜnnepnapok[KORRIGÁLT],tblÜnnepnapok[NAP]),0),2),\"\"),\"\"),\"\")","v":""},{"$f":"IFERROR(IF(Ünnepnapok,IF(INDEX(tblÜnnepnapok[],MATCH(DATE(NaptÉv,MONTH(G11),DAY(G11)),IF(TartottÜnnepek,tblÜnnepnapok[KORRIGÁLT],tblÜnnepnapok[NAP]),0),6),INDEX(tblÜnnepnapok[],MATCH(DATE(NaptÉv,MONTH(G11),DAY(G11)),IF(TartottÜnnepek,tblÜnnepnapok[KORRIGÁLT],tblÜnnepnapok[NAP]),0),2),\"\"),\"\"),\"\")","v":""},{"$f":"IFERROR(IF(Ünnepnapok,IF(INDEX(tblÜnnepnapok[],MATCH(DATE(NaptÉv,MONTH(H11),DAY(H11)),IF(TartottÜnnepek,tblÜnnepnapok[KORRIGÁLT],tblÜnnepnapok[NAP]),0),6),INDEX(tblÜnnepnapok[],MATCH(DATE(NaptÉv,MONTH(H11),DAY(H11)),IF(TartottÜnnepek,tblÜnnepnapok[KORRIGÁLT],tblÜnnepnapok[NAP]),0),2),\"\"),\"\"),\"\")","v":""}]
[null,{"$f":"Napok+DATE(NaptÉv,9,1)-WEEKDAY(DATE(NaptÉv,9,1),(HétKezdete=\"HÉTFŐ\")+1)+29","v":"2018-09-23"},"2018-09-24","2018-09-25","2018-09-26","2018-09-27","2018-09-28","2018-09-29"]
[null,{"$f":"IFERROR(IF(Ünnepnapok,IF(INDEX(tblÜnnepnapok[],MATCH(DATE(NaptÉv,MONTH(B13),DAY(B13)),IF(TartottÜnnepek,tblÜnnepnapok[KORRIGÁLT],tblÜnnepnapok[NAP]),0),6),INDEX(tblÜnnepnapok[],MATCH(DATE(NaptÉv,MONTH(B13),DAY(B13)),IF(TartottÜnnepek,tblÜnnepnapok[KORRIGÁLT],tblÜnnepnapok[NAP]),0),2),\"\"),\"\"),\"\")","v":""},{"$f":"IFERROR(IF(Ünnepnapok,IF(INDEX(tblÜnnepnapok[],MATCH(DATE(NaptÉv,MONTH(C13),DAY(C13)),IF(TartottÜnnepek,tblÜnnepnapok[KORRIGÁLT],tblÜnnepnapok[NAP]),0),6),INDEX(tblÜnnepnapok[],MATCH(DATE(NaptÉv,MONTH(C13),DAY(C13)),IF(TartottÜnnepek,tblÜnnepnapok[KORRIGÁLT],tblÜnnepnapok[NAP]),0),2),\"\"),\"\"),\"\")","v":""},{"$f":"IFERROR(IF(Ünnepnapok,IF(INDEX(tblÜnnepnapok[],MATCH(DATE(NaptÉv,MONTH(D13),DAY(D13)),IF(TartottÜnnepek,tblÜnnepnapok[KORRIGÁLT],tblÜnnepnapok[NAP]),0),6),INDEX(tblÜnnepnapok[],MATCH(DATE(NaptÉv,MONTH(D13),DAY(D13)),IF(TartottÜnnepek,tblÜnnepnapok[KORRIGÁLT],tblÜnnepnapok[NAP]),0),2),\"\"),\"\"),\"\")","v":""},{"$f":"IFERROR(IF(Ünnepnapok,IF(INDEX(tblÜnnepnapok[],MATCH(DATE(NaptÉv,MONTH(E13),DAY(E13)),IF(TartottÜnnepek,tblÜnnepnapok[KORRIGÁLT],tblÜnnepnapok[NAP]),0),6),INDEX(tblÜnnepnapok[],MATCH(DATE(NaptÉv,MONTH(E13),DAY(E13)),IF(TartottÜnnepek,tblÜnnepnapok[KORRIGÁLT],tblÜnnepnapok[NAP]),0),2),\"\"),\"\"),\"\")","v":""},{"$f":"IFERROR(IF(Ünnepnapok,IF(INDEX(tblÜnnepnapok[],MATCH(DATE(NaptÉv,MONTH(F13),DAY(F13)),IF(TartottÜnnepek,tblÜnnepnapok[KORRIGÁLT],tblÜnnepnapok[NAP]),0),6),INDEX(tblÜnnepnapok[],MATCH(DATE(NaptÉv,MONTH(F13),DAY(F13)),IF(TartottÜnnepek,tblÜnnepnapok[KORRIGÁLT],tblÜnnepnapok[NAP]),0),2),\"\"),\"\"),\"\")","v":""},{"$f":"IFERROR(IF(Ünnepnapok,IF(INDEX(tblÜnnepnapok[],MATCH(DATE(NaptÉv,MONTH(G13),DAY(G13)),IF(TartottÜnnepek,tblÜnnepnapok[KORRIGÁLT],tblÜnnepnapok[NAP]),0),6),INDEX(tblÜnnepnapok[],MATCH(DATE(NaptÉv,MONTH(G13),DAY(G13)),IF(TartottÜnnepek,tblÜnnepnapok[KORRIGÁLT],tblÜnnepnapok[NAP]),0),2),\"\"),\"\"),\"\")","v":""},{"$f":"IFERROR(IF(Ünnepnapok,IF(INDEX(tblÜnnepnapok[],MATCH(DATE(NaptÉv,MONTH(H13),DAY(H13)),IF(TartottÜnnepek,tblÜnnepnapok[KORRIGÁLT],tblÜnnepnapok[NAP]),0),6),INDEX(tblÜnnepnapok[],MATCH(DATE(NaptÉv,MONTH(H13),DAY(H13)),IF(TartottÜnnepek,tblÜnnepnapok[KORRIGÁLT],tblÜnnepnapok[NAP]),0),2),\"\"),\"\"),\"\")","v":""}]
[null,{"$f":"Napok+DATE(NaptÉv,9,1)-WEEKDAY(DATE(NaptÉv,9,1),(HétKezdete=\"HÉTFŐ\")+1)+36","v":"2018-09-30"},"2018-10-01","MEGJEGYZÉSEK"]
[null,{"$f":"IFERROR(IF(Ünnepnapok,IF(INDEX(tblÜnnepnapok[],MATCH(DATE(NaptÉv,MONTH(B15),DAY(B15)),IF(TartottÜnnepek,tblÜnnepnapok[KORRIGÁLT],tblÜnnepnapok[NAP]),0),6),INDEX(tblÜnnepnapok[],MATCH(DATE(NaptÉv,MONTH(B15),DAY(B15)),IF(TartottÜnnepek,tblÜnnepnapok[KORRIGÁLT],tblÜnnepnapok[NAP]),0),2),\"\"),\"\"),\"\")","v":""},{"$f":"IFERROR(IF(Ünnepnapok,IF(INDEX(tblÜnnepnapok[],MATCH(DATE(NaptÉv,MONTH(C15),DAY(C15)),IF(TartottÜnnepek,tblÜnnepnapok[KORRIGÁLT],tblÜnnepnapok[NAP]),0),6),INDEX(tblÜnnepnapok[],MATCH(DATE(NaptÉv,MONTH(C15),DAY(C15)),IF(TartottÜnnepek,tblÜnnepnapok[KORRIGÁLT],tblÜnnepnapok[NAP]),0),2),\"\"),\"\"),\"\")","v":""}]

{"sheet":"Október","index":10,"n_rows":16,"n_cols":8,"rows_kept":16,"merged":[[1,1,1,3],[14,3,14,7],[15,3,15,7],[16,1,16,7]]}
[]
[null,{"$f":"B9","v":"2018-10-14"}]
[]
[null,{"$f":"HétKezdete","v":"VASÁRNAP"},{"$f":"UPPER(TEXT(C5,\"nnnn\"))","v":"HÉTFŐ"},"KEDD","SZERDA","CSÜTÖRTÖK","PÉNTEK","SZOMBAT"]
[null,{"$f":"Napok+DATE(NaptÉv,10,1)-WEEKDAY(DATE(NaptÉv,10,1),(HétKezdete=\"HÉTFŐ\")+1)+1","v":"2018-09-30"},"2018-10-01","2018-10-02","2018-10-03","2018-10-04","2018-10-05","2018-10-06"]
[null,{"$f":"IFERROR(IF(Ünnepnapok,IF(INDEX(tblÜnnepnapok[],MATCH(DATE(NaptÉv-(DAY(B5)>15)+(ROW()>6),MONTH(B5),DAY(B5)),IF(TartottÜnnepek,tblÜnnepnapok[KORRIGÁLT],tblÜnnepnapok[NAP]),0),6),INDEX(tblÜnnepnapok[],MATCH(DATE(NaptÉv-(DAY(B5)>15)+(ROW()>6),MONTH(B5),DAY(B5)),IF(TartottÜnnepek,tblÜnnepnapok[KORRIGÁLT],tblÜnnepnapok[NAP]),0),2),\"\"),\"\"),\"\")","v":""},{"$f":"IFERROR(IF(Ünnepnapok,IF(INDEX(tblÜnnepnapok[],MATCH(DATE(NaptÉv-(DAY(C5)>15)+(ROW()>6),MONTH(C5),DAY(C5)),IF(TartottÜnnepek,tblÜnnepnapok[KORRIGÁLT],tblÜnnepnapok[NAP]),0),6),INDEX(tblÜnnepnapok[],MATCH(DATE(NaptÉv-(DAY(C5)>15)+(ROW()>6),MONTH(C5),DAY(C5)),IF(TartottÜnnepek,tblÜnnepnapok[KORRIGÁLT],tblÜnnepnapok[NAP]),0),2),\"\"),\"\"),\"\")","v":""},{"$f":"IFERROR(IF(Ünnepnapok,IF(INDEX(tblÜnnepnapok[],MATCH(DATE(NaptÉv-(DAY(D5)>15)+(ROW()>6),MONTH(D5),DAY(D5)),IF(TartottÜnnepek,tblÜnnepnapok[KORRIGÁLT],tblÜnnepnapok[NAP]),0),6),INDEX(tblÜnnepnapok[],MATCH(DATE(NaptÉv-(DAY(D5)>15)+(ROW()>6),MONTH(D5),DAY(D5)),IF(TartottÜnnepek,tblÜnnepnapok[KORRIGÁLT],tblÜnnepnapok[NAP]),0),2),\"\"),\"\"),\"\")","v":""},{"$f":"IFERROR(IF(Ünnepnapok,IF(INDEX(tblÜnnepnapok[],MATCH(DATE(NaptÉv-(DAY(E5)>15)+(ROW()>6),MONTH(E5),DAY(E5)),IF(TartottÜnnepek,tblÜnnepnapok[KORRIGÁLT],tblÜnnepnapok[NAP]),0),6),INDEX(tblÜnnepnapok[],MATCH(DATE(NaptÉv-(DAY(E5)>15)+(ROW()>6),MONTH(E5),DAY(E5)),IF(TartottÜnnepek,tblÜnnepnapok[KORRIGÁLT],tblÜnnepnapok[NAP]),0),2),\"\"),\"\"),\"\")","v":""},{"$f":"IFERROR(IF(Ünnepnapok,IF(INDEX(tblÜnnepnapok[],MATCH(DATE(NaptÉv-(DAY(F5)>15)+(ROW()>6),MONTH(F5),DAY(F5)),IF(TartottÜnnepek,tblÜnnepnapok[KORRIGÁLT],tblÜnnepnapok[NAP]),0),6),INDEX(tblÜnnepnapok[],MATCH(DATE(NaptÉv-(DAY(F5)>15)+(ROW()>6),MONTH(F5),DAY(F5)),IF(TartottÜnnepek,tblÜnnepnapok[KORRIGÁLT],tblÜnnepnapok[NAP]),0),2),\"\"),\"\"),\"\")","v":""},{"$f":"IFERROR(IF(Ünnepnapok,IF(INDEX(tblÜnnepnapok[],MATCH(DATE(NaptÉv-(DAY(G5)>15)+(ROW()>6),MONTH(G5),DAY(G5)),IF(TartottÜnnepek,tblÜnnepnapok[KORRIGÁLT],tblÜnnepnapok[NAP]),0),6),INDEX(tblÜnnepnapok[],MATCH(DATE(NaptÉv-(DAY(G5)>15)+(ROW()>6),MONTH(G5),DAY(G5)),IF(TartottÜnnepek,tblÜnnepnapok[KORRIGÁLT],tblÜnnepnapok[NAP]),0),2),\"\"),\"\"),\"\")","v":""},{"$f":"IFERROR(IF(Ünnepnapok,IF(INDEX(tblÜnnepnapok[],MATCH(DATE(NaptÉv-(DAY(H5)>15)+(ROW()>6),MONTH(H5),DAY(H5)),IF(TartottÜnnepek,tblÜnnepnapok[KORRIGÁLT],tblÜnnepnapok[NAP]),0),6),INDEX(tblÜnnepnapok[],MATCH(DATE(NaptÉv-(DAY(H5)>15)+(ROW()>6),MONTH(H5),DAY(H5)),IF(TartottÜnnepek,tblÜnnepnapok[KORRIGÁLT],tblÜnnepnapok[NAP]),0),2),\"\"),\"\"),\"\")","v":""}]
[null,{"$f":"Napok+DATE(NaptÉv,10,1)-WEEKDAY(DATE(NaptÉv,10,1),(HétKezdete=\"HÉTFŐ\")+1)+8","v":"2018-10-07"},"2018-10-08","2018-10-09","2018-10-10","2018-10-11","2018-10-12","2018-10-13"]
[null,{"$f":"IFERROR(IF(Ünnepnapok,IF(INDEX(tblÜnnepnapok[],MATCH(DATE(NaptÉv,MONTH(B7),DAY(B7)),IF(TartottÜnnepek,tblÜnnepnapok[KORRIGÁLT],tblÜnnepnapok[NAP]),0),6),INDEX(tblÜnnepnapok[],MATCH(DATE(NaptÉv,MONTH(B7),DAY(B7)),IF(TartottÜnnepek,tblÜnnepnapok[KORRIGÁLT],tblÜnnepnapok[NAP]),0),2),\"\"),\"\"),\"\")","v":""},{"$f":"IFERROR(IF(Ünnepnapok,IF(INDEX(tblÜnnepnapok[],MATCH(DATE(NaptÉv,MONTH(C7),DAY(C7)),IF(TartottÜnnepek,tblÜnnepnapok[KORRIGÁLT],tblÜnnepnapok[NAP]),0),6),INDEX(tblÜnnepnapok[],MATCH(DATE(NaptÉv,MONTH(C7),DAY(C7)),IF(TartottÜnnepek,tblÜnnepnapok[KORRIGÁLT],tblÜnnepnapok[NAP]),0),2),\"\"),\"\"),\"\")","v":"Államalapító Szt. István ünnepe"},{"$f":"IFERROR(IF(Ünnepnapok,IF(INDEX(tblÜnnepnapok[],MATCH(DATE(NaptÉv,MONTH(D7),DAY(D7)),IF(TartottÜnnepek,tblÜnnepnapok[KORRIGÁLT],tblÜnnepnapok[NAP]),0),6),INDEX(tblÜnnepnapok[],MATCH(DATE(NaptÉv,MONTH(D7),DAY(D7)),IF(TartottÜnnepek,tblÜnnepnapok[KORRIGÁLT],tblÜnnepnapok[NAP]),0),2),\"\"),\"\"),\"\")","v":""},{"$f":"IFERROR(IF(Ünnepnapok,IF(INDEX(tblÜnnepnapok[],MATCH(DATE(NaptÉv,MONTH(E7),DAY(E7)),IF(TartottÜnnepek,tblÜnnepnapok[KORRIGÁLT],tblÜnnepnapok[NAP]),0),6),INDEX(tblÜnnepnapok[],MATCH(DATE(NaptÉv,MONTH(E7),DAY(E7)),IF(TartottÜnnepek,tblÜnnepnapok[KORRIGÁLT],tblÜnnepnapok[NAP]),0),2),\"\"),\"\"),\"\")","v":""},{"$f":"IFERROR(IF(Ünnepnapok,IF(INDEX(tblÜnnepnapok[],MATCH(DATE(NaptÉv,MONTH(F7),DAY(F7)),IF(TartottÜnnepek,tblÜnnepnapok[KORRIGÁLT],tblÜnnepnapok[NAP]),0),6),INDEX(tblÜnnepnapok[],MATCH(DATE(NaptÉv,MONTH(F7),DAY(F7)),IF(TartottÜnnepek,tblÜnnepnapok[KORRIGÁLT],tblÜnnepnapok[NAP]),0),2),\"\"),\"\"),\"\")","v":""},{"$f":"IFERROR(IF(Ünnepnapok,IF(INDEX(tblÜnnepnapok[],MATCH(DATE(NaptÉv,MONTH(G7),DAY(G7)),IF(TartottÜnnepek,tblÜnnepnapok[KORRIGÁLT],tblÜnnepnapok[NAP]),0),6),INDEX(tblÜnnepnapok[],MATCH(DATE(NaptÉv,MONTH(G7),DAY(G7)),IF(TartottÜnnepek,tblÜnnepnapok[KORRIGÁLT],tblÜnnepnapok[NAP]),0),2),\"\"),\"\"),\"\")","v":""},{"$f":"IFERROR(IF(Ünnepnapok,IF(INDEX(tblÜnnepnapok[],MATCH(DATE(NaptÉv,MONTH(H7),DAY(H7)),IF(TartottÜnnepek,tblÜnnepnapok[KORRIGÁLT],tblÜnnepnapok[NAP]),0),6),INDEX(tblÜnnepnapok[],MATCH(DATE(NaptÉv,MONTH(H7),DAY(H7)),IF(TartottÜnnepek,tblÜnnepnapok[KORRIGÁLT],tblÜnnepnapok[NAP]),0),2),\"\"),\"\"),\"\")","v":""}]
[null,{"$f":"Napok+DATE(NaptÉv,10,1)-WEEKDAY(DATE(NaptÉv,10,1),(HétKezdete=\"HÉTFŐ\")+1)+15","v":"2018-10-14"},"2018-10-15","2018-10-16","2018-10-17","2018-10-18","2018-10-19","2018-10-20"]
[null,{"$f":"IFERROR(IF(Ünnepnapok,IF(INDEX(tblÜnnepnapok[],MATCH(DATE(NaptÉv,MONTH(B9),DAY(B9)),IF(TartottÜnnepek,tblÜnnepnapok[KORRIGÁLT],tblÜnnepnapok[NAP]),0),6),INDEX(tblÜnnepnapok[],MATCH(DATE(NaptÉv,MONTH(B9),DAY(B9)),IF(TartottÜnnepek,tblÜnnepnapok[KORRIGÁLT],tblÜnnepnapok[NAP]),0),2),\"\"),\"\"),\"\")","v":""},{"$f":"IFERROR(IF(Ünnepnapok,IF(INDEX(tblÜnnepnapok[],MATCH(DATE(NaptÉv,MONTH(C9),DAY(C9)),IF(TartottÜnnepek,tblÜnnepnapok[KORRIGÁLT],tblÜnnepnapok[NAP]),0),6),INDEX(tblÜnnepnapok[],MATCH(DATE(NaptÉv,MONTH(C9),DAY(C9)),IF(TartottÜnnepek,tblÜnnepnapok[KORRIGÁLT],tblÜnnepnapok[NAP]),0),2),\"\"),\"\"),\"\")","v":""},{"$f":"IFERROR(IF(Ünnepnapok,IF(INDEX(tblÜnnepnapok[],MATCH(DATE(NaptÉv,MONTH(D9),DAY(D9)),IF(TartottÜnnepek,tblÜnnepnapok[KORRIGÁLT],tblÜnnepnapok[NAP]),0),6),INDEX(tblÜnnepnapok[],MATCH(DATE(NaptÉv,MONTH(D9),DAY(D9)),IF(TartottÜnnepek,tblÜnnepnapok[KORRIGÁLT],tblÜnnepnapok[NAP]),0),2),\"\"),\"\"),\"\")","v":""},{"$f":"IFERROR(IF(Ünnepnapok,IF(INDEX(tblÜnnepnapok[],MATCH(DATE(NaptÉv,MONTH(E9),DAY(E9)),IF(TartottÜnnepek,tblÜnnepnapok[KORRIGÁLT],tblÜnnepnapok[NAP]),0),6),INDEX(tblÜnnepnapok[],MATCH(DATE(NaptÉv,MONTH(E9),DAY(E9)),IF(TartottÜnnepek,tblÜnnepnapok[KORRIGÁLT],tblÜnnepnapok[NAP]),0),2),\"\"),\"\"),\"\")","v":""},{"$f":"IFERROR(IF(Ünnepnapok,IF(INDEX(tblÜnnepnapok[],MATCH(DATE(NaptÉv,MONTH(F9),DAY(F9)),IF(TartottÜnnepek,tblÜnnepnapok[KORRIGÁLT],tblÜnnepnapok[NAP]),0),6),INDEX(tblÜnnepnapok[],MATCH(DATE(NaptÉv,MONTH(F9),DAY(F9)),IF(TartottÜnnepek,tblÜnnepnapok[KORRIGÁLT],tblÜnnepnapok[NAP]),0),2),\"\"),\"\"),\"\")","v":""},{"$f":"IFERROR(IF(Ünnepnapok,IF(INDEX(tblÜnnepnapok[],MATCH(DATE(NaptÉv,MONTH(G9),DAY(G9)),IF(TartottÜnnepek,tblÜnnepnapok[KORRIGÁLT],tblÜnnepnapok[NAP]),0),6),INDEX(tblÜnnepnapok[],MATCH(DATE(NaptÉv,MONTH(G9),DAY(G9)),IF(TartottÜnnepek,tblÜnnepnapok[KORRIGÁLT],tblÜnnepnapok[NAP]),0),2),\"\"),\"\"),\"\")","v":""},{"$f":"IFERROR(IF(Ünnepnapok,IF(INDEX(tblÜnnepnapok[],MATCH(DATE(NaptÉv,MONTH(H9),DAY(H9)),IF(TartottÜnnepek,tblÜnnepnapok[KORRIGÁLT],tblÜnnepnapok[NAP]),0),6),INDEX(tblÜnnepnapok[],MATCH(DATE(NaptÉv,MONTH(H9),DAY(H9)),IF(TartottÜnnepek,tblÜnnepnapok[KORRIGÁLT],tblÜnnepnapok[NAP]),0),2),\"\"),\"\"),\"\")","v":""}]
[null,{"$f":"Napok+DATE(NaptÉv,10,1)-WEEKDAY(DATE(NaptÉv,10,1),(HétKezdete=\"HÉTFŐ\")+1)+22","v":"2018-10-21"},"2018-10-22","2018-10-23","2018-10-24","2018-10-25","2018-10-26","2018-10-27"]
[null,{"$f":"IFERROR(IF(Ünnepnapok,IF(INDEX(tblÜnnepnapok[],MATCH(DATE(NaptÉv,MONTH(B11),DAY(B11)),IF(TartottÜnnepek,tblÜnnepnapok[KORRIGÁLT],tblÜnnepnapok[NAP]),0),6),INDEX(tblÜnnepnapok[],MATCH(DATE(NaptÉv,MONTH(B11),DAY(B11)),IF(TartottÜnnepek,tblÜnnepnapok[KORRIGÁLT],tblÜnnepnapok[NAP]),0),2),\"\"),\"\"),\"\")","v":""},{"$f":"IFERROR(IF(Ünnepnapok,IF(INDEX(tblÜnnepnapok[],MATCH(DATE(NaptÉv,MONTH(C11),DAY(C11)),IF(TartottÜnnepek,tblÜnnepnapok[KORRIGÁLT],tblÜnnepnapok[NAP]),0),6),INDEX(tblÜnnepnapok[],MATCH(DATE(NaptÉv,MONTH(C11),DAY(C11)),IF(TartottÜnnepek,tblÜnnepnapok[KORRIGÁLT],tblÜnnepnapok[NAP]),0),2),\"\"),\"\"),\"\")","v":""},{"$f":"IFERROR(IF(Ünnepnapok,IF(INDEX(tblÜnnepnapok[],MATCH(DATE(NaptÉv,MONTH(D11),DAY(D11)),IF(TartottÜnnepek,tblÜnnepnapok[KORRIGÁLT],tblÜnnepnapok[NAP]),0),6),INDEX(tblÜnnepnapok[],MATCH(DATE(NaptÉv,MONTH(D11),DAY(D11)),IF(TartottÜnnepek,tblÜnnepnapok[KORRIGÁLT],tblÜnnepnapok[NAP]),0),2),\"\"),\"\"),\"\")","v":""},{"$f":"IFERROR(IF(Ünnepnapok,IF(INDEX(tblÜnnepnapok[],MATCH(DATE(NaptÉv,MONTH(E11),DAY(E11)),IF(TartottÜnnepek,tblÜnnepnapok[KORRIGÁLT],tblÜnnepnapok[NAP]),0),6),INDEX(tblÜnnepnapok[],MATCH(DATE(NaptÉv,MONTH(E11),DAY(E11)),IF(TartottÜnnepek,tblÜnnepnapok[KORRIGÁLT],tblÜnnepnapok[NAP]),0),2),\"\"),\"\"),\"\")","v":""},{"$f":"IFERROR(IF(Ünnepnapok,IF(INDEX(tblÜnnepnapok[],MATCH(DATE(NaptÉv,MONTH(F11),DAY(F11)),IF(TartottÜnnepek,tblÜnnepnapok[KORRIGÁLT],tblÜnnepnapok[NAP]),0),6),INDEX(tblÜnnepnapok[],MATCH(DATE(NaptÉv,MONTH(F11),DAY(F11)),IF(TartottÜnnepek,tblÜnnepnapok[KORRIGÁLT],tblÜnnepnapok[NAP]),0),2),\"\"),\"\"),\"\")","v":""},{"$f":"IFERROR(IF(Ünnepnapok,IF(INDEX(tblÜnnepnapok[],MATCH(DATE(NaptÉv,MONTH(G11),DAY(G11)),IF(TartottÜnnepek,tblÜnnepnapok[KORRIGÁLT],tblÜnnepnapok[NAP]),0),6),INDEX(tblÜnnepnapok[],MATCH(DATE(NaptÉv,MONTH(G11),DAY(G11)),IF(TartottÜnnepek,tblÜnnepnapok[KORRIGÁLT],tblÜnnepnapok[NAP]),0),2),\"\"),\"\"),\"\")","v":""},{"$f":"IFERROR(IF(Ünnepnapok,IF(INDEX(tblÜnnepnapok[],MATCH(DATE(NaptÉv,MONTH(H11),DAY(H11)),IF(TartottÜnnepek,tblÜnnepnapok[KORRIGÁLT],tblÜnnepnapok[NAP]),0),6),INDEX(tblÜnnepnapok[],MATCH(DATE(NaptÉv,MONTH(H11),DAY(H11)),IF(TartottÜnnepek,tblÜnnepnapok[KORRIGÁLT],tblÜnnepnapok[NAP]),0),2),\"\"),\"\"),\"\")","v":""}]
[null,{"$f":"Napok+DATE(NaptÉv,10,1)-WEEKDAY(DATE(NaptÉv,10,1),(HétKezdete=\"HÉTFŐ\")+1)+29","v":"2018-10-28"},"2018-10-29","2018-10-30","2018-10-31","2018-11-01","2018-11-02","2018-11-03"]
[null,{"$f":"IFERROR(IF(Ünnepnapok,IF(INDEX(tblÜnnepnapok[],MATCH(DATE(NaptÉv,MONTH(B13),DAY(B13)),IF(TartottÜnnepek,tblÜnnepnapok[KORRIGÁLT],tblÜnnepnapok[NAP]),0),6),INDEX(tblÜnnepnapok[],MATCH(DATE(NaptÉv,MONTH(B13),DAY(B13)),IF(TartottÜnnepek,tblÜnnepnapok[KORRIGÁLT],tblÜnnepnapok[NAP]),0),2),\"\"),\"\"),\"\")","v":""},{"$f":"IFERROR(IF(Ünnepnapok,IF(INDEX(tblÜnnepnapok[],MATCH(DATE(NaptÉv,MONTH(C13),DAY(C13)),IF(TartottÜnnepek,tblÜnnepnapok[KORRIGÁLT],tblÜnnepnapok[NAP]),0),6),INDEX(tblÜnnepnapok[],MATCH(DATE(NaptÉv,MONTH(C13),DAY(C13)),IF(TartottÜnnepek,tblÜnnepnapok[KORRIGÁLT],tblÜnnepnapok[NAP]),0),2),\"\"),\"\"),\"\")","v":""},{"$f":"IFERROR(IF(Ünnepnapok,IF(INDEX(tblÜnnepnapok[],MATCH(DATE(NaptÉv,MONTH(D13),DAY(D13)),IF(TartottÜnnepek,tblÜnnepnapok[KORRIGÁLT],tblÜnnepnapok[NAP]),0),6),INDEX(tblÜnnepnapok[],MATCH(DATE(NaptÉv,MONTH(D13),DAY(D13)),IF(TartottÜnnepek,tblÜnnepnapok[KORRIGÁLT],tblÜnnepnapok[NAP]),0),2),\"\"),\"\"),\"\")","v":""},{"$f":"IFERROR(IF(Ünnepnapok,IF(INDEX(tblÜnnepnapok[],MATCH(DATE(NaptÉv,MONTH(E13),DAY(E13)),IF(TartottÜnnepek,tblÜnnepnapok[KORRIGÁLT],tblÜnnepnapok[NAP]),0),6),INDEX(tblÜnnepnapok[],MATCH(DATE(NaptÉv,MONTH(E13),DAY(E13)),IF(TartottÜnnepek,tblÜnnepnapok[KORRIGÁLT],tblÜnnepnapok[NAP]),0),2),\"\"),\"\"),\"\")","v":""},{"$f":"IFERROR(IF(Ünnepnapok,IF(INDEX(tblÜnnepnapok[],MATCH(DATE(NaptÉv,MONTH(F13),DAY(F13)),IF(TartottÜnnepek,tblÜnnepnapok[KORRIGÁLT],tblÜnnepnapok[NAP]),0),6),INDEX(tblÜnnepnapok[],MATCH(DATE(NaptÉv,MONTH(F13),DAY(F13)),IF(TartottÜnnepek,tblÜnnepnapok[KORRIGÁLT],tblÜnnepnapok[NAP]),0),2),\"\"),\"\"),\"\")","v":""},{"$f":"IFERROR(IF(Ünnepnapok,IF(INDEX(tblÜnnepnapok[],MATCH(DATE(NaptÉv,MONTH(G13),DAY(G13)),IF(TartottÜnnepek,tblÜnnepnapok[KORRIGÁLT],tblÜnnepnapok[NAP]),0),6),INDEX(tblÜnnepnapok[],MATCH(DATE(NaptÉv,MONTH(G13),DAY(G13)),IF(TartottÜnnepek,tblÜnnepnapok[KORRIGÁLT],tblÜnnepnapok[NAP]),0),2),\"\"),\"\"),\"\")","v":""},{"$f":"IFERROR(IF(Ünnepnapok,IF(INDEX(tblÜnnepnapok[],MATCH(DATE(NaptÉv,MONTH(H13),DAY(H13)),IF(TartottÜnnepek,tblÜnnepnapok[KORRIGÁLT],tblÜnnepnapok[NAP]),0),6),INDEX(tblÜnnepnapok[],MATCH(DATE(NaptÉv,MONTH(H13),DAY(H13)),IF(TartottÜnnepek,tblÜnnepnapok[KORRIGÁLT],tblÜnnepnapok[NAP]),0),2),\"\"),\"\"),\"\")","v":""}]
[null,{"$f":"Napok+DATE(NaptÉv,10,1)-WEEKDAY(DATE(NaptÉv,10,1),(HétKezdete=\"HÉTFŐ\")+1)+36","v":"2018-11-04"},"2018-11-05","MEGJEGYZÉSEK"]
[null,{"$f":"IFERROR(IF(Ünnepnapok,IF(INDEX(tblÜnnepnapok[],MATCH(DATE(NaptÉv,MONTH(B15),DAY(B15)),IF(TartottÜnnepek,tblÜnnepnapok[KORRIGÁLT],tblÜnnepnapok[NAP]),0),6),INDEX(tblÜnnepnapok[],MATCH(DATE(NaptÉv,MONTH(B15),DAY(B15)),IF(TartottÜnnepek,tblÜnnepnapok[KORRIGÁLT],tblÜnnepnapok[NAP]),0),2),\"\"),\"\"),\"\")","v":""},{"$f":"IFERROR(IF(Ünnepnapok,IF(INDEX(tblÜnnepnapok[],MATCH(DATE(NaptÉv,MONTH(C15),DAY(C15)),IF(TartottÜnnepek,tblÜnnepnapok[KORRIGÁLT],tblÜnnepnapok[NAP]),0),6),INDEX(tblÜnnepnapok[],MATCH(DATE(NaptÉv,MONTH(C15),DAY(C15)),IF(TartottÜnnepek,tblÜnnepnapok[KORRIGÁLT],tblÜnnepnapok[NAP]),0),2),\"\"),\"\"),\"\")","v":""}]

{"sheet":"November","index":11,"n_rows":16,"n_cols":8,"rows_kept":16,"merged":[[1,1,1,3],[14,3,14,7],[15,3,15,7],[16,1,16,7]]}
[]
[null,{"$f":"B9","v":"2018-11-11"}]
[]
[null,{"$f":"HétKezdete","v":"VASÁRNAP"},{"$f":"UPPER(TEXT(C5,\"nnnn\"))","v":"HÉTFŐ"},"KEDD","SZERDA","CSÜTÖRTÖK","PÉNTEK","SZOMBAT"]
[null,{"$f":"Napok+DATE(NaptÉv,11,1)-WEEKDAY(DATE(NaptÉv,11,1),(HétKezdete=\"HÉTFŐ\")+1)+1","v":"2018-10-28"},"2018-10-29","2018-10-30","2018-10-31","2018-11-01","2018-11-02","2018-11-03"]
[null,{"$f":"IFERROR(IF(Ünnepnapok,IF(INDEX(tblÜnnepnapok[],MATCH(DATE(NaptÉv-(DAY(B5)>15)+(ROW()>6),MONTH(B5),DAY(B5)),IF(TartottÜnnepek,tblÜnnepnapok[KORRIGÁLT],tblÜnnepnapok[NAP]),0),6),INDEX(tblÜnnepnapok[],MATCH(DATE(NaptÉv-(DAY(B5)>15)+(ROW()>6),MONTH(B5),DAY(B5)),IF(TartottÜnnepek,tblÜnnepnapok[KORRIGÁLT],tblÜnnepnapok[NAP]),0),2),\"\"),\"\"),\"\")","v":""},{"$f":"IFERROR(IF(Ünnepnapok,IF(INDEX(tblÜnnepnapok[],MATCH(DATE(NaptÉv-(DAY(C5)>15)+(ROW()>6),MONTH(C5),DAY(C5)),IF(TartottÜnnepek,tblÜnnepnapok[KORRIGÁLT],tblÜnnepnapok[NAP]),0),6),INDEX(tblÜnnepnapok[],MATCH(DATE(NaptÉv-(DAY(C5)>15)+(ROW()>6),MONTH(C5),DAY(C5)),IF(TartottÜnnepek,tblÜnnepnapok[KORRIGÁLT],tblÜnnepnapok[NAP]),0),2),\"\"),\"\"),\"\")","v":""},{"$f":"IFERROR(IF(Ünnepnapok,IF(INDEX(tblÜnnepnapok[],MATCH(DATE(NaptÉv-(DAY(D5)>15)+(ROW()>6),MONTH(D5),DAY(D5)),IF(TartottÜnnepek,tblÜnnepnapok[KORRIGÁLT],tblÜnnepnapok[NAP]),0),6),INDEX(tblÜnnepnapok[],MATCH(DATE(NaptÉv-(DAY(D5)>15)+(ROW()>6),MONTH(D5),DAY(D5)),IF(TartottÜnnepek,tblÜnnepnapok[KORRIGÁLT],tblÜnnepnapok[NAP]),0),2),\"\"),\"\"),\"\")","v":""},{"$f":"IFERROR(IF(Ünnepnapok,IF(INDEX(tblÜnnepnapok[],MATCH(DATE(NaptÉv-(DAY(E5)>15)+(ROW()>6),MONTH(E5),DAY(E5)),IF(TartottÜnnepek,tblÜnnepnapok[KORRIGÁLT],tblÜnnepnapok[NAP]),0),6),INDEX(tblÜnnepnapok[],MATCH(DATE(NaptÉv-(DAY(E5)>15)+(ROW()>6),MONTH(E5),DAY(E5)),IF(TartottÜnnepek,tblÜnnepnapok[KORRIGÁLT],tblÜnnepnapok[NAP]),0),2),\"\"),\"\"),\"\")","v":""},{"$f":"IFERROR(IF(Ünnepnapok,IF(INDEX(tblÜnnepnapok[],MATCH(DATE(NaptÉv-(DAY(F5)>15)+(ROW()>6),MONTH(F5),DAY(F5)),IF(TartottÜnnepek,tblÜnnepnapok[KORRIGÁLT],tblÜnnepnapok[NAP]),0),6),INDEX(tblÜnnepnapok[],MATCH(DATE(NaptÉv-(DAY(F5)>15)+(ROW()>6),MONTH(F5),DAY(F5)),IF(TartottÜnnepek,tblÜnnepnapok[KORRIGÁLT],tblÜnnepnapok[NAP]),0),2),\"\"),\"\"),\"\")","v":""},{"$f":"IFERROR(IF(Ünnepnapok,IF(INDEX(tblÜnnepnapok[],MATCH(DATE(NaptÉv-(DAY(G5)>15)+(ROW()>6),MONTH(G5),DAY(G5)),IF(TartottÜnnepek,tblÜnnepnapok[KORRIGÁLT],tblÜnnepnapok[NAP]),0),6),INDEX(tblÜnnepnapok[],MATCH(DATE(NaptÉv-(DAY(G5)>15)+(ROW()>6),MONTH(G5),DAY(G5)),IF(TartottÜnnepek,tblÜnnepnapok[KORRIGÁLT],tblÜnnepnapok[NAP]),0),2),\"\"),\"\"),\"\")","v":""},{"$f":"IFERROR(IF(Ünnepnapok,IF(INDEX(tblÜnnepnapok[],MATCH(DATE(NaptÉv-(DAY(H5)>15)+(ROW()>6),MONTH(H5),DAY(H5)),IF(TartottÜnnepek,tblÜnnepnapok[KORRIGÁLT],tblÜnnepnapok[NAP]),0),6),INDEX(tblÜnnepnapok[],MATCH(DATE(NaptÉv-(DAY(H5)>15)+(ROW()>6),MONTH(H5),DAY(H5)),IF(TartottÜnnepek,tblÜnnepnapok[KORRIGÁLT],tblÜnnepnapok[NAP]),0),2),\"\"),\"\"),\"\")","v":""}]
[null,{"$f":"Napok+DATE(NaptÉv,11,1)-WEEKDAY(DATE(NaptÉv,11,1),(HétKezdete=\"HÉTFŐ\")+1)+8","v":"2018-11-04"},"2018-11-05","2018-11-06","2018-11-07","2018-11-08","2018-11-09","2018-11-10"]
[null,{"$f":"IFERROR(IF(Ünnepnapok,IF(INDEX(tblÜnnepnapok[],MATCH(DATE(NaptÉv,MONTH(B7),DAY(B7)),IF(TartottÜnnepek,tblÜnnepnapok[KORRIGÁLT],tblÜnnepnapok[NAP]),0),6),INDEX(tblÜnnepnapok[],MATCH(DATE(NaptÉv,MONTH(B7),DAY(B7)),IF(TartottÜnnepek,tblÜnnepnapok[KORRIGÁLT],tblÜnnepnapok[NAP]),0),2),\"\"),\"\"),\"\")","v":""},{"$f":"IFERROR(IF(Ünnepnapok,IF(INDEX(tblÜnnepnapok[],MATCH(DATE(NaptÉv,MONTH(C7),DAY(C7)),IF(TartottÜnnepek,tblÜnnepnapok[KORRIGÁLT],tblÜnnepnapok[NAP]),0),6),INDEX(tblÜnnepnapok[],MATCH(DATE(NaptÉv,MONTH(C7),DAY(C7)),IF(TartottÜnnepek,tblÜnnepnapok[KORRIGÁLT],tblÜnnepnapok[NAP]),0),2),\"\"),\"\"),\"\")","v":""},{"$f":"IFERROR(IF(Ünnepnapok,IF(INDEX(tblÜnnepnapok[],MATCH(DATE(NaptÉv,MONTH(D7),DAY(D7)),IF(TartottÜnnepek,tblÜnnepnapok[KORRIGÁLT],tblÜnnepnapok[NAP]),0),6),INDEX(tblÜnnepnapok[],MATCH(DATE(NaptÉv,MONTH(D7),DAY(D7)),IF(TartottÜnnepek,tblÜnnepnapok[KORRIGÁLT],tblÜnnepnapok[NAP]),0),2),\"\"),\"\"),\"\")","v":""},{"$f":"IFERROR(IF(Ünnepnapok,IF(INDEX(tblÜnnepnapok[],MATCH(DATE(NaptÉv,MONTH(E7),DAY(E7)),IF(TartottÜnnepek,tblÜnnepnapok[KORRIGÁLT],tblÜnnepnapok[NAP]),0),6),INDEX(tblÜnnepnapok[],MATCH(DATE(NaptÉv,MONTH(E7),DAY(E7)),IF(TartottÜnnepek,tblÜnnepnapok[KORRIGÁLT],tblÜnnepnapok[NAP]),0),2),\"\"),\"\"),\"\")","v":""},{"$f":"IFERROR(IF(Ünnepnapok,IF(INDEX(tblÜnnepnapok[],MATCH(DATE(NaptÉv,MONTH(F7),DAY(F7)),IF(TartottÜnnepek,tblÜnnepnapok[KORRIGÁLT],tblÜnnepnapok[NAP]),0),6),INDEX(tblÜnnepnapok[],MATCH(DATE(NaptÉv,MONTH(F7),DAY(F7)),IF(TartottÜnnepek,tblÜnnepnapok[KORRIGÁLT],tblÜnnepnapok[NAP]),0),2),\"\"),\"\"),\"\")","v":""},{"$f":"IFERROR(IF(Ünnepnapok,IF(INDEX(tblÜnnepnapok[],MATCH(DATE(NaptÉv,MONTH(G7),DAY(G7)),IF(TartottÜnnepek,tblÜnnepnapok[KORRIGÁLT],tblÜnnepnapok[NAP]),0),6),INDEX(tblÜnnepnapok[],MATCH(DATE(NaptÉv,MONTH(G7),DAY(G7)),IF(TartottÜnnepek,tblÜnnepnapok[KORRIGÁLT],tblÜnnepnapok[NAP]),0),2),\"\"),\"\"),\"\")","v":""},{"$f":"IFERROR(IF(Ünnepnapok,IF(INDEX(tblÜnnepnapok[],MATCH(DATE(NaptÉv,MONTH(H7),DAY(H7)),IF(TartottÜnnepek,tblÜnnepnapok[KORRIGÁLT],tblÜnnepnapok[NAP]),0),6),INDEX(tblÜnnepnapok[],MATCH(DATE(NaptÉv,MONTH(H7),DAY(H7)),IF(TartottÜnnepek,tblÜnnepnapok[KORRIGÁLT],tblÜnnepnapok[NAP]),0),2),\"\"),\"\"),\"\")","v":""}]
[null,{"$f":"Napok+DATE(NaptÉv,11,1)-WEEKDAY(DATE(NaptÉv,11,1),(HétKezdete=\"HÉTFŐ\")+1)+15","v":"2018-11-11"},"2018-11-12","2018-11-13","2018-11-14","2018-11-15","2018-11-16","2018-11-17"]
[null,{"$f":"IFERROR(IF(Ünnepnapok,IF(INDEX(tblÜnnepnapok[],MATCH(DATE(NaptÉv,MONTH(B9),DAY(B9)),IF(TartottÜnnepek,tblÜnnepnapok[KORRIGÁLT],tblÜnnepnapok[NAP]),0),6),INDEX(tblÜnnepnapok[],MATCH(DATE(NaptÉv,MONTH(B9),DAY(B9)),IF(TartottÜnnepek,tblÜnnepnapok[KORRIGÁLT],tblÜnnepnapok[NAP]),0),2),\"\"),\"\"),\"\")","v":""},{"$f":"IFERROR(IF(Ünnepnapok,IF(INDEX(tblÜnnepnapok[],MATCH(DATE(NaptÉv,MONTH(C9),DAY(C9)),IF(TartottÜnnepek,tblÜnnepnapok[KORRIGÁLT],tblÜnnepnapok[NAP]),0),6),INDEX(tblÜnnepnapok[],MATCH(DATE(NaptÉv,MONTH(C9),DAY(C9)),IF(TartottÜnnepek,tblÜnnepnapok[KORRIGÁLT],tblÜnnepnapok[NAP]),0),2),\"\"),\"\"),\"\")","v":"A Köztársaság Napja"},{"$f":"IFERROR(IF(Ünnepnapok,IF(INDEX(tblÜnnepnapok[],MATCH(DATE(NaptÉv,MONTH(D9),DAY(D9)),IF(TartottÜnnepek,tblÜnnepnapok[KORRIGÁLT],tblÜnnepnapok[NAP]),0),6),INDEX(tblÜnnepnapok[],MATCH(DATE(NaptÉv,MONTH(D9),DAY(D9)),IF(TartottÜnnepek,tblÜnnepnapok[KORRIGÁLT],tblÜnnepnapok[NAP]),0),2),\"\"),\"\"),\"\")","v":""},{"$f":"IFERROR(IF(Ünnepnapok,IF(INDEX(tblÜnnepnapok[],MATCH(DATE(NaptÉv,MONTH(E9),DAY(E9)),IF(TartottÜnnepek,tblÜnnepnapok[KORRIGÁLT],tblÜnnepnapok[NAP]),0),6),INDEX(tblÜnnepnapok[],MATCH(DATE(NaptÉv,MONTH(E9),DAY(E9)),IF(TartottÜnnepek,tblÜnnepnapok[KORRIGÁLT],tblÜnnepnapok[NAP]),0),2),\"\"),\"\"),\"\")","v":""},{"$f":"IFERROR(IF(Ünnepnapok,IF(INDEX(tblÜnnepnapok[],MATCH(DATE(NaptÉv,MONTH(F9),DAY(F9)),IF(TartottÜnnepek,tblÜnnepnapok[KORRIGÁLT],tblÜnnepnapok[NAP]),0),6),INDEX(tblÜnnepnapok[],MATCH(DATE(NaptÉv,MONTH(F9),DAY(F9)),IF(TartottÜnnepek,tblÜnnepnapok[KORRIGÁLT],tblÜnnepnapok[NAP]),0),2),\"\"),\"\"),\"\")","v":""},{"$f":"IFERROR(IF(Ünnepnapok,IF(INDEX(tblÜnnepnapok[],MATCH(DATE(NaptÉv,MONTH(G9),DAY(G9)),IF(TartottÜnnepek,tblÜnnepnapok[KORRIGÁLT],tblÜnnepnapok[NAP]),0),6),INDEX(tblÜnnepnapok[],MATCH(DATE(NaptÉv,MONTH(G9),DAY(G9)),IF(TartottÜnnepek,tblÜnnepnapok[KORRIGÁLT],tblÜnnepnapok[NAP]),0),2),\"\"),\"\"),\"\")","v":""},{"$f":"IFERROR(IF(Ünnepnapok,IF(INDEX(tblÜnnepnapok[],MATCH(DATE(NaptÉv,MONTH(H9),DAY(H9)),IF(TartottÜnnepek,tblÜnnepnapok[KORRIGÁLT],tblÜnnepnapok[NAP]),0),6),INDEX(tblÜnnepnapok[],MATCH(DATE(NaptÉv,MONTH(H9),DAY(H9)),IF(TartottÜnnepek,tblÜnnepnapok[KORRIGÁLT],tblÜnnepnapok[NAP]),0),2),\"\"),\"\"),\"\")","v":""}]
[null,{"$f":"Napok+DATE(NaptÉv,11,1)-WEEKDAY(DATE(NaptÉv,11,1),(HétKezdete=\"HÉTFŐ\")+1)+22","v":"2018-11-18"},"2018-11-19","2018-11-20","2018-11-21","2018-11-22","2018-11-23","2018-11-24"]
[null,{"$f":"IFERROR(IF(Ünnepnapok,IF(INDEX(tblÜnnepnapok[],MATCH(DATE(NaptÉv,MONTH(B11),DAY(B11)),IF(TartottÜnnepek,tblÜnnepnapok[KORRIGÁLT],tblÜnnepnapok[NAP]),0),6),INDEX(tblÜnnepnapok[],MATCH(DATE(NaptÉv,MONTH(B11),DAY(B11)),IF(TartottÜnnepek,tblÜnnepnapok[KORRIGÁLT],tblÜnnepnapok[NAP]),0),2),\"\"),\"\"),\"\")","v":""},{"$f":"IFERROR(IF(Ünnepnapok,IF(INDEX(tblÜnnepnapok[],MATCH(DATE(NaptÉv,MONTH(C11),DAY(C11)),IF(TartottÜnnepek,tblÜnnepnapok[KORRIGÁLT],tblÜnnepnapok[NAP]),0),6),INDEX(tblÜnnepnapok[],MATCH(DATE(NaptÉv,MONTH(C11),DAY(C11)),IF(TartottÜnnepek,tblÜnnepnapok[KORRIGÁLT],tblÜnnepnapok[NAP]),0),2),\"\"),\"\"),\"\")","v":""},{"$f":"IFERROR(IF(Ünnepnapok,IF(INDEX(tblÜnnepnapok[],MATCH(DATE(NaptÉv,MONTH(D11),DAY(D11)),IF(TartottÜnnepek,tblÜnnepnapok[KORRIGÁLT],tblÜnnepnapok[NAP]),0),6),INDEX(tblÜnnepnapok[],MATCH(DATE(NaptÉv,MONTH(D11),DAY(D11)),IF(TartottÜnnepek,tblÜnnepnapok[KORRIGÁLT],tblÜnnepnapok[NAP]),0),2),\"\"),\"\"),\"\")","v":""},{"$f":"IFERROR(IF(Ünnepnapok,IF(INDEX(tblÜnnepnapok[],MATCH(DATE(NaptÉv,MONTH(E11),DAY(E11)),IF(TartottÜnnepek,tblÜnnepnapok[KORRIGÁLT],tblÜnnepnapok[NAP]),0),6),INDEX(tblÜnnepnapok[],MATCH(DATE(NaptÉv,MONTH(E11),DAY(E11)),IF(TartottÜnnepek,tblÜnnepnapok[KORRIGÁLT],tblÜnnepnapok[NAP]),0),2),\"\"),\"\"),\"\")","v":""},{"$f":"IFERROR(IF(Ünnepnapok,IF(INDEX(tblÜnnepnapok[],MATCH(DATE(NaptÉv,MONTH(F11),DAY(F11)),IF(TartottÜnnepek,tblÜnnepnapok[KORRIGÁLT],tblÜnnepnapok[NAP]),0),6),INDEX(tblÜnnepnapok[],MATCH(DATE(NaptÉv,MONTH(F11),DAY(F11)),IF(TartottÜnnepek,tblÜnnepnapok[KORRIGÁLT],tblÜnnepnapok[NAP]),0),2),\"\"),\"\"),\"\")","v":"Mindenszentek"},{"$f":"IFERROR(IF(Ünnepnapok,IF(INDEX(tblÜnnepnapok[],MATCH(DATE(NaptÉv,MONTH(G11),DAY(G11)),IF(TartottÜnnepek,tblÜnnepnapok[KORRIGÁLT],tblÜnnepnapok[NAP]),0),6),INDEX(tblÜnnepnapok[],MATCH(DATE(NaptÉv,MONTH(G11),DAY(G11)),IF(TartottÜnnepek,tblÜnnepnapok[KORRIGÁLT],tblÜnnepnapok[NAP]),0),2),\"\"),\"\"),\"\")","v":""},{"$f":"IFERROR(IF(Ünnepnapok,IF(INDEX(tblÜnnepnapok[],MATCH(DATE(NaptÉv,MONTH(H11),DAY(H11)),IF(TartottÜnnepek,tblÜnnepnapok[KORRIGÁLT],tblÜnnepnapok[NAP]),0),6),INDEX(tblÜnnepnapok[],MATCH(DATE(NaptÉv,MONTH(H11),DAY(H11)),IF(TartottÜnnepek,tblÜnnepnapok[KORRIGÁLT],tblÜnnepnapok[NAP]),0),2),\"\"),\"\"),\"\")","v":""}]
[null,{"$f":"Napok+DATE(NaptÉv,11,1)-WEEKDAY(DATE(NaptÉv,11,1),(HétKezdete=\"HÉTFŐ\")+1)+29","v":"2018-11-25"},"2018-11-26","2018-11-27","2018-11-28","2018-11-29","2018-11-30","2018-12-01"]
[null,{"$f":"IFERROR(IF(Ünnepnapok,IF(INDEX(tblÜnnepnapok[],MATCH(DATE(NaptÉv,MONTH(B13),DAY(B13)),IF(TartottÜnnepek,tblÜnnepnapok[KORRIGÁLT],tblÜnnepnapok[NAP]),0),6),INDEX(tblÜnnepnapok[],MATCH(DATE(NaptÉv,MONTH(B13),DAY(B13)),IF(TartottÜnnepek,tblÜnnepnapok[KORRIGÁLT],tblÜnnepnapok[NAP]),0),2),\"\"),\"\"),\"\")","v":""},{"$f":"IFERROR(IF(Ünnepnapok,IF(INDEX(tblÜnnepnapok[],MATCH(DATE(NaptÉv,MONTH(C13),DAY(C13)),IF(TartottÜnnepek,tblÜnnepnapok[KORRIGÁLT],tblÜnnepnapok[NAP]),0),6),INDEX(tblÜnnepnapok[],MATCH(DATE(NaptÉv,MONTH(C13),DAY(C13)),IF(TartottÜnnepek,tblÜnnepnapok[KORRIGÁLT],tblÜnnepnapok[NAP]),0),2),\"\"),\"\"),\"\")","v":""},{"$f":"IFERROR(IF(Ünnepnapok,IF(INDEX(tblÜnnepnapok[],MATCH(DATE(NaptÉv,MONTH(D13),DAY(D13)),IF(TartottÜnnepek,tblÜnnepnapok[KORRIGÁLT],tblÜnnepnapok[NAP]),0),6),INDEX(tblÜnnepnapok[],MATCH(DATE(NaptÉv,MONTH(D13),DAY(D13)),IF(TartottÜnnepek,tblÜnnepnapok[KORRIGÁLT],tblÜnnepnapok[NAP]),0),2),\"\"),\"\"),\"\")","v":""},{"$f":"IFERROR(IF(Ünnepnapok,IF(INDEX(tblÜnnepnapok[],MATCH(DATE(NaptÉv,MONTH(E13),DAY(E13)),IF(TartottÜnnepek,tblÜnnepnapok[KORRIGÁLT],tblÜnnepnapok[NAP]),0),6),INDEX(tblÜnnepnapok[],MATCH(DATE(NaptÉv,MONTH(E13),DAY(E13)),IF(TartottÜnnepek,tblÜnnepnapok[KORRIGÁLT],tblÜnnepnapok[NAP]),0),2),\"\"),\"\"),\"\")","v":""},{"$f":"IFERROR(IF(Ünnepnapok,IF(INDEX(tblÜnnepnapok[],MATCH(DATE(NaptÉv,MONTH(F13),DAY(F13)),IF(TartottÜnnepek,tblÜnnepnapok[KORRIGÁLT],tblÜnnepnapok[NAP]),0),6),INDEX(tblÜnnepnapok[],MATCH(DATE(NaptÉv,MONTH(F13),DAY(F13)),IF(TartottÜnnepek,tblÜnnepnapok[KORRIGÁLT],tblÜnnepnapok[NAP]),0),2),\"\"),\"\"),\"\")","v":""},{"$f":"IFERROR(IF(Ünnepnapok,IF(INDEX(tblÜnnepnapok[],MATCH(DATE(NaptÉv,MONTH(G13),DAY(G13)),IF(TartottÜnnepek,tblÜnnepnapok[KORRIGÁLT],tblÜnnepnapok[NAP]),0),6),INDEX(tblÜnnepnapok[],MATCH(DATE(NaptÉv,MONTH(G13),DAY(G13)),IF(TartottÜnnepek,tblÜnnepnapok[KORRIGÁLT],tblÜnnepnapok[NAP]),0),2),\"\"),\"\"),\"\")","v":""},{"$f":"IFERROR(IF(Ünnepnapok,IF(INDEX(tblÜnnepnapok[],MATCH(DATE(NaptÉv,MONTH(H13),DAY(H13)),IF(TartottÜnnepek,tblÜnnepnapok[KORRIGÁLT],tblÜnnepnapok[NAP]),0),6),INDEX(tblÜnnepnapok[],MATCH(DATE(NaptÉv,MONTH(H13),DAY(H13)),IF(TartottÜnnepek,tblÜnnepnapok[KORRIGÁLT],tblÜnnepnapok[NAP]),0),2),\"\"),\"\"),\"\")","v":""}]
[null,{"$f":"Napok+DATE(NaptÉv,11,1)-WEEKDAY(DATE(NaptÉv,11,1),(HétKezdete=\"HÉTFŐ\")+1)+36","v":"2018-12-02"},"2018-12-03","MEGJEGYZÉSEK"]
[null,{"$f":"IFERROR(IF(Ünnepnapok,IF(INDEX(tblÜnnepnapok[],MATCH(DATE(NaptÉv,MONTH(B15),DAY(B15)),IF(TartottÜnnepek,tblÜnnepnapok[KORRIGÁLT],tblÜnnepnapok[NAP]),0),6),INDEX(tblÜnnepnapok[],MATCH(DATE(NaptÉv,MONTH(B15),DAY(B15)),IF(TartottÜnnepek,tblÜnnepnapok[KORRIGÁLT],tblÜnnepnapok[NAP]),0),2),\"\"),\"\"),\"\")","v":""},{"$f":"IFERROR(IF(Ünnepnapok,IF(INDEX(tblÜnnepnapok[],MATCH(DATE(NaptÉv,MONTH(C15),DAY(C15)),IF(TartottÜnnepek,tblÜnnepnapok[KORRIGÁLT],tblÜnnepnapok[NAP]),0),6),INDEX(tblÜnnepnapok[],MATCH(DATE(NaptÉv,MONTH(C15),DAY(C15)),IF(TartottÜnnepek,tblÜnnepnapok[KORRIGÁLT],tblÜnnepnapok[NAP]),0),2),\"\"),\"\"),\"\")","v":""}]

{"sheet":"December","index":12,"n_rows":16,"n_cols":8,"rows_kept":16,"merged":[[1,1,1,3],[14,3,14,7],[15,3,15,7],[16,1,16,7]]}
[]
[null,{"$f":"B9","v":"2018-12-09"}]
[]
[null,{"$f":"HétKezdete","v":"VASÁRNAP"},{"$f":"UPPER(TEXT(C5,\"nnnn\"))","v":"HÉTFŐ"},"KEDD","SZERDA","CSÜTÖRTÖK","PÉNTEK","SZOMBAT"]
[null,{"$f":"Napok+DATE(NaptÉv,12,1)-WEEKDAY(DATE(NaptÉv,12,1),(HétKezdete=\"HÉTFŐ\")+1)+1","v":"2018-11-25"},"2018-11-26","2018-11-27","2018-11-28","2018-11-29","2018-11-30","2018-12-01"]
[null,{"$f":"IFERROR(IF(Ünnepnapok,IF(INDEX(tblÜnnepnapok[],MATCH(DATE(NaptÉv-(DAY(B5)>15)+(ROW()>6),MONTH(B5),DAY(B5)),IF(TartottÜnnepek,tblÜnnepnapok[KORRIGÁLT],tblÜnnepnapok[NAP]),0),6),INDEX(tblÜnnepnapok[],MATCH(DATE(NaptÉv-(DAY(B5)>15)+(ROW()>6),MONTH(B5),DAY(B5)),IF(TartottÜnnepek,tblÜnnepnapok[KORRIGÁLT],tblÜnnepnapok[NAP]),0),2),\"\"),\"\"),\"\")","v":""},{"$f":"IFERROR(IF(Ünnepnapok,IF(INDEX(tblÜnnepnapok[],MATCH(DATE(NaptÉv-(DAY(C5)>15)+(ROW()>6),MONTH(C5),DAY(C5)),IF(TartottÜnnepek,tblÜnnepnapok[KORRIGÁLT],tblÜnnepnapok[NAP]),0),6),INDEX(tblÜnnepnapok[],MATCH(DATE(NaptÉv-(DAY(C5)>15)+(ROW()>6),MONTH(C5),DAY(C5)),IF(TartottÜnnepek,tblÜnnepnapok[KORRIGÁLT],tblÜnnepnapok[NAP]),0),2),\"\"),\"\"),\"\")","v":""},{"$f":"IFERROR(IF(Ünnepnapok,IF(INDEX(tblÜnnepnapok[],MATCH(DATE(NaptÉv-(DAY(D5)>15)+(ROW()>6),MONTH(D5),DAY(D5)),IF(TartottÜnnepek,tblÜnnepnapok[KORRIGÁLT],tblÜnnepnapok[NAP]),0),6),INDEX(tblÜnnepnapok[],MATCH(DATE(NaptÉv-(DAY(D5)>15)+(ROW()>6),MONTH(D5),DAY(D5)),IF(TartottÜnnepek,tblÜnnepnapok[KORRIGÁLT],tblÜnnepnapok[NAP]),0),2),\"\"),\"\"),\"\")","v":""},{"$f":"IFERROR(IF(Ünnepnapok,IF(INDEX(tblÜnnepnapok[],MATCH(DATE(NaptÉv-(DAY(E5)>15)+(ROW()>6),MONTH(E5),DAY(E5)),IF(TartottÜnnepek,tblÜnnepnapok[KORRIGÁLT],tblÜnnepnapok[NAP]),0),6),INDEX(tblÜnnepnapok[],MATCH(DATE(NaptÉv-(DAY(E5)>15)+(ROW()>6),MONTH(E5),DAY(E5)),IF(TartottÜnnepek,tblÜnnepnapok[KORRIGÁLT],tblÜnnepnapok[NAP]),0),2),\"\"),\"\"),\"\")","v":""},{"$f":"IFERROR(IF(Ünnepnapok,IF(INDEX(tblÜnnepnapok[],MATCH(DATE(NaptÉv-(DAY(F5)>15)+(ROW()>6),MONTH(F5),DAY(F5)),IF(TartottÜnnepek,tblÜnnepnapok[KORRIGÁLT],tblÜnnepnapok[NAP]),0),6),INDEX(tblÜnnepnapok[],MATCH(DATE(NaptÉv-(DAY(F5)>15)+(ROW()>6),MONTH(F5),DAY(F5)),IF(TartottÜnnepek,tblÜnnepnapok[KORRIGÁLT],tblÜnnepnapok[NAP]),0),2),\"\"),\"\"),\"\")","v":""},{"$f":"IFERROR(IF(Ünnepnapok,IF(INDEX(tblÜnnepnapok[],MATCH(DATE(NaptÉv-(DAY(G5)>15)+(ROW()>6),MONTH(G5),DAY(G5)),IF(TartottÜnnepek,tblÜnnepnapok[KORRIGÁLT],tblÜnnepnapok[NAP]),0),6),INDEX(tblÜnnepnapok[],MATCH(DATE(NaptÉv-(DAY(G5)>15)+(ROW()>6),MONTH(G5),DAY(G5)),IF(TartottÜnnepek,tblÜnnepnapok[KORRIGÁLT],tblÜnnepnapok[NAP]),0),2),\"\"),\"\"),\"\")","v":""},{"$f":"IFERROR(IF(Ünnepnapok,IF(INDEX(tblÜnnepnapok[],MATCH(DATE(NaptÉv-(DAY(H5)>15)+(ROW()>6),MONTH(H5),DAY(H5)),IF(TartottÜnnepek,tblÜnnepnapok[KORRIGÁLT],tblÜnnepnapok[NAP]),0),6),INDEX(tblÜnnepnapok[],MATCH(DATE(NaptÉv-(DAY(H5)>15)+(ROW()>6),MONTH(H5),DAY(H5)),IF(TartottÜnnepek,tblÜnnepnapok[KORRIGÁLT],tblÜnnepnapok[NAP]),0),2),\"\"),\"\"),\"\")","v":""}]
[null,{"$f":"Napok+DATE(NaptÉv,12,1)-WEEKDAY(DATE(NaptÉv,12,1),(HétKezdete=\"HÉTFŐ\")+1)+8","v":"2018-12-02"},"2018-12-03","2018-12-04","2018-12-05","2018-12-06","2018-12-07","2018-12-08"]
[null,{"$f":"IFERROR(IF(Ünnepnapok,IF(INDEX(tblÜnnepnapok[],MATCH(DATE(NaptÉv,MONTH(B7),DAY(B7)),IF(TartottÜnnepek,tblÜnnepnapok[KORRIGÁLT],tblÜnnepnapok[NAP]),0),6),INDEX(tblÜnnepnapok[],MATCH(DATE(NaptÉv,MONTH(B7),DAY(B7)),IF(TartottÜnnepek,tblÜnnepnapok[KORRIGÁLT],tblÜnnepnapok[NAP]),0),2),\"\"),\"\"),\"\")","v":""},{"$f":"IFERROR(IF(Ünnepnapok,IF(INDEX(tblÜnnepnapok[],MATCH(DATE(NaptÉv,MONTH(C7),DAY(C7)),IF(TartottÜnnepek,tblÜnnepnapok[KORRIGÁLT],tblÜnnepnapok[NAP]),0),6),INDEX(tblÜnnepnapok[],MATCH(DATE(NaptÉv,MONTH(C7),DAY(C7)),IF(TartottÜnnepek,tblÜnnepnapok[KORRIGÁLT],tblÜnnepnapok[NAP]),0),2),\"\"),\"\"),\"\")","v":""},{"$f":"IFERROR(IF(Ünnepnapok,IF(INDEX(tblÜnnepnapok[],MATCH(DATE(NaptÉv,MONTH(D7),DAY(D7)),IF(TartottÜnnepek,tblÜnnepnapok[KORRIGÁLT],tblÜnnepnapok[NAP]),0),6),INDEX(tblÜnnepnapok[],MATCH(DATE(NaptÉv,MONTH(D7),DAY(D7)),IF(TartottÜnnepek,tblÜnnepnapok[KORRIGÁLT],tblÜnnepnapok[NAP]),0),2),\"\"),\"\"),\"\")","v":""},{"$f":"IFERROR(IF(Ünnepnapok,IF(INDEX(tblÜnnepnapok[],MATCH(DATE(NaptÉv,MONTH(E7),DAY(E7)),IF(TartottÜnnepek,tblÜnnepnapok[KORRIGÁLT],tblÜnnepnapok[NAP]),0),6),INDEX(tblÜnnepnapok[],MATCH(DATE(NaptÉv,MONTH(E7),DAY(E7)),IF(TartottÜnnepek,tblÜnnepnapok[KORRIGÁLT],tblÜnnepnapok[NAP]),0),2),\"\"),\"\"),\"\")","v":""},{"$f":"IFERROR(IF(Ünnepnapok,IF(INDEX(tblÜnnepnapok[],MATCH(DATE(NaptÉv,MONTH(F7),DAY(F7)),IF(TartottÜnnepek,tblÜnnepnapok[KORRIGÁLT],tblÜnnepnapok[NAP]),0),6),INDEX(tblÜnnepnapok[],MATCH(DATE(NaptÉv,MONTH(F7),DAY(F7)),IF(TartottÜnnepek,tblÜnnepnapok[KORRIGÁLT],tblÜnnepnapok[NAP]),0),2),\"\"),\"\"),\"\")","v":""},{"$f":"IFERROR(IF(Ünnepnapok,IF(INDEX(tblÜnnepnapok[],MATCH(DATE(NaptÉv,MONTH(G7),DAY(G7)),IF(TartottÜnnepek,tblÜnnepnapok[KORRIGÁLT],tblÜnnepnapok[NAP]),0),6),INDEX(tblÜnnepnapok[],MATCH(DATE(NaptÉv,MONTH(G7),DAY(G7)),IF(TartottÜnnepek,tblÜnnepnapok[KORRIGÁLT],tblÜnnepnapok[NAP]),0),2),\"\"),\"\"),\"\")","v":""},{"$f":"IFERROR(IF(Ünnepnapok,IF(INDEX(tblÜnnepnapok[],MATCH(DATE(NaptÉv,MONTH(H7),DAY(H7)),IF(TartottÜnnepek,tblÜnnepnapok[KORRIGÁLT],tblÜnnepnapok[NAP]),0),6),INDEX(tblÜnnepnapok[],MATCH(DATE(NaptÉv,MONTH(H7),DAY(H7)),IF(TartottÜnnepek,tblÜnnepnapok[KORRIGÁLT],tblÜnnepnapok[NAP]),0),2),\"\"),\"\"),\"\")","v":""}]
[null,{"$f":"Napok+DATE(NaptÉv,12,1)-WEEKDAY(DATE(NaptÉv,12,1),(HétKezdete=\"HÉTFŐ\")+1)+15","v":"2018-12-09"},"2018-12-10","2018-12-11","2018-12-12","2018-12-13","2018-12-14","2018-12-15"]
[null,{"$f":"IFERROR(IF(Ünnepnapok,IF(INDEX(tblÜnnepnapok[],MATCH(DATE(NaptÉv,MONTH(B9),DAY(B9)),IF(TartottÜnnepek,tblÜnnepnapok[KORRIGÁLT],tblÜnnepnapok[NAP]),0),6),INDEX(tblÜnnepnapok[],MATCH(DATE(NaptÉv,MONTH(B9),DAY(B9)),IF(TartottÜnnepek,tblÜnnepnapok[KORRIGÁLT],tblÜnnepnapok[NAP]),0),2),\"\"),\"\"),\"\")","v":""},{"$f":"IFERROR(IF(Ünnepnapok,IF(INDEX(tblÜnnepnapok[],MATCH(DATE(NaptÉv,MONTH(C9),DAY(C9)),IF(TartottÜnnepek,tblÜnnepnapok[KORRIGÁLT],tblÜnnepnapok[NAP]),0),6),INDEX(tblÜnnepnapok[],MATCH(DATE(NaptÉv,MONTH(C9),DAY(C9)),IF(TartottÜnnepek,tblÜnnepnapok[KORRIGÁLT],tblÜnnepnapok[NAP]),0),2),\"\"),\"\"),\"\")","v":""},{"$f":"IFERROR(IF(Ünnepnapok,IF(INDEX(tblÜnnepnapok[],MATCH(DATE(NaptÉv,MONTH(D9),DAY(D9)),IF(TartottÜnnepek,tblÜnnepnapok[KORRIGÁLT],tblÜnnepnapok[NAP]),0),6),INDEX(tblÜnnepnapok[],MATCH(DATE(NaptÉv,MONTH(D9),DAY(D9)),IF(TartottÜnnepek,tblÜnnepnapok[KORRIGÁLT],tblÜnnepnapok[NAP]),0),2),\"\"),\"\"),\"\")","v":""},{"$f":"IFERROR(IF(Ünnepnapok,IF(INDEX(tblÜnnepnapok[],MATCH(DATE(NaptÉv,MONTH(E9),DAY(E9)),IF(TartottÜnnepek,tblÜnnepnapok[KORRIGÁLT],tblÜnnepnapok[NAP]),0),6),INDEX(tblÜnnepnapok[],MATCH(DATE(NaptÉv,MONTH(E9),DAY(E9)),IF(TartottÜnnepek,tblÜnnepnapok[KORRIGÁLT],tblÜnnepnapok[NAP]),0),2),\"\"),\"\"),\"\")","v":""},{"$f":"IFERROR(IF(Ünnepnapok,IF(INDEX(tblÜnnepnapok[],MATCH(DATE(NaptÉv,MONTH(F9),DAY(F9)),IF(TartottÜnnepek,tblÜnnepnapok[KORRIGÁLT],tblÜnnepnapok[NAP]),0),6),INDEX(tblÜnnepnapok[],MATCH(DATE(NaptÉv,MONTH(F9),DAY(F9)),IF(TartottÜnnepek,tblÜnnepnapok[KORRIGÁLT],tblÜnnepnapok[NAP]),0),2),\"\"),\"\"),\"\")","v":""},{"$f":"IFERROR(IF(Ünnepnapok,IF(INDEX(tblÜnnepnapok[],MATCH(DATE(NaptÉv,MONTH(G9),DAY(G9)),IF(TartottÜnnepek,tblÜnnepnapok[KORRIGÁLT],tblÜnnepnapok[NAP]),0),6),INDEX(tblÜnnepnapok[],MATCH(DATE(NaptÉv,MONTH(G9),DAY(G9)),IF(TartottÜnnepek,tblÜnnepnapok[KORRIGÁLT],tblÜnnepnapok[NAP]),0),2),\"\"),\"\"),\"\")","v":""},{"$f":"IFERROR(IF(Ünnepnapok,IF(INDEX(tblÜnnepnapok[],MATCH(DATE(NaptÉv,MONTH(H9),DAY(H9)),IF(TartottÜnnepek,tblÜnnepnapok[KORRIGÁLT],tblÜnnepnapok[NAP]),0),6),INDEX(tblÜnnepnapok[],MATCH(DATE(NaptÉv,MONTH(H9),DAY(H9)),IF(TartottÜnnepek,tblÜnnepnapok[KORRIGÁLT],tblÜnnepnapok[NAP]),0),2),\"\"),\"\"),\"\")","v":""}]
[null,{"$f":"Napok+DATE(NaptÉv,12,1)-WEEKDAY(DATE(NaptÉv,12,1),(HétKezdete=\"HÉTFŐ\")+1)+22","v":"2018-12-16"},"2018-12-17","2018-12-18","2018-12-19","2018-12-20","2018-12-21","2018-12-22"]
[null,{"$f":"IFERROR(IF(Ünnepnapok,IF(INDEX(tblÜnnepnapok[],MATCH(DATE(NaptÉv,MONTH(B11),DAY(B11)),IF(TartottÜnnepek,tblÜnnepnapok[KORRIGÁLT],tblÜnnepnapok[NAP]),0),6),INDEX(tblÜnnepnapok[],MATCH(DATE(NaptÉv,MONTH(B11),DAY(B11)),IF(TartottÜnnepek,tblÜnnepnapok[KORRIGÁLT],tblÜnnepnapok[NAP]),0),2),\"\"),\"\"),\"\")","v":""},{"$f":"IFERROR(IF(Ünnepnapok,IF(INDEX(tblÜnnepnapok[],MATCH(DATE(NaptÉv,MONTH(C11),DAY(C11)),IF(TartottÜnnepek,tblÜnnepnapok[KORRIGÁLT],tblÜnnepnapok[NAP]),0),6),INDEX(tblÜnnepnapok[],MATCH(DATE(NaptÉv,MONTH(C11),DAY(C11)),IF(TartottÜnnepek,tblÜnnepnapok[KORRIGÁLT],tblÜnnepnapok[NAP]),0),2),\"\"),\"\"),\"\")","v":""},{"$f":"IFERROR(IF(Ünnepnapok,IF(INDEX(tblÜnnepnapok[],MATCH(DATE(NaptÉv,MONTH(D11),DAY(D11)),IF(TartottÜnnepek,tblÜnnepnapok[KORRIGÁLT],tblÜnnepnapok[NAP]),0),6),INDEX(tblÜnnepnapok[],MATCH(DATE(NaptÉv,MONTH(D11),DAY(D11)),IF(TartottÜnnepek,tblÜnnepnapok[KORRIGÁLT],tblÜnnepnapok[NAP]),0),2),\"\"),\"\"),\"\")","v":""},{"$f":"IFERROR(IF(Ünnepnapok,IF(INDEX(tblÜnnepnapok[],MATCH(DATE(NaptÉv,MONTH(E11),DAY(E11)),IF(TartottÜnnepek,tblÜnnepnapok[KORRIGÁLT],tblÜnnepnapok[NAP]),0),6),INDEX(tblÜnnepnapok[],MATCH(DATE(NaptÉv,MONTH(E11),DAY(E11)),IF(TartottÜnnepek,tblÜnnepnapok[KORRIGÁLT],tblÜnnepnapok[NAP]),0),2),\"\"),\"\"),\"\")","v":""},{"$f":"IFERROR(IF(Ünnepnapok,IF(INDEX(tblÜnnepnapok[],MATCH(DATE(NaptÉv,MONTH(F11),DAY(F11)),IF(TartottÜnnepek,tblÜnnepnapok[KORRIGÁLT],tblÜnnepnapok[NAP]),0),6),INDEX(tblÜnnepnapok[],MATCH(DATE(NaptÉv,MONTH(F11),DAY(F11)),IF(TartottÜnnepek,tblÜnnepnapok[KORRIGÁLT],tblÜnnepnapok[NAP]),0),2),\"\"),\"\"),\"\")","v":""},{"$f":"IFERROR(IF(Ünnepnapok,IF(INDEX(tblÜnnepnapok[],MATCH(DATE(NaptÉv,MONTH(G11),DAY(G11)),IF(TartottÜnnepek,tblÜnnepnapok[KORRIGÁLT],tblÜnnepnapok[NAP]),0),6),INDEX(tblÜnnepnapok[],MATCH(DATE(NaptÉv,MONTH(G11),DAY(G11)),IF(TartottÜnnepek,tblÜnnepnapok[KORRIGÁLT],tblÜnnepnapok[NAP]),0),2),\"\"),\"\"),\"\")","v":""},{"$f":"IFERROR(IF(Ünnepnapok,IF(INDEX(tblÜnnepnapok[],MATCH(DATE(NaptÉv,MONTH(H11),DAY(H11)),IF(TartottÜnnepek,tblÜnnepnapok[KORRIGÁLT],tblÜnnepnapok[NAP]),0),6),INDEX(tblÜnnepnapok[],MATCH(DATE(NaptÉv,MONTH(H11),DAY(H11)),IF(TartottÜnnepek,tblÜnnepnapok[KORRIGÁLT],tblÜnnepnapok[NAP]),0),2),\"\"),\"\"),\"\")","v":""}]
[null,{"$f":"Napok+DATE(NaptÉv,12,1)-WEEKDAY(DATE(NaptÉv,12,1),(HétKezdete=\"HÉTFŐ\")+1)+29","v":"2018-12-23"},"2018-12-24","2018-12-25","2018-12-26","2018-12-27","2018-12-28","2018-12-29"]
[null,{"$f":"IFERROR(IF(Ünnepnapok,IF(INDEX(tblÜnnepnapok[],MATCH(DATE(NaptÉv,MONTH(B13),DAY(B13)),IF(TartottÜnnepek,tblÜnnepnapok[KORRIGÁLT],tblÜnnepnapok[NAP]),0),6),INDEX(tblÜnnepnapok[],MATCH(DATE(NaptÉv,MONTH(B13),DAY(B13)),IF(TartottÜnnepek,tblÜnnepnapok[KORRIGÁLT],tblÜnnepnapok[NAP]),0),2),\"\"),\"\"),\"\")","v":""},{"$f":"IFERROR(IF(Ünnepnapok,IF(INDEX(tblÜnnepnapok[],MATCH(DATE(NaptÉv,MONTH(C13),DAY(C13)),IF(TartottÜnnepek,tblÜnnepnapok[KORRIGÁLT],tblÜnnepnapok[NAP]),0),6),INDEX(tblÜnnepnapok[],MATCH(DATE(NaptÉv,MONTH(C13),DAY(C13)),IF(TartottÜnnepek,tblÜnnepnapok[KORRIGÁLT],tblÜnnepnapok[NAP]),0),2),\"\"),\"\"),\"\")","v":""},{"$f":"IFERROR(IF(Ünnepnapok,IF(INDEX(tblÜnnepnapok[],MATCH(DATE(NaptÉv,MONTH(D13),DAY(D13)),IF(TartottÜnnepek,tblÜnnepnapok[KORRIGÁLT],tblÜnnepnapok[NAP]),0),6),INDEX(tblÜnnepnapok[],MATCH(DATE(NaptÉv,MONTH(D13),DAY(D13)),IF(TartottÜnnepek,tblÜnnepnapok[KORRIGÁLT],tblÜnnepnapok[NAP]),0),2),\"\"),\"\"),\"\")","v":"Karácsony napja"},{"$f":"IFERROR(IF(Ünnepnapok,IF(INDEX(tblÜnnepnapok[],MATCH(DATE(NaptÉv,MONTH(E13),DAY(E13)),IF(TartottÜnnepek,tblÜnnepnapok[KORRIGÁLT],tblÜnnepnapok[NAP]),0),6),INDEX(tblÜnnepnapok[],MATCH(DATE(NaptÉv,MONTH(E13),DAY(E13)),IF(TartottÜnnepek,tblÜnnepnapok[KORRIGÁLT],tblÜnnepnapok[NAP]),0),2),\"\"),\"\"),\"\")","v":""},{"$f":"IFERROR(IF(Ünnepnapok,IF(INDEX(tblÜnnepnapok[],MATCH(DATE(NaptÉv,MONTH(F13),DAY(F13)),IF(TartottÜnnepek,tblÜnnepnapok[KORRIGÁLT],tblÜnnepnapok[NAP]),0),6),INDEX(tblÜnnepnapok[],MATCH(DATE(NaptÉv,MONTH(F13),DAY(F13)),IF(TartottÜnnepek,tblÜnnepnapok[KORRIGÁLT],tblÜnnepnapok[NAP]),0),2),\"\"),\"\"),\"\")","v":""},{"$f":"IFERROR(IF(Ünnepnapok,IF(INDEX(tblÜnnepnapok[],MATCH(DATE(NaptÉv,MONTH(G13),DAY(G13)),IF(TartottÜnnepek,tblÜnnepnapok[KORRIGÁLT],tblÜnnepnapok[NAP]),0),6),INDEX(tblÜnnepnapok[],MATCH(DATE(NaptÉv,MONTH(G13),DAY(G13)),IF(TartottÜnnepek,tblÜnnepnapok[KORRIGÁLT],tblÜnnepnapok[NAP]),0),2),\"\"),\"\"),\"\")","v":""},{"$f":"IFERROR(IF(Ünnepnapok,IF(INDEX(tblÜnnepnapok[],MATCH(DATE(NaptÉv,MONTH(H13),DAY(H13)),IF(TartottÜnnepek,tblÜnnepnapok[KORRIGÁLT],tblÜnnepnapok[NAP]),0),6),INDEX(tblÜnnepnapok[],MATCH(DATE(NaptÉv,MONTH(H13),DAY(H13)),IF(TartottÜnnepek,tblÜnnepnapok[KORRIGÁLT],tblÜnnepnapok[NAP]),0),2),\"\"),\"\"),\"\")","v":""}]
[null,{"$f":"Napok+DATE(NaptÉv,12,1)-WEEKDAY(DATE(NaptÉv,12,1),(HétKezdete=\"HÉTFŐ\")+1)+36","v":"2018-12-30"},"2018-12-31","MEGJEGYZÉSEK"]
[null,{"$f":"IFERROR(IF(Ünnepnapok,IF(INDEX(tblÜnnepnapok[],MATCH(DATE(NaptÉv,MONTH(B15),DAY(B15)),IF(TartottÜnnepek,tblÜnnepnapok[KORRIGÁLT],tblÜnnepnapok[NAP]),0),6),INDEX(tblÜnnepnapok[],MATCH(DATE(NaptÉv,MONTH(B15),DAY(B15)),IF(TartottÜnnepek,tblÜnnepnapok[KORRIGÁLT],tblÜnnepnapok[NAP]),0),2),\"\"),\"\"),\"\")","v":""},{"$f":"IFERROR(IF(Ünnepnapok,IF(INDEX(tblÜnnepnapok[],MATCH(DATE(NaptÉv,MONTH(C15),DAY(C15)),IF(TartottÜnnepek,tblÜnnepnapok[KORRIGÁLT],tblÜnnepnapok[NAP]),0),6),INDEX(tblÜnnepnapok[],MATCH(DATE(NaptÉv,MONTH(C15),DAY(C15)),IF(TartottÜnnepek,tblÜnnepnapok[KORRIGÁLT],tblÜnnepnapok[NAP]),0),2),\"\"),\"\"),\"\")","v":""}]

{"sheet":"Ünnepnapok","index":13,"n_rows":15,"n_cols":8,"rows_kept":15}
[]
[null,"Magyar ünnepnapok",{"$nulls":5}," "]
[]
[null,"NAP","ÜNNEPNAP","ÜNNEP NAPJA","HÉTKÖZNAP","KORRIGÁLT","MUTAT"]
[null,{"$f":"DATE(NaptÉv,1,1)","v":"2018-01-01"},"Újév napja","Január 1.",{"$f":"IFERROR(WEEKDAY(tblÜnnepnapok[[#This Row],[NAP]],IF(HétKezdete=\"HÉTFŐ\",2,1)),0)","v":2},{"$f":"IF(ISTEXT(tblÜnnepnapok[[#This Row],[NAP]]),\"Nincs megtartva\",IF(tblÜnnepnapok[[#This Row],[HÉTKÖZNAP]]=1,tblÜnnepnapok[[#This Row],[NAP]]+1,IF(tblÜnnepnapok[[#This Row],[HÉTKÖZNAP]]=7,tblÜnnepnapok[[#This Row],[NAP]]-1,tblÜnnepnapok[[#This Row],[NAP]])))","v":"2018-01-01"},true]
[null,{"$f":"DATE(NaptÉv,1,1+((3-(2>=WEEKDAY(DATE(NaptÉv,1,1))))*7)+(2-WEEKDAY(DATE(NaptÉv,1,1))))","v":"2018-01-15"},{"$f":"IF(COUNTIF(tblÜnnepnapok[NAP],tblÜnnepnapok[[#This Row],[NAP]])>1,\"Martin Luther King, Jr. Day *\",\"Martin Luther King, Jr. Day\")","v":"Martin Luther King, Jr. Day"},"Január harmadik hétfője",{"$f":"IFERROR(WEEKDAY(tblÜnnepnapok[[#This Row],[NAP]],IF(HétKezdete=\"HÉTFŐ\",2,1)),0)","v":2},{"$f":"IF(ISTEXT(tblÜnnepnapok[[#This Row],[NAP]]),\"Nincs megtartva\",IF(tblÜnnepnapok[[#This Row],[HÉTKÖZNAP]]=1,tblÜnnepnapok[[#This Row],[NAP]]+1,IF(tblÜnnepnapok[[#This Row],[HÉTKÖZNAP]]=7,tblÜnnepnapok[[#This Row],[NAP]]-1,tblÜnnepnapok[[#This Row],[NAP]])))","v":"2018-01-15"},true]
[null,{"$f":"IF(MOD(NaptÉv,4)=1,DATE(NaptÉv,1,20)+(WEEKDAY(DATE(NaptÉv,1,20))=1),\"Nincs megtartva\")","v":"Nincs megtartva"},"Az 1848-as forradalom és szabadságharc ünnepe","Március 15.",{"$f":"IFERROR(WEEKDAY(tblÜnnepnapok[[#This Row],[NAP]],IF(HétKezdete=\"HÉTFŐ\",2,1)),0)","v":0},{"$f":"IF(ISTEXT(tblÜnnepnapok[[#This Row],[NAP]]),\"Nincs megtartva\",IF(tblÜnnepnapok[[#This Row],[HÉTKÖZNAP]]=1,tblÜnnepnapok[[#This Row],[NAP]]+1,IF(tblÜnnepnapok[[#This Row],[HÉTKÖZNAP]]=7,tblÜnnepnapok[[#This Row],[NAP]]-1,tblÜnnepnapok[[#This Row],[NAP]])))","v":"Nincs megtartva"},true]
[null,{"$f":"DATE(NaptÉv,2,1+((3-(2>=WEEKDAY(DATE(NaptÉv,2,1))))*7)+(2-WEEKDAY(DATE(NaptÉv,2,1))))","v":"2018-02-19"},"Nagypéntek","Húsvét előtti péntek",{"$f":"IFERROR(WEEKDAY(tblÜnnepnapok[[#This Row],[NAP]],IF(HétKezdete=\"HÉTFŐ\",2,1)),0)","v":2},{"$f":"IF(ISTEXT(tblÜnnepnapok[[#This Row],[NAP]]),\"Nincs megtartva\",IF(tblÜnnepnapok[[#This Row],[HÉTKÖZNAP]]=1,tblÜnnepnapok[[#This Row],[NAP]]+1,IF(tblÜnnepnapok[[#This Row],[HÉTKÖZNAP]]=7,tblÜnnepnapok[[#This Row],[NAP]]-1,tblÜnnepnapok[[#This Row],[NAP]])))","v":"2018-02-19"},true]
[null,{"$f":"DATE(NaptÉv,5,1+((MájusHétfők-(2>=WEEKDAY(DATE(NaptÉv,5,1))))*7)+(2-WEEKDAY(DATE(NaptÉv,5,1))))","v":"2018-05-28"},"Húsvéthétfő","Húsvét vasárnapját követő hétfő",{"$f":"IFERROR(WEEKDAY(tblÜnnepnapok[[#This Row],[NAP]],IF(HétKezdete=\"HÉTFŐ\",2,1)),0)","v":2},{"$f":"IF(ISTEXT(tblÜnnepnapok[[#This Row],[NAP]]),\"Nincs megtartva\",IF(tblÜnnepnapok[[#This Row],[HÉTKÖZNAP]]=1,tblÜnnepnapok[[#This Row],[NAP]]+1,IF(tblÜnnepnapok[[#This Row],[HÉTKÖZNAP]]=7,tblÜnnepnapok[[#This Row],[NAP]]-1,tblÜnnepnapok[[#This Row],[NAP]])))","v":"2018-05-28"},true]
[null,{"$f":"DATE(NaptÉv,7,4)","v":"2018-07-04"},"A munka ünnepe","Május 1.",{"$f":"IFERROR(WEEKDAY(tblÜnnepnapok[[#This Row],[NAP]],IF(HétKezdete=\"HÉTFŐ\",2,1)),0)","v":4},{"$f":"IF(ISTEXT(tblÜnnepnapok[[#This Row],[NAP]]),\"Nincs megtartva\",IF(tblÜnnepnapok[[#This Row],[HÉTKÖZNAP]]=1,tblÜnnepnapok[[#This Row],[NAP]]+1,IF(tblÜnnepnapok[[#This Row],[HÉTKÖZNAP]]=7,tblÜnnepnapok[[#This Row],[NAP]]-1,tblÜnnepnapok[[#This Row],[NAP]])))","v":"2018-07-04"},true]
[null,{"$f":"DATE(NaptÉv,9,1+((1-(2>=WEEKDAY(DATE(NaptÉv,9,1))))*7)+(2-WEEKDAY(DATE(NaptÉv,9,1))))","v":"2018-09-03"},"Pünkösd hétfő","Húsvét utáni 7. hétfő",{"$f":"IFERROR(WEEKDAY(tblÜnnepnapok[[#This Row],[NAP]],IF(HétKezdete=\"HÉTFŐ\",2,1)),0)","v":2},{"$f":"IF(ISTEXT(tblÜnnepnapok[[#This Row],[NAP]]),\"Nincs megtartva\",IF(tblÜnnepnapok[[#This Row],[HÉTKÖZNAP]]=1,tblÜnnepnapok[[#This Row],[NAP]]+1,IF(tblÜnnepnapok[[#This Row],[HÉTKÖZNAP]]=7,tblÜnnepnapok[[#This Row],[NAP]]-1,tblÜnnepnapok[[#This Row],[NAP]])))","v":"2018-09-03"},true]
[null,{"$f":"DATE(NaptÉv,10,1+((2-(2>=WEEKDAY(DATE(NaptÉv,10,1))))*7)+(2-WEEKDAY(DATE(NaptÉv,10,1))))","v":"2018-10-08"},"Államalapító Szt. István ünnepe","Augusztus 20.",{"$f":"IFERROR(WEEKDAY(tblÜnnepnapok[[#This Row],[NAP]],IF(HétKezdete=\"HÉTFŐ\",2,1)),0)","v":2},{"$f":"IF(ISTEXT(tblÜnnepnapok[[#This Row],[NAP]]),\"Nincs megtartva\",IF(tblÜnnepnapok[[#This Row],[HÉTKÖZNAP]]=1,tblÜnnepnapok[[#This Row],[NAP]]+1,IF(tblÜnnepnapok[[#This Row],[HÉTKÖZNAP]]=7,tblÜnnepnapok[[#This Row],[NAP]]-1,tblÜnnepnapok[[#This Row],[NAP]])))","v":"2018-10-08"},true]
[null,{"$f":"DATE(NaptÉv,11,11)","v":"2018-11-11"},"A Köztársaság Napja","Október 23.",{"$f":"IFERROR(WEEKDAY(tblÜnnepnapok[[#This Row],[NAP]],IF(HétKezdete=\"HÉTFŐ\",2,1)),0)","v":1},{"$f":"IF(ISTEXT(tblÜnnepnapok[[#This Row],[NAP]]),\"Nincs megtartva\",IF(tblÜnnepnapok[[#This Row],[HÉTKÖZNAP]]=1,tblÜnnepnapok[[#This Row],[NAP]]+1,IF(tblÜnnepnapok[[#This Row],[HÉTKÖZNAP]]=7,tblÜnnepnapok[[#This Row],[NAP]]-1,tblÜnnepnapok[[#This Row],[NAP]])))","v":"2018-11-12"},true]
[null,{"$f":"DATE(NaptÉv,11,1+((4-(5>=WEEKDAY(DATE(NaptÉv,11,1))))*7)+(5-WEEKDAY(DATE(NaptÉv,11,1))))","v":"2018-11-22"},"Mindenszentek","November 1.",{"$f":"IFERROR(WEEKDAY(tblÜnnepnapok[[#This Row],[NAP]],IF(HétKezdete=\"HÉTFŐ\",2,1)),0)","v":5},{"$f":"IF(ISTEXT(tblÜnnepnapok[[#This Row],[NAP]]),\"Nincs megtartva\",IF(tblÜnnepnapok[[#This Row],[HÉTKÖZNAP]]=1,tblÜnnepnapok[[#This Row],[NAP]]+1,IF(tblÜnnepnapok[[#This Row],[HÉTKÖZNAP]]=7,tblÜnnepnapok[[#This Row],[NAP]]-1,tblÜnnepnapok[[#This Row],[NAP]])))","v":"2018-11-22"},true]
[null,{"$f":"DATE(NaptÉv,12,25)","v":"2018-12-25"},"Karácsony napja","December 25.",{"$f":"IFERROR(WEEKDAY(tblÜnnepnapok[[#This Row],[NAP]],IF(HétKezdete=\"HÉTFŐ\",2,1)),0)","v":3},{"$f":"IF(ISTEXT(tblÜnnepnapok[[#This Row],[NAP]]),\"Nincs megtartva\",IF(tblÜnnepnapok[[#This Row],[HÉTKÖZNAP]]=1,tblÜnnepnapok[[#This Row],[NAP]]+1,IF(tblÜnnepnapok[[#This Row],[HÉTKÖZNAP]]=7,tblÜnnepnapok[[#This Row],[NAP]]-1,tblÜnnepnapok[[#This Row],[NAP]])))","v":"2018-12-25"},true]